Local authority department which incurred the expenditure,Service Division,Cost Centre,Summary of the Purpose of Expenditure,Expense Type,Expense Code,Detailed Expense Type,Date of Transaction,Transaction Number,Beneficiary,Merchant Category Number,Merchant Category,Gross Amount,VAT,Net Amount
Children and Young Peoples Services,Head of Childrens Social Care,085332,Middlestone Moor CU,Supplies and Services,324117,Provisions E324,01-Jul-2020,000007227331768,TESCO STORES 2371,5411,Catering costs - provisions,73.54,0.00,73.54
Children and Young Peoples Services,Head of Early Help Inclusion & Vulnerable Children.,088104,BA/BC/Crook 0-19 Targeted Family Support,Supplies and Services,304259,Equipment and Materials,01-Jul-2020,000007227331928,WWW.THEWORKS.CO.UK,5310,Equipment-purchase and rental,-240.00,0.00,-240.00
Resources BK0010,Business Support,052986,CYPS - Locality and Operational Support,Supplies and Services,304259,Equipment and Materials,01-Jul-2020,000007227332322,AMZNMktplace,5999,Equipment-purchase and rental,7.78,1.30,6.48
Children and Young Peoples Services,Head of Early Help Inclusion & Vulnerable Children.,088106,Ferryhill & N.Aycliffe 0-19 Targeted Family Support,Supplies and Services,304259,Equipment and Materials,01-Jul-2020,000007227332326,AMZNMktplace,5999,Equipment-purchase and rental,14.96,2.49,12.47
Children and Young Peoples Services,Head of Childrens Social Care,085341,High Etherley Satelite Home,Supplies and Services,324117,Provisions E324,01-Jul-2020,000007229964234,TESCO STORES 6329,5411,Catering costs - provisions,31.41,0.00,31.41
Children and Young Peoples Services,Head of Childrens Social Care,085341,High Etherley Satelite Home,Supplies and Services,324117,Provisions E324,01-Jul-2020,000007229964256,CO-OP GROUP 010989,5411,Catering costs - provisions,1.65,0.00,1.65
Children and Young Peoples Services,Head of Childrens Social Care,085341,High Etherley Satelite Home,Supplies and Services,324117,Provisions E324,01-Jul-2020,000007229964264,CO-OP GROUP 310015,5411,Catering costs - provisions,10.00,0.00,10.00
"Regeneration, Economy and Growth",Development and Housing,031617,Project Beta Sustainability Fund,Supplies and Services,352001,Conference Expenses,01-Jul-2020,000007229964304,HI NEWCASTLE WASHI,7011,Conferencesseminars fees etc,82.00,0.00,82.00
Resources BK0010,Digital and Customer Services,065487,ICT Telephony Recharges,Supplies and Services,344033,Telephones,01-Jul-2020,000007229964334,AMZNMktplace,5999,Telephones general-all costs,305.00,51.00,254.00
Children and Young Peoples Services,Head of Education and Skills,075021,Youth Employment Initiative,Supplies and Services,364301,Grants to Voluntary Organisations,01-Jul-2020,000007229964402,CURRYS ONLINE,5732,Hardship,239.00,39.83,199.17
Neighbourhoods and Climate Change,Environmental Services,010383,C&G - South Street Cleansing,Supplies and Services,304999,Equipment and Materials,01-Jul-2020,000007229964418,Snowballs,5251,Misc equipment tools and materials,37.06,0.00,37.06
Children and Young Peoples Services,Head of Early Help Inclusion & Vulnerable Children.,088104,BA/BC/Crook 0-19 Targeted Family Support,Supplies and Services,304259,Equipment and Materials,01-Jul-2020,000007229964532,AMZNMktplace,5999,Equipment-purchase and rental,35.94,6.00,29.94
Children and Young Peoples Services,Head of Early Help Inclusion & Vulnerable Children.,088104,BA/BC/Crook 0-19 Targeted Family Support,Supplies and Services,304259,Equipment and Materials,01-Jul-2020,000007229964540,AMZNMKTPLACE AMAZON.CO,5999,Equipment-purchase and rental,70.80,11.80,59.00
Children and Young Peoples Services,Head of Early Help Inclusion & Vulnerable Children.,088104,BA/BC/Crook 0-19 Targeted Family Support,Supplies and Services,304259,Equipment and Materials,01-Jul-2020,000007229964542,Amazon.co.uk E85FL78D5,5969,Equipment-purchase and rental,26.99,4.50,22.49
Children and Young Peoples Services,Head of Early Help Inclusion & Vulnerable Children.,088104,BA/BC/Crook 0-19 Targeted Family Support,Supplies and Services,304259,Equipment and Materials,01-Jul-2020,000007229964544,Amazon.co.uk 7P4FV9OB5,5969,Equipment-purchase and rental,14.06,2.34,11.72
Children and Young Peoples Services,Head of Early Help Inclusion & Vulnerable Children.,088104,BA/BC/Crook 0-19 Targeted Family Support,Supplies and Services,324117,Provisions E324,01-Jul-2020,000007229964546,ASDA GROCERIES ONLINE,5411,Catering costs - provisions,433.54,0.00,433.54
Children and Young Peoples Services,Head of Early Help Inclusion & Vulnerable Children.,088105,BA/BC/Crook 0-19 Community Family Hub,Supplies and Services,384999,Miscellaneous Expenses,01-Jul-2020,000007229964550,ASDA GROCERIES ONLINE,5411,Other expenses,172.99,0.00,172.99
Children and Young Peoples Services,Head of Early Help Inclusion & Vulnerable Children.,088104,BA/BC/Crook 0-19 Targeted Family Support,Supplies and Services,304259,Equipment and Materials,01-Jul-2020,000007229964552,AMZNMktplace,5999,Equipment-purchase and rental,11.98,2.00,9.98
Children and Young Peoples Services,Head of Early Help Inclusion & Vulnerable Children.,088105,BA/BC/Crook 0-19 Community Family Hub,Supplies and Services,384999,Miscellaneous Expenses,01-Jul-2020,000007229964554,ASDA GROCERIES ONLINE,5411,Other expenses,-1.05,0.00,-1.05
Children and Young Peoples Services,Head of Early Help Inclusion & Vulnerable Children.,088104,BA/BC/Crook 0-19 Targeted Family Support,Supplies and Services,324117,Provisions E324,01-Jul-2020,000007229964556,ASDA GROCERIES ONLINE,5411,Catering costs - provisions,-2.64,0.00,-2.64
Children and Young Peoples Services,Head of Childrens Social Care,085332,Middlestone Moor CU,Supplies and Services,324117,Provisions E324,01-Jul-2020,000007229964562,TESCO STORES 2916,5411,Catering costs - provisions,48.95,0.00,48.95
Children and Young Peoples Services,COVID19 - Children and Young Peoples Services,091002,COVID19 - Children and Young Peoples Services,Supplies and Services,328041,Clothing uniforms and laundry E328,01-Jul-2020,000007229964574,Mainline Menswear Ltd,5611,Clothing uniforms and laundry,-86.01,0.00,-86.01
"Regeneration, Economy and Growth",Culture Sport and Tourism,011217,Commercial Management 011217,Supplies and Services,304999,Equipment and Materials,01-Jul-2020,000007229964588,MailChimp,5818,Misc equipment tools and materials,295.95,0.00,295.95
"Regeneration, Economy and Growth",Development and Housing,031576,B& B - Temp Accom,Supplies and Services,364320,Grants to Voluntary Organisations,01-Jul-2020,000007229964596,BUDGET H EXPRESS HOTEL,7011,Accommodation assistance,267.00,44.50,222.50
"Regeneration, Economy and Growth",Development and Housing,031576,B& B - Temp Accom,Supplies and Services,364320,Grants to Voluntary Organisations,01-Jul-2020,000007229964598,BUDGET H EXPRESS HOTEL,7011,Accommodation assistance,356.00,59.33,296.67
Children and Young Peoples Services,Head of Childrens Social Care,085332,Middlestone Moor CU,Supplies and Services,348037,Subsistence E348,01-Jul-2020,000007229964626,PIZZA COTTAGE,5814,Subsistence,10.40,0.00,10.40
Children and Young Peoples Services,Head of Childrens Social Care,085332,Middlestone Moor CU,Supplies and Services,348037,Subsistence E348,01-Jul-2020,000007229964628,SIESTA COFFEE SHOP,5814,Subsistence,4.00,0.00,4.00
"Regeneration, Economy and Growth",Development and Housing,030771,Durham Advance Flexible Fund,Supplies and Services,304403,Equipment and Materials,01-Jul-2020,000007229964634,AMZNMktplace,5999,Other consumables,44.76,7.46,37.30
"Regeneration, Economy and Growth",Development and Housing,030771,Durham Advance Flexible Fund,Supplies and Services,304403,Equipment and Materials,01-Jul-2020,000007229964634 - 1,AMZNMktplace,5999,Other consumables,44.15,,44.15
"Regeneration, Economy and Growth",Development and Housing,031500,Housing Solutions - Core Team,Supplies and Services,352001,Conference Expenses,01-Jul-2020,000007229964640,BUDGET H EXPRESS HOTEL,7011,Conferencesseminars fees etc,178.00,0.00,178.00
Children and Young Peoples Services,Head of Early Help Inclusion & Vulnerable Children.,085956,Lumley,Supplies and Services,304403,Equipment and Materials,01-Jul-2020,000007229964722,AMZNMKTPLACE AMAZON.CO,5999,Other consumables,7.99,0.00,7.99
Children and Young Peoples Services,Head of Early Help Inclusion & Vulnerable Children.,085956,Lumley,Supplies and Services,304403,Equipment and Materials,01-Jul-2020,000007229964724,AMZNMKTPLACE AMAZON.CO,5999,Other consumables,2.99,0.00,2.99
Children and Young Peoples Services,Head of Early Help Inclusion & Vulnerable Children.,085956,Lumley,Supplies and Services,304403,Equipment and Materials,01-Jul-2020,000007229964726,AMZNMKTPLACE AMAZON.CO,5999,Other consumables,2.79,0.47,2.32
Children and Young Peoples Services,Head of Early Help Inclusion & Vulnerable Children.,085956,Lumley,Supplies and Services,304403,Equipment and Materials,01-Jul-2020,000007229964728,AMZNMKTPLACE AMAZON.CO,5999,Other consumables,2.79,0.47,2.32
Children and Young Peoples Services,Head of Early Help Inclusion & Vulnerable Children.,085965,Barnard,Supplies and Services,328041,Clothing uniforms and laundry E328,01-Jul-2020,000007229964730,FOOTASYLUM PLC,5691,Clothing uniforms and laundry,54.98,0.00,54.98
Children and Young Peoples Services,Head of Early Help Inclusion & Vulnerable Children.,085957,Secure Management,Supplies and Services,304403,Equipment and Materials,01-Jul-2020,000007229964734,AMZNMktplace,5999,Other consumables,13.99,2.33,11.66
Children and Young Peoples Services,Head of Early Help Inclusion & Vulnerable Children.,085962,Aycliffe Secure - Durham,Supplies and Services,304403,Equipment and Materials,01-Jul-2020,000007229964736,AMZNMktplace,5999,Other consumables,36.00,6.00,30.00
Children and Young Peoples Services,Head of Early Help Inclusion & Vulnerable Children.,085962,Aycliffe Secure - Durham,Supplies and Services,304403,Equipment and Materials,01-Jul-2020,000007229964736 - 1,AMZNMktplace,5999,Other consumables,19.94,,19.94
Children and Young Peoples Services,Head of Early Help Inclusion & Vulnerable Children.,088108,Spennymoor & Shildon 0-19 Targeted Family Support,Supplies and Services,304259,Equipment and Materials,01-Jul-2020,000007229965262,AMZNMktplace,5999,Equipment-purchase and rental,130.40,0.00,130.40
Children and Young Peoples Services,Head of Early Help Inclusion & Vulnerable Children.,088106,Ferryhill & N.Aycliffe 0-19 Targeted Family Support,Supplies and Services,304259,Equipment and Materials,01-Jul-2020,000007229965276,AMZNMktplace,5999,Equipment-purchase and rental,3.09,0.52,2.57
Children and Young Peoples Services,Head of Early Help Inclusion & Vulnerable Children.,088106,Ferryhill & N.Aycliffe 0-19 Targeted Family Support,Supplies and Services,364301,Grants to Voluntary Organisations,01-Jul-2020,000007229965286,CURRYS ONLINE,5732,Hardship,234.00,0.00,234.00
Adult and Health Services,Head of Adults,055643,Hawthorn House LD Respite Unit,Supplies and Services,324117,Provisions E324,01-Jul-2020,000007229965378,WILKO RETAIL LIMITED,5399,Catering costs - provisions,19.20,0.00,19.20
Adult and Health Services,Head of Adults,055643,Hawthorn House LD Respite Unit,Supplies and Services,324117,Provisions E324,01-Jul-2020,000007229965380,SAINSBURYS SACAT 0776,5411,Catering costs - provisions,0.55,0.00,0.55
Adult and Health Services,Head of Adults,055643,Hawthorn House LD Respite Unit,Supplies and Services,324117,Provisions E324,01-Jul-2020,000007229965382,SAINSBURYS 0776,5411,Catering costs - provisions,16.90,0.00,16.90
Adult and Health Services,Head of Adults,055643,Hawthorn House LD Respite Unit,Supplies and Services,328041,Clothing uniforms and laundry E328,01-Jul-2020,000007229965384,ARGOS LTD,5310,Clothing uniforms and laundry,39.99,0.00,39.99
Children and Young Peoples Services,Head of Childrens Social Care,085333,Coxhoe Satelite Home,Supplies and Services,324117,Provisions E324,01-Jul-2020,000007229965446,CO-OP GROUP 310016,5411,Catering costs - provisions,17.90,0.00,17.90
Neighbourhoods and Climate Change,Environmental Services,010367,C&G - South Grounds Maintenance,Supplies and Services,304999,Equipment and Materials,01-Jul-2020,000007229965562,GUSTHARTS,5072,Misc equipment tools and materials,206.52,0.00,206.52
Children and Young Peoples Services,Head of Education and Skills,078554,Adult Skills-Main,Supplies and Services,384999,Miscellaneous Expenses,01-Jul-2020,000007229965656,Amazon.co.uk P808E7CZ5,5969,Other expenses,40.00,0.00,40.00
Neighbourhoods and Climate Change,Environmental Services,031242,North Penninies - Tests & Trials,Supplies and Services,312009,Newspapers books and periodicals E312,01-Jul-2020,000007229965752,JOHN NIX FARM MANAGEME,5192,Newspapers books and periodicals,31.50,0.00,31.50
Children and Young Peoples Services,Head of Childrens Social Care,085334,West Rainton Satelite Home,Supplies and Services,348037,Subsistence E348,01-Jul-2020,000007229965774,MCDONALDS,5814,Subsistence,10.65,0.00,10.65
Children and Young Peoples Services,Head of Early Help Inclusion & Vulnerable Children.,088103,Consett & Stanley 0-19 Community Family Hub,Supplies and Services,304403,Equipment and Materials,01-Jul-2020,000007229965800,AMZNMktplace,5999,Other consumables,59.96,0.00,59.96
Children and Young Peoples Services,Head of Early Help Inclusion & Vulnerable Children.,088103,Consett & Stanley 0-19 Community Family Hub,Supplies and Services,384999,Miscellaneous Expenses,01-Jul-2020,000007229965814,WWW.THEWORKS.CO.UK,5310,Other expenses,210.00,0.00,210.00
Resources BK0010,Business Support,052986,CYPS - Locality and Operational Support,Supplies and Services,324117,Provisions E324,01-Jul-2020,000007229965906,WWW.ALDI.CO.UK,5411,Catering costs - provisions,37.25,0.00,37.25
Children and Young Peoples Services,Head of Childrens Social Care,085334,West Rainton Satelite Home,Supplies and Services,324117,Provisions E324,01-Jul-2020,000007229965928,THE APPLE ORCHARD,5411,Catering costs - provisions,15.99,0.00,15.99
Children and Young Peoples Services,Head of Childrens Social Care,085334,West Rainton Satelite Home,Supplies and Services,328041,Clothing uniforms and laundry E328,01-Jul-2020,000007229965936,MYCLOTHING,5137,Clothing uniforms and laundry,57.95,0.00,57.95
Children and Young Peoples Services,Head of Childrens Social Care,085334,West Rainton Satelite Home,Supplies and Services,304259,Equipment and Materials,01-Jul-2020,000007229965940,HALFORDS ON LINE,5940,Equipment-purchase and rental,80.00,0.00,80.00
Resources BK0010,Business Support,052986,CYPS - Locality and Operational Support,Supplies and Services,304403,Equipment and Materials,01-Jul-2020,000007229966066,AMZNMktplace,5999,Other consumables,20.85,3.48,17.37
Neighbourhoods and Climate Change,Environmental Services,010301,C&G - North Grounds Maintenance,Supplies and Services,304221,Equipment and Materials,01-Jul-2020,000007229966362,SCREWFIX DIRECT,5200,Direct materials,149.99,0.00,149.99
Children and Young Peoples Services,Head of Childrens Social Care,085333,Coxhoe Satelite Home,Supplies and Services,324117,Provisions E324,01-Jul-2020,000007229966382,TESCO STORES 2371,5411,Catering costs - provisions,20.10,0.00,20.10
Children and Young Peoples Services,Head of Childrens Social Care,085333,Coxhoe Satelite Home,Supplies and Services,324117,Provisions E324,01-Jul-2020,000007229966396,CO-OP GROUP 310016,5411,Catering costs - provisions,6.05,0.00,6.05
Resources BK0010,Business Support,052986,CYPS - Locality and Operational Support,Supplies and Services,344033,Telephones,01-Jul-2020,000007229966532,WWW.CARPHONEWAREHO,4812,Telephones general-all costs,14.99,0.00,14.99
Children and Young Peoples Services,Head of Childrens Social Care,085331,New Lea Childrens Home,Supplies and Services,384999,Miscellaneous Expenses,01-Jul-2020,000007229966904,Amazon.co.uk 6R9T53XX5,5969,Other expenses,4.75,0.79,3.96
Children and Young Peoples Services,Head of Childrens Social Care,085331,New Lea Childrens Home,Supplies and Services,304403,Equipment and Materials,01-Jul-2020,000007229966920,AMZNMktplace,5999,Other consumables,13.44,2.24,11.20
Children and Young Peoples Services,Head of Childrens Social Care,085331,New Lea Childrens Home,Supplies and Services,304403,Equipment and Materials,01-Jul-2020,000007229966920 - 1,AMZNMktplace,5999,Other consumables,0.04,,0.04
Resources BK0010,COVID19 - Resources,091007,COVID19 - Resources,Supplies and Services,304403,Equipment and Materials,01-Jul-2020,000007229967006,AMZNMktplace,5999,Other consumables,14.99,2.50,12.49
Children and Young Peoples Services,Head of Childrens Social Care,085332,Middlestone Moor CU,Supplies and Services,304999,Equipment and Materials,01-Jul-2020,000007229967358,Amazon Prime LK60F84W5,5968,Misc equipment tools and materials,7.99,0.00,7.99
Resources BK0010,Digital and Customer Services,065335,School Services - Implementations,Supplies and Services,304303,Equipment and Materials,01-Jul-2020,000007232722410,AMZNMKTPLACE AMAZON.CO,5999,Network for resale,29.99,5.00,24.99
Children and Young Peoples Services,Head of Education and Skills,071801,Selby Cottage Childcare Centre,Supplies and Services,304403,Equipment and Materials,02-Jul-2020,000007229964290,AMZNMktplace,5999,Other consumables,21.98,3.66,18.32
Children and Young Peoples Services,Head of Childrens Social Care,085341,High Etherley Satelite Home,Supplies and Services,324117,Provisions E324,02-Jul-2020,000007232721690,TESCO STORES 6329,5411,Catering costs - provisions,115.25,0.00,115.25
"Regeneration, Economy and Growth",Business Durham CL0850,030689,Inward Investment and Aftercare,Supplies and Services,304403,Equipment and Materials,02-Jul-2020,000007232721694,ADOBE CREATIVE CLOUD,5734,Other consumables,49.94,0.00,49.94
"Regeneration, Economy and Growth",Business Durham CL0850,030689,Inward Investment and Aftercare,Supplies and Services,342222,Computers and Communications,02-Jul-2020,000007232721700,FASTHOSTS INTERNET,4816,Comp hardware purch-network servers,72.66,0.00,72.66
"Regeneration, Economy and Growth",Business Durham CL0850,030689,Inward Investment and Aftercare,Supplies and Services,342222,Computers and Communications,02-Jul-2020,000007232721702,FASTHOSTS INTERNET,4816,Comp hardware purch-network servers,67.20,0.00,67.20
Children and Young Peoples Services,Head of Education and Skills,071801,Selby Cottage Childcare Centre,Supplies and Services,304403,Equipment and Materials,02-Jul-2020,000007232721718,AMZNMktplace,5999,Other consumables,10.00,1.67,8.33
"Regeneration, Economy and Growth",Development and Housing,031617,Project Beta Sustainability Fund,Supplies and Services,352001,Conference Expenses,02-Jul-2020,000007232721722,HI NEWCASTLE WASHI,7011,Conferencesseminars fees etc,87.00,0.00,87.00
"Regeneration, Economy and Growth",Development and Housing,031617,Project Beta Sustainability Fund,Supplies and Services,352001,Conference Expenses,02-Jul-2020,000007232721728,HI NEWCASTLE WASHI,7011,Conferencesseminars fees etc,348.00,0.00,348.00
"Regeneration, Economy and Growth",Development and Housing,031617,Project Beta Sustainability Fund,Supplies and Services,352001,Conference Expenses,02-Jul-2020,000007232721734,HI NEWCASTLE WASHI,7011,Conferencesseminars fees etc,260.00,0.00,260.00
Children and Young Peoples Services,Head of Childrens Social Care,085537,Full Circle,Supplies and Services,344033,Telephones,02-Jul-2020,000007232721738,AMZNMktplace,5999,Telephones general-all costs,8.99,1.50,7.49
Neighbourhoods and Climate Change,Environmental Services,010383,C&G - South Street Cleansing,Supplies and Services,304221,Equipment and Materials,02-Jul-2020,000007232721770,HARELAW SAWMILL,5211,Direct materials,53.10,0.00,53.10
"Regeneration, Economy and Growth",Culture Sport and Tourism,030708,VCD - Marketing & Information,Supplies and Services,384199,Miscellaneous Expenses,02-Jul-2020,000007232721782,MAILCHIMP MONTHLY,5968,Other hired and contracted services,219.34,0.00,219.34
Children and Young Peoples Services,Head of Childrens Social Care,085342,16 Hickstead Rise (previously 9 Cedar Ave),Supplies and Services,324117,Provisions E324,02-Jul-2020,000007232721792,TESCO STORES 2916,5411,Catering costs - provisions,201.86,0.00,201.86
Children and Young Peoples Services,Head of Childrens Social Care,085333,Coxhoe Satelite Home,Supplies and Services,344033,Telephones,02-Jul-2020,000007232721828,EE BROADBAND,4812,Telephones general-all costs,39.23,0.00,39.23
Children and Young Peoples Services,Head of Early Help Inclusion & Vulnerable Children.,088116,South Area - Teenage Parent Programme,Supplies and Services,304259,Equipment and Materials,02-Jul-2020,000007232721868,AMZNMktplace,5999,Equipment-purchase and rental,11.04,1.84,9.20
Children and Young Peoples Services,Head of Early Help Inclusion & Vulnerable Children.,088116,South Area - Teenage Parent Programme,Supplies and Services,304259,Equipment and Materials,02-Jul-2020,000007232721868 - 1,AMZNMktplace,5999,Equipment-purchase and rental,0.04,,0.04
Children and Young Peoples Services,Head of Early Help Inclusion & Vulnerable Children.,088116,South Area - Teenage Parent Programme,Supplies and Services,304259,Equipment and Materials,02-Jul-2020,000007232721872,Amazon.co.uk ED17T6715,5969,Equipment-purchase and rental,1.99,0.33,1.66
Children and Young Peoples Services,Head of Early Help Inclusion & Vulnerable Children.,088116,South Area - Teenage Parent Programme,Supplies and Services,304259,Equipment and Materials,02-Jul-2020,000007232721874,AMZNMktplace,5999,Equipment-purchase and rental,22.12,3.71,18.41
Children and Young Peoples Services,Head of Early Help Inclusion & Vulnerable Children.,088104,BA/BC/Crook 0-19 Targeted Family Support,Supplies and Services,304259,Equipment and Materials,02-Jul-2020,000007232721876,AMZNMktplace,5999,Equipment-purchase and rental,151.92,25.36,126.56
Children and Young Peoples Services,Head of Early Help Inclusion & Vulnerable Children.,088116,South Area - Teenage Parent Programme,Supplies and Services,304259,Equipment and Materials,02-Jul-2020,000007232721880,AMZNMktplace,5999,Equipment-purchase and rental,47.46,7.91,39.55
Children and Young Peoples Services,Head of Early Help Inclusion & Vulnerable Children.,088116,South Area - Teenage Parent Programme,Supplies and Services,304259,Equipment and Materials,02-Jul-2020,000007232721880 - 1,AMZNMktplace,5999,Equipment-purchase and rental,0.07,,0.07
Children and Young Peoples Services,Head of Early Help Inclusion & Vulnerable Children.,088104,BA/BC/Crook 0-19 Targeted Family Support,Supplies and Services,304259,Equipment and Materials,02-Jul-2020,000007232721884,AMZNMktplace,5999,Equipment-purchase and rental,25.00,4.17,20.83
Children and Young Peoples Services,Head of Early Help Inclusion & Vulnerable Children.,088104,BA/BC/Crook 0-19 Targeted Family Support,Supplies and Services,304259,Equipment and Materials,02-Jul-2020,000007232721888,AMZNMktplace,5999,Equipment-purchase and rental,29.98,5.00,24.98
Children and Young Peoples Services,Head of Early Help Inclusion & Vulnerable Children.,088104,BA/BC/Crook 0-19 Targeted Family Support,Supplies and Services,332047,Printing Stationery and Gen Off Exps,02-Jul-2020,000007232721890,BAKER ROSS,5970,Stationery,94.95,0.00,94.95
Children and Young Peoples Services,Head of Early Help Inclusion & Vulnerable Children.,088104,BA/BC/Crook 0-19 Targeted Family Support,Supplies and Services,304259,Equipment and Materials,02-Jul-2020,000007232721894,WILKO.COM,5399,Equipment-purchase and rental,57.50,0.00,57.50
Children and Young Peoples Services,Head of Early Help Inclusion & Vulnerable Children.,088104,BA/BC/Crook 0-19 Targeted Family Support,Supplies and Services,332047,Printing Stationery and Gen Off Exps,02-Jul-2020,000007232721898,AMZNMktplace,5999,Stationery,16.21,2.70,13.51
Children and Young Peoples Services,Head of Early Help Inclusion & Vulnerable Children.,088104,BA/BC/Crook 0-19 Targeted Family Support,Supplies and Services,304259,Equipment and Materials,02-Jul-2020,000007232721900,AMZNMktplace,5999,Equipment-purchase and rental,24.99,4.17,20.82
Children and Young Peoples Services,Head of Childrens Social Care,085332,Middlestone Moor CU,Supplies and Services,304405,Equipment and Materials,02-Jul-2020,000007232721910,Well Pharmacy 200438,5912,Medical supplies,3.45,0.00,3.45
Children and Young Peoples Services,Head of Early Help Inclusion & Vulnerable Children.,085954,Walworth,Supplies and Services,328041,Clothing uniforms and laundry E328,02-Jul-2020,000007232721934,FOOTASYLUM PLC,5691,Clothing uniforms and laundry,10.99,0.00,10.99
Children and Young Peoples Services,Head of Early Help Inclusion & Vulnerable Children.,085954,Walworth,Supplies and Services,328041,Clothing uniforms and laundry E328,02-Jul-2020,000007232721936,FOOTASYLUM PLC,5691,Clothing uniforms and laundry,31.99,0.00,31.99
Children and Young Peoples Services,Head of Early Help Inclusion & Vulnerable Children.,085965,Barnard,Supplies and Services,304259,Equipment and Materials,02-Jul-2020,000007232721938,JD SPORTS INTERNET,5941,Equipment-purchase and rental,85.00,0.00,85.00
Children and Young Peoples Services,Head of Early Help Inclusion & Vulnerable Children.,088109,Spennymoor & Shildon 0-19 Community Family Hub,Supplies and Services,324117,Provisions E324,02-Jul-2020,000007232721988,B&M 206 - NORTHGATE,5399,Catering costs - provisions,2.58,0.00,2.58
Children and Young Peoples Services,Head of Early Help Inclusion & Vulnerable Children.,088109,Spennymoor & Shildon 0-19 Community Family Hub,Supplies and Services,324117,Provisions E324,02-Jul-2020,000007232721992,WILKO RETAIL LIMITED,5399,Catering costs - provisions,13.20,0.00,13.20
Children and Young Peoples Services,Head of Childrens Social Care,085342,16 Hickstead Rise (previously 9 Cedar Ave),Supplies and Services,348037,Subsistence E348,02-Jul-2020,000007232722006,Reds Fish Bar,5812,Subsistence,32.50,0.00,32.50
Children and Young Peoples Services,Head of Education and Skills,071732,Dean Bank Childcare,Supplies and Services,324117,Provisions E324,02-Jul-2020,000007232722028,B&M 035 - SHILDON,5399,Catering costs - provisions,13.98,0.00,13.98
"Regeneration, Economy and Growth",Culture Sport and Tourism,011223,Operations Locality 1,Supplies and Services,304403,Equipment and Materials,02-Jul-2020,000007232722044,AMZNMKTPLACE AMAZON.CO,5999,Other consumables,258.59,0.00,258.59
Children and Young Peoples Services,Head of Childrens Social Care,085334,West Rainton Satelite Home,Supplies and Services,384999,Miscellaneous Expenses,02-Jul-2020,000007232722066,Amazon.co.uk W62QQ8GO5,5969,Other expenses,38.97,6.50,32.47
Children and Young Peoples Services,Head of Education and Skills,071903,Early Years Sustainability,Supplies and Services,384999,Miscellaneous Expenses,02-Jul-2020,000007232722110,Amazon.co.uk EP91M3H65,5969,Other expenses,19.35,0.00,19.35
"Regeneration, Economy and Growth",Development and Housing,030771,Durham Advance Flexible Fund,Supplies and Services,384700,Miscellaneous Expenses,02-Jul-2020,000007232722140,ARRIVA NORTH EAST,4131,Miscellaneous grants,52.00,0.00,52.00
"Regeneration, Economy and Growth",Development and Housing,030771,Durham Advance Flexible Fund,Supplies and Services,304221,Equipment and Materials,02-Jul-2020,000007232722146,SCREWFIX DIRECT,5200,Direct materials,4.98,0.83,4.15
"Regeneration, Economy and Growth",Development and Housing,030771,Durham Advance Flexible Fund,Supplies and Services,304221,Equipment and Materials,02-Jul-2020,000007232722146 - 1,SCREWFIX DIRECT,5200,Direct materials,30.01,,30.01
Children and Young Peoples Services,Head of Early Help Inclusion & Vulnerable Children.,071445,Chester le Street One Point Hub,Supplies and Services,304259,Equipment and Materials,02-Jul-2020,000007232722158,WWW.DURHAM.GOV.UK,9399,Equipment-purchase and rental,33.00,0.00,33.00
Children and Young Peoples Services,Head of Early Help Inclusion & Vulnerable Children.,085956,Lumley,Supplies and Services,304403,Equipment and Materials,02-Jul-2020,000007232722160,AMZNMKTPLACE AMAZON.CO,5999,Other consumables,3.99,0.00,3.99
Neighbourhoods and Climate Change,Environmental Services,010367,C&G - South Grounds Maintenance,Supplies and Services,304221,Equipment and Materials,02-Jul-2020,000007232722164,CARRS BILLINGTON SPENN,5599,Direct materials,48.00,0.00,48.00
Neighbourhoods and Climate Change,Environmental Services,010367,C&G - South Grounds Maintenance,Supplies and Services,304403,Equipment and Materials,02-Jul-2020,000007232722168,TIMPSON LTD,5999,Other consumables,17.50,0.00,17.50
Resources BK0010,People & Talent Management,010984,Training and Development,Employees,040149,Recruitment Instruction and Training,02-Jul-2020,000007232722172,PAYPAL NPORS LTD,8699,Training-all costs,48.00,0.00,48.00
"Regeneration, Economy and Growth",Development and Housing,031576,B& B - Temp Accom,Supplies and Services,364320,Grants to Voluntary Organisations,02-Jul-2020,000007232722190,BUDGET H EXPRESS HOTEL,7011,Accommodation assistance,89.00,0.00,89.00
Children and Young Peoples Services,Head of Early Help Inclusion & Vulnerable Children.,088119,Durham 0-19 Community Family Hub,Supplies and Services,304403,Equipment and Materials,02-Jul-2020,000007232722200,AMZNMktplace,5999,Other consumables,6.00,1.00,5.00
Children and Young Peoples Services,Head of Childrens Social Care,085551,Short Break Services-Park Hse Sher,Supplies and Services,324117,Provisions E324,02-Jul-2020,000007232722222,TESCO STORES 2371,5411,Catering costs - provisions,14.50,0.00,14.50
Children and Young Peoples Services,Head of Childrens Social Care,085551,Short Break Services-Park Hse Sher,Supplies and Services,324117,Provisions E324,02-Jul-2020,000007232722224,ALDI 12 774,5411,Catering costs - provisions,42.56,0.00,42.56
Children and Young Peoples Services,Head of Early Help Inclusion & Vulnerable Children.,071569,Woodhouse Close Childrens Centre,Supplies and Services,304259,Equipment and Materials,02-Jul-2020,000007232722244,AMZNMktplace,5999,Equipment-purchase and rental,8.99,1.50,7.49
Children and Young Peoples Services,Head of Childrens Social Care,085341,High Etherley Satelite Home,Supplies and Services,324117,Provisions E324,02-Jul-2020,000007232722262,ASDA SUPERSTORE,5411,Catering costs - provisions,12.73,0.00,12.73
Neighbourhoods and Climate Change,Community Protection,011035,Consumer Protection 011035,Supplies and Services,338048,Services,02-Jul-2020,000007232722282,HMCOURTS-SERVICE.G,9222,Court costs 338048,226.00,0.00,226.00
Children and Young Peoples Services,Head of Childrens Social Care,085333,Coxhoe Satelite Home,Supplies and Services,304999,Equipment and Materials,02-Jul-2020,000007232722314,M WHITFIELD LTD,5912,Misc equipment tools and materials,13.96,0.00,13.96
Children and Young Peoples Services,Head of Childrens Social Care,085333,Coxhoe Satelite Home,Supplies and Services,324117,Provisions E324,02-Jul-2020,000007232722318,TESCO STORES 2916,5411,Catering costs - provisions,169.69,0.00,169.69
Neighbourhoods and Climate Change,Environmental Services,019100,Fleet - Strategic Fleet,Employees,040149,Recruitment Instruction and Training,02-Jul-2020,000007232722372,WWW.FTA.CO.UK,8999,Training-all costs,156.00,0.00,156.00
Children and Young Peoples Services,Head of Childrens Social Care,085352,Tow Law CU,Supplies and Services,324117,Provisions E324,02-Jul-2020,000007232722390,CO-OP GROUP 010989,5411,Catering costs - provisions,3.35,0.00,3.35
Children and Young Peoples Services,Head of Early Help Inclusion & Vulnerable Children.,088102,Consett & Stanley 0-19 Targeted Family Support,Supplies and Services,340001,Postages E340,02-Jul-2020,000007232722404,POST OFFICE COUNTER,9402,Postages,7.80,0.00,7.80
Children and Young Peoples Services,Head of Childrens Social Care,085633,Families First Chester-Le-Street,Supplies and Services,364340,Grants to Voluntary Organisations,02-Jul-2020,000007232722406,GO NORTH EAST LIMITED,4131,Contact expenses,50.00,0.00,50.00
Resources BK0010,Digital and Customer Services,065335,School Services - Implementations,Supplies and Services,304259,Equipment and Materials,02-Jul-2020,000007232722416,WWW.TOOLSTATION.COM,5251,Equipment-purchase and rental,389.64,64.94,324.70
Children and Young Peoples Services,Head of Childrens Social Care,085334,West Rainton Satelite Home,Supplies and Services,324117,Provisions E324,02-Jul-2020,000007232722436,TESCO STORES 2371,5411,Catering costs - provisions,123.80,0.00,123.80
Children and Young Peoples Services,Head of Childrens Social Care,085334,West Rainton Satelite Home,Supplies and Services,324117,Provisions E324,02-Jul-2020,000007232722440,TESCO STORES 2371,5411,Catering costs - provisions,3.52,0.00,3.52
Neighbourhoods and Climate Change,Environmental Services,010301,C&G - North Grounds Maintenance,Supplies and Services,304999,Equipment and Materials,02-Jul-2020,000007232722494,WWW.TOOLSTATION.COM,5251,Misc equipment tools and materials,39.98,0.00,39.98
Children and Young Peoples Services,Head of Childrens Social Care,085331,New Lea Childrens Home,Supplies and Services,304403,Equipment and Materials,02-Jul-2020,000007232722562,AMZNMktplace,5999,Other consumables,15.99,2.67,13.32
Children and Young Peoples Services,Head of Childrens Social Care,085331,New Lea Childrens Home,Supplies and Services,304403,Equipment and Materials,02-Jul-2020,000007232722566,AMZNMktplace,5999,Other consumables,21.68,3.62,18.06
Children and Young Peoples Services,Head of Early Help Inclusion & Vulnerable Children.,085956,Lumley,Supplies and Services,304403,Equipment and Materials,02-Jul-2020,000009118989493,AMZNMKTPLACE AMAZON.CO,5999,Other consumables,9.99,0.00,9.99
Children and Young Peoples Services,Head of Education and Skills,070169,Durham SSP,Supplies and Services,384199,Miscellaneous Expenses,02-Jul-2020,9118991347,ZOOM.GBP,5968,Other hired and contracted services,14.39,2.40,11.99
Children and Young Peoples Services,Head of Childrens Social Care,085513,Supporting Family Time Team,Supplies and Services,304259,Equipment and Materials,03-Jul-2020,000007232721902,AMZ Redstar Online,5999,Equipment-purchase and rental,-39.95,-6.65,-33.30
Children and Young Peoples Services,Head of Early Help Inclusion & Vulnerable Children.,088119,Durham 0-19 Community Family Hub,Supplies and Services,304403,Equipment and Materials,03-Jul-2020,000007232722202,AMZNMktplace,5999,Other consumables,29.96,5.00,24.96
"Regeneration, Economy and Growth",Corporate Property and Land,010814,Bldg Serv - R&M General,Supplies and Services,304221,Equipment and Materials,03-Jul-2020,000007232722308,AMZNMktplace,5999,Direct materials,274.90,0.00,274.90
Children and Young Peoples Services,Head of Education and Skills,071801,Selby Cottage Childcare Centre,Supplies and Services,324117,Provisions E324,03-Jul-2020,000009118988829,WILKO RETAIL LIMITED,5399,Catering costs - provisions,10.00,0.00,10.00
"Regeneration, Economy and Growth",Development and Housing,031576,B& B - Temp Accom,Supplies and Services,364320,Grants to Voluntary Organisations,03-Jul-2020,000009118988903,HI NEWCASTLE WASHI,7011,Accommodation assistance,455.00,0.00,455.00
"Regeneration, Economy and Growth",Development and Housing,031500,Housing Solutions - Core Team,Supplies and Services,352001,Conference Expenses,03-Jul-2020,000009118988963,GRAINGER APARTMENTS NE,7011,Conferencesseminars fees etc,350.00,0.00,350.00
"Regeneration, Economy and Growth",Development and Housing,031500,Housing Solutions - Core Team,Supplies and Services,352001,Conference Expenses,03-Jul-2020,000009118988971,GRAINGER APARTMENTS NE,7011,Conferencesseminars fees etc,400.00,0.00,400.00
"Regeneration, Economy and Growth",Development and Housing,031500,Housing Solutions - Core Team,Supplies and Services,352001,Conference Expenses,03-Jul-2020,000009118988977,GRAINGER APARTMENTS NE,7011,Conferencesseminars fees etc,450.00,0.00,450.00
"Regeneration, Economy and Growth",Development and Housing,031030,Development Management 031030,Supplies and Services,312009,Newspapers books and periodicals E312,03-Jul-2020,000009118988991,NHBS LTD,5942,Newspapers books and periodicals,151.81,25.30,126.51
Children and Young Peoples Services,Head of Childrens Social Care,085352,Tow Law CU,Supplies and Services,324117,Provisions E324,03-Jul-2020,000009118989069,TESCO STORES 2371,5411,Catering costs - provisions,21.35,0.00,21.35
Children and Young Peoples Services,Head of Childrens Social Care,085352,Tow Law CU,Supplies and Services,324117,Provisions E324,03-Jul-2020,000009118989073,TESCO STORES 2371,5411,Catering costs - provisions,13.49,0.00,13.49
Children and Young Peoples Services,Head of Childrens Social Care,085352,Tow Law CU,Supplies and Services,348037,Subsistence E348,03-Jul-2020,000009118989089,MCDONALD`S,5812,Subsistence,9.39,0.00,9.39
Children and Young Peoples Services,Head of Early Help Inclusion & Vulnerable Children.,088104,BA/BC/Crook 0-19 Targeted Family Support,Supplies and Services,332047,Printing Stationery and Gen Off Exps,03-Jul-2020,000009118989297,AMZNMktplace,5999,Stationery,23.78,3.97,19.81
Children and Young Peoples Services,Head of Early Help Inclusion & Vulnerable Children.,088116,South Area - Teenage Parent Programme,Supplies and Services,304259,Equipment and Materials,03-Jul-2020,000009118989317,AMZNMktplace,5999,Equipment-purchase and rental,48.65,8.12,40.53
Children and Young Peoples Services,Head of Early Help Inclusion & Vulnerable Children.,088104,BA/BC/Crook 0-19 Targeted Family Support,Supplies and Services,304259,Equipment and Materials,03-Jul-2020,000009118989325,AMZNMktplace,5999,Equipment-purchase and rental,71.92,12.00,59.92
Children and Young Peoples Services,Head of Childrens Social Care,085380,Operations Manager LAC Resources,Supplies and Services,304403,Equipment and Materials,03-Jul-2020,000009118989361,NEWBLES,5999,Other consumables,228.00,0.00,228.00
Children and Young Peoples Services,Head of Childrens Social Care,085380,Operations Manager LAC Resources,Supplies and Services,304403,Equipment and Materials,03-Jul-2020,000009118989371,NEWBLES,5999,Other consumables,169.00,0.00,169.00
Children and Young Peoples Services,Head of Early Help Inclusion & Vulnerable Children.,085956,Lumley,Supplies and Services,328041,Clothing uniforms and laundry E328,03-Jul-2020,000009118989471,URBAN OUTFITTERS,5651,Clothing uniforms and laundry,45.00,0.00,45.00
Children and Young Peoples Services,Head of Early Help Inclusion & Vulnerable Children.,085956,Lumley,Supplies and Services,328041,Clothing uniforms and laundry E328,03-Jul-2020,000009118989485,URBAN OUTFITTERS,5651,Clothing uniforms and laundry,35.00,0.00,35.00
Children and Young Peoples Services,Head of Education and Skills,071732,Dean Bank Childcare,Supplies and Services,304403,Equipment and Materials,03-Jul-2020,000009118989793,AMZNMktplace,5999,Other consumables,26.97,4.50,22.47
Children and Young Peoples Services,Head of Education and Skills,071732,Dean Bank Childcare,Supplies and Services,328041,Clothing uniforms and laundry E328,03-Jul-2020,000009118989799,ARGOS LTD,5310,Clothing uniforms and laundry,416.59,0.00,416.59
Neighbourhoods and Climate Change,Environmental Services,031221,North Pennines - Bowlees,Supplies and Services,372009,Subscriptions E372,03-Jul-2020,000009118989863,CENTRAL SOURCE LTD,2741,Subscriptions 372009,73.76,12.29,61.47
"Regeneration, Economy and Growth",Development and Housing,031500,Housing Solutions - Core Team,Supplies and Services,352001,Conference Expenses,03-Jul-2020,000009118990041,TOAST LETTINGS,7011,Conferencesseminars fees etc,400.00,0.00,400.00
"Regeneration, Economy and Growth",Development and Housing,031500,Housing Solutions - Core Team,Supplies and Services,352001,Conference Expenses,03-Jul-2020,000009118990051,BUDGET H EXPRESS HOTEL,7011,Conferencesseminars fees etc,267.00,44.50,222.50
"Regeneration, Economy and Growth",Development and Housing,031500,Housing Solutions - Core Team,Supplies and Services,352001,Conference Expenses,03-Jul-2020,000009118990059,BUDGET H EXPRESS HOTEL,7011,Conferencesseminars fees etc,89.00,14.83,74.17
"Regeneration, Economy and Growth",Development and Housing,031576,B& B - Temp Accom,Supplies and Services,364320,Grants to Voluntary Organisations,03-Jul-2020,000009118990227,BUDGET H EXPRESS HOTEL,7011,Accommodation assistance,267.00,0.00,267.00
Children and Young Peoples Services,Head of Early Help Inclusion & Vulnerable Children.,088119,Durham 0-19 Community Family Hub,Supplies and Services,304403,Equipment and Materials,03-Jul-2020,000009118990283,AMZNMktplace,5999,Other consumables,10.68,1.78,8.90
Children and Young Peoples Services,Head of Early Help Inclusion & Vulnerable Children.,088119,Durham 0-19 Community Family Hub,Supplies and Services,304403,Equipment and Materials,03-Jul-2020,000009118990287,AMZNMktplace,5999,Other consumables,2.76,0.00,2.76
"Regeneration, Economy and Growth",Development and Housing,031576,B& B - Temp Accom,Supplies and Services,364320,Grants to Voluntary Organisations,03-Jul-2020,000009118990345,BUDGET H EXPRESS HOTEL,7011,Accommodation assistance,500.00,83.33,416.67
"Regeneration, Economy and Growth",Development and Housing,031576,B& B - Temp Accom,Supplies and Services,364320,Grants to Voluntary Organisations,03-Jul-2020,000009118990355,BUDGET H EXPRESS HOTEL,7011,Accommodation assistance,301.00,50.17,250.83
"Regeneration, Economy and Growth",Development and Housing,031576,B& B - Temp Accom,Supplies and Services,364320,Grants to Voluntary Organisations,03-Jul-2020,000009118990361,BUDGET H EXPRESS HOTEL,7011,Accommodation assistance,139.00,23.17,115.83
Children and Young Peoples Services,Head of Early Help Inclusion & Vulnerable Children.,088108,Spennymoor & Shildon 0-19 Targeted Family Support,Supplies and Services,384302,Miscellaneous Expenses,03-Jul-2020,000009118990507,ARGOS LTD,5310,Activity expenses,47.94,0.00,47.94
Neighbourhoods and Climate Change,Community Protection,011035,Consumer Protection 011035,Supplies and Services,338048,Services,03-Jul-2020,000009118990593,HMCOURTS-SERVICE.G,9222,Court costs 338048,226.00,0.00,226.00
Children and Young Peoples Services,Head of Education and Skills,071802,Louisa Cent Nursery,Supplies and Services,324117,Provisions E324,03-Jul-2020,000009118990643,ASDA SUPERSTORE,5411,Catering costs - provisions,3.00,0.00,3.00
"Regeneration, Economy and Growth",Corporate Property and Land,010913,Bldg Serv - Construction General,Supplies and Services,304221,Equipment and Materials,03-Jul-2020,000009118990669,STATIONERY OFFICE BOOK,5942,Direct materials,"1,009.80",168.30,841.50
Children and Young Peoples Services,Head of Childrens Social Care,085333,Coxhoe Satelite Home,Supplies and Services,324117,Provisions E324,03-Jul-2020,000009118990697,CO-OP GROUP 310016,5411,Catering costs - provisions,17.60,0.00,17.60
Children and Young Peoples Services,Head of Childrens Social Care,085342,16 Hickstead Rise (previously 9 Cedar Ave),Supplies and Services,384302,Miscellaneous Expenses,03-Jul-2020,000009118990741,PAYPAL MARKJOHNRAC,8999,Activity expenses,20.00,0.00,20.00
Children and Young Peoples Services,Head of Childrens Social Care,085352,Tow Law CU,Supplies and Services,324117,Provisions E324,03-Jul-2020,000009118990795,ASDA SUPERSTORE 4987,5411,Catering costs - provisions,114.66,0.00,114.66
Children and Young Peoples Services,Head of Childrens Social Care,085352,Tow Law CU,Supplies and Services,324117,Provisions E324,03-Jul-2020,000009118990803,CO-OP GROUP 010989,5411,Catering costs - provisions,2.30,0.00,2.30
"Regeneration, Economy and Growth",Development and Housing,031578,Client Travel Reimbursements,Transport,235073,Public Transport,03-Jul-2020,000009118990855,BLUE LINE TAXIS,4121,Travel-clients/students/children,7.00,0.00,7.00
"Regeneration, Economy and Growth",Development and Housing,031576,B& B - Temp Accom,Supplies and Services,364320,Grants to Voluntary Organisations,03-Jul-2020,000009118990867,HI NEWCASTLE WASHI,7011,Accommodation assistance,455.00,0.00,455.00
"Regeneration, Economy and Growth",Development and Housing,031576,B& B - Temp Accom,Supplies and Services,364320,Grants to Voluntary Organisations,03-Jul-2020,000009118990877,HI NEWCASTLE WASHI,7011,Accommodation assistance,195.00,0.00,195.00
"Regeneration, Economy and Growth",Development and Housing,031576,B& B - Temp Accom,Supplies and Services,364320,Grants to Voluntary Organisations,03-Jul-2020,000009118990881,HI NEWCASTLE WASHI,7011,Accommodation assistance,240.00,0.00,240.00
Adult and Health Services,Head of Adults,055643,Hawthorn House LD Respite Unit,Supplies and Services,324117,Provisions E324,03-Jul-2020,000009118990891,JR HOLLAND FOODSERVICE,5499,Catering costs - provisions,28.04,0.00,28.04
Adult and Health Services,Head of Adults,055643,Hawthorn House LD Respite Unit,Supplies and Services,324117,Provisions E324,03-Jul-2020,000009118990899,JR HOLLAND FOODSERVICE,5499,Catering costs - provisions,3.90,0.00,3.90
Resources BK0010,Digital and Customer Services,065335,School Services - Implementations,Supplies and Services,304639,Equipment and Materials,03-Jul-2020,000009118990923,www.zandgroup.se,5732,Technicians-supplies,70.91,0.00,70.91
Resources BK0010,Business Support,052986,CYPS - Locality and Operational Support,Supplies and Services,304259,Equipment and Materials,03-Jul-2020,000009118990987,CURRYS ONLINE,5732,Equipment-purchase and rental,363.99,0.00,363.99
Resources BK0010,Business Support,052986,CYPS - Locality and Operational Support,Supplies and Services,328041,Clothing uniforms and laundry E328,03-Jul-2020,000009118990991,ARGOS LTD,5310,Clothing uniforms and laundry,176.95,0.00,176.95
Resources BK0010,Business Support,052986,CYPS - Locality and Operational Support,Supplies and Services,328041,Clothing uniforms and laundry E328,03-Jul-2020,000009118990997,ARGOS LTD,5310,Clothing uniforms and laundry,184.97,0.00,184.97
"Regeneration, Economy and Growth",Transport and Contracted Services,031701,Care Connect All Localities,Supplies and Services,304259,Equipment and Materials,03-Jul-2020,000009118991013,AMZNMktplace,5999,Equipment-purchase and rental,45.85,7.68,38.17
Children and Young Peoples Services,Head of Childrens Social Care,085332,Middlestone Moor CU,Supplies and Services,324117,Provisions E324,03-Jul-2020,000009118991027,ASDA SUPERSTORE 4987,5411,Catering costs - provisions,29.47,0.00,29.47
Adult and Health Services,Head of Adults,055301,Stanley Pathways,Supplies and Services,324117,Provisions E324,03-Jul-2020,000009118991067,LIDL GB DURHAM,5411,Catering costs - provisions,21.91,0.00,21.91
"Regeneration, Economy and Growth",Development and Housing,031576,B& B - Temp Accom,Supplies and Services,364320,Grants to Voluntary Organisations,03-Jul-2020,000009118991129,BUDGET H EXPRESS HOTEL,7011,Accommodation assistance,396.00,0.00,396.00
"Regeneration, Economy and Growth",Development and Housing,031576,B& B - Temp Accom,Supplies and Services,364320,Grants to Voluntary Organisations,03-Jul-2020,000009118991141,BUDGET H EXPRESS HOTEL,7011,Accommodation assistance,178.00,0.00,178.00
"Regeneration, Economy and Growth",Development and Housing,031576,B& B - Temp Accom,Supplies and Services,364320,Grants to Voluntary Organisations,03-Jul-2020,000009118991145,BUDGET H EXPRESS HOTEL,7011,Accommodation assistance,193.00,0.00,193.00
"Regeneration, Economy and Growth",Development and Housing,031576,B& B - Temp Accom,Supplies and Services,364320,Grants to Voluntary Organisations,03-Jul-2020,000009118991151,BUDGET H EXPRESS HOTEL,7011,Accommodation assistance,500.00,0.00,500.00
Children and Young Peoples Services,Head of Childrens Social Care,085352,Tow Law CU,Supplies and Services,324117,Provisions E324,03-Jul-2020,000009118991245,SAINSBURYS 0776,5411,Catering costs - provisions,85.22,0.00,85.22
Children and Young Peoples Services,Head of Childrens Social Care,085352,Tow Law CU,Supplies and Services,328041,Clothing uniforms and laundry E328,03-Jul-2020,000009118991255,FOOTASYLUM PLC,5691,Clothing uniforms and laundry,111.99,0.00,111.99
Children and Young Peoples Services,Head of Childrens Social Care,085352,Tow Law CU,Supplies and Services,304259,Equipment and Materials,03-Jul-2020,000009118991265,SPORTSDIRECT.COM,5941,Equipment-purchase and rental,41.98,0.00,41.98
Children and Young Peoples Services,Head of Education and Skills,071802,Louisa Cent Nursery,Supplies and Services,324117,Provisions E324,03-Jul-2020,000009118991279,ASDA SUPERSTORE,5411,Catering costs - provisions,52.43,0.00,52.43
"Regeneration, Economy and Growth",Development and Housing,031500,Housing Solutions - Core Team,Supplies and Services,304999,Equipment and Materials,03-Jul-2020,000009118991447,DUNCAN BELTON TA K,6513,Misc equipment tools and materials,350.00,0.00,350.00
Adult and Health Services,Head of Adults,055310,Positive Journeys (Tudhoe),Supplies and Services,324117,Provisions E324,03-Jul-2020,000009118991591,B&M 681 - DURHAM,5399,Catering costs - provisions,3.68,0.00,3.68
Children and Young Peoples Services,Head of Early Help Inclusion & Vulnerable Children.,085810,CDYJS - Interventions Team,Supplies and Services,304221,Equipment and Materials,03-Jul-2020,000009118991855,SCREWFIX DIRECT,5200,Direct materials,89.91,0.00,89.91
Adult and Health Services,Head of Adults,055643,Hawthorn House LD Respite Unit,Supplies and Services,324117,Provisions E324,03-Jul-2020,000009121753501,BATLEYS PERTH,5300,Catering costs - provisions,7.14,1.19,5.95
Adult and Health Services,Head of Adults,055643,Hawthorn House LD Respite Unit,Supplies and Services,324117,Provisions E324,03-Jul-2020,000009121753501 - 1,BATLEYS PERTH,5300,Catering costs - provisions,26.65,,26.65
"Regeneration, Economy and Growth",Business Durham CL0850,030689,Inward Investment and Aftercare,Supplies and Services,342033,Computers and Communications,04-Jul-2020,000009118988767,STK Shutterstock,7333,Computer hardware,19.00,0.00,19.00
"Regeneration, Economy and Growth",Business Durham CL0850,030689,Inward Investment and Aftercare,Supplies and Services,342222,Computers and Communications,04-Jul-2020,000009118988791,FASTHOSTS INTERNET,4816,Comp hardware purch-network servers,6.34,0.00,6.34
Children and Young Peoples Services,Head of Education and Skills,075021,Youth Employment Initiative,Supplies and Services,342033,Computers and Communications,04-Jul-2020,000009118988869,DRI Nuance,5734,Computer hardware,31.51,5.25,26.26
Neighbourhoods and Climate Change,Environmental Services,010341,Nei.Prot - N. Wardens,Supplies and Services,344033,Telephones,04-Jul-2020,000009118988877,AMZNMktplace,5999,Telephones general-all costs,31.96,0.00,31.96
Neighbourhoods and Climate Change,Environmental Services,010341,Nei.Prot - N. Wardens,Supplies and Services,344033,Telephones,04-Jul-2020,000009118988885,AMZNMktplace,5999,Telephones general-all costs,15.98,0.00,15.98
Children and Young Peoples Services,Head of Childrens Social Care,085342,16 Hickstead Rise (previously 9 Cedar Ave),Supplies and Services,324117,Provisions E324,04-Jul-2020,000009118989023,B&M 035 - SHILDON,5399,Catering costs - provisions,12.94,0.00,12.94
Children and Young Peoples Services,Head of Childrens Social Care,085342,16 Hickstead Rise (previously 9 Cedar Ave),Supplies and Services,324117,Provisions E324,04-Jul-2020,000009118989029,TESCO STORES 2916,5411,Catering costs - provisions,7.68,0.00,7.68
Children and Young Peoples Services,Head of Childrens Social Care,085333,Coxhoe Satelite Home,Supplies and Services,328041,Clothing uniforms and laundry E328,04-Jul-2020,000009118989183,PRIMARK 670 GATESHEAD,5651,Clothing uniforms and laundry,12.00,0.00,12.00
Children and Young Peoples Services,Head of Childrens Social Care,085333,Coxhoe Satelite Home,Supplies and Services,328041,Clothing uniforms and laundry E328,04-Jul-2020,000009118989193,PRIMARK 670 GATESHEAD,5651,Clothing uniforms and laundry,91.80,0.00,91.80
Children and Young Peoples Services,Head of Childrens Social Care,085333,Coxhoe Satelite Home,Supplies and Services,324117,Provisions E324,04-Jul-2020,000009118989199,WILKO RETAIL LIMITED,5399,Catering costs - provisions,9.90,1.65,8.25
Children and Young Peoples Services,Head of Childrens Social Care,085333,Coxhoe Satelite Home,Supplies and Services,304999,Equipment and Materials,04-Jul-2020,000009118989201,SUPERDRUG STORES PLC,5912,Misc equipment tools and materials,27.04,0.00,27.04
Children and Young Peoples Services,Head of Early Help Inclusion & Vulnerable Children.,088116,South Area - Teenage Parent Programme,Supplies and Services,304259,Equipment and Materials,04-Jul-2020,000009118989337,AMZNMktplace,5999,Equipment-purchase and rental,46.34,0.00,46.34
Children and Young Peoples Services,Head of Childrens Social Care,085332,Middlestone Moor CU,Supplies and Services,324117,Provisions E324,04-Jul-2020,000009118989387,SumUp Grannys Kitche,5411,Catering costs - provisions,12.00,0.00,12.00
Children and Young Peoples Services,Head of Childrens Social Care,085332,Middlestone Moor CU,Supplies and Services,348037,Subsistence E348,04-Jul-2020,000009118989419,BB SHAKES,5812,Subsistence,4.25,0.00,4.25
Children and Young Peoples Services,Head of Childrens Social Care,085332,Middlestone Moor CU,Supplies and Services,348037,Subsistence E348,04-Jul-2020,000009118989437,WETHERBY GREGGS,5812,Subsistence,10.04,0.00,10.04
Children and Young Peoples Services,Head of Education and Skills,071732,Dean Bank Childcare,Supplies and Services,304403,Equipment and Materials,04-Jul-2020,000009118989805,AMZNMKTPLACE AMAZON.CO,5999,Other consumables,5.98,0.00,5.98
Children and Young Peoples Services,Head of Childrens Social Care,085334,West Rainton Satelite Home,Supplies and Services,304999,Equipment and Materials,04-Jul-2020,000009118989881,WWW.TOOLSTATION.COM,5251,Misc equipment tools and materials,29.89,4.98,24.91
Children and Young Peoples Services,Head of Childrens Social Care,085332,Middlestone Moor CU,Supplies and Services,324117,Provisions E324,04-Jul-2020,000009118989927,WM MORRISONS STORE,5411,Catering costs - provisions,5.85,0.00,5.85
Children and Young Peoples Services,Head of Childrens Social Care,085332,Middlestone Moor CU,Transport,215995,Running Costs of Vehicles,04-Jul-2020,000009118989937,MORRISON PETROL,5541,Vehicle running expenses,41.41,0.00,41.41
"Regeneration, Economy and Growth",Development and Housing,031576,B& B - Temp Accom,Supplies and Services,364320,Grants to Voluntary Organisations,04-Jul-2020,000009118990239,AYCLIFFE BIZ,7011,Accommodation assistance,114.00,0.00,114.00
"Regeneration, Economy and Growth",Development and Housing,031576,B& B - Temp Accom,Supplies and Services,364320,Grants to Voluntary Organisations,04-Jul-2020,000009118990245,AYCLIFFE BIZ,7011,Accommodation assistance,114.00,0.00,114.00
Adult and Health Services,Head of Adults,055643,Hawthorn House LD Respite Unit,Supplies and Services,324117,Provisions E324,04-Jul-2020,000009118990627,SAINSBURYS SACAT 0776,5411,Catering costs - provisions,9.05,0.00,9.05
Children and Young Peoples Services,Head of Childrens Social Care,085332,Middlestone Moor CU,Supplies and Services,324117,Provisions E324,04-Jul-2020,000009118991441,MR B?S MEAT MARKET,5422,Catering costs - provisions,12.00,0.00,12.00
Children and Young Peoples Services,Head of Early Help Inclusion & Vulnerable Children.,085810,CDYJS - Interventions Team,Supplies and Services,304403,Equipment and Materials,04-Jul-2020,000009118991863,AMZNMktplace,5999,Other consumables,24.99,4.17,20.82
Children and Young Peoples Services,Head of Childrens Social Care,085341,High Etherley Satelite Home,Supplies and Services,324117,Provisions E324,05-Jul-2020,000009118988725,TESCO STORES 6329,5411,Catering costs - provisions,176.69,0.00,176.69
Children and Young Peoples Services,Head of Education and Skills,071732,Dean Bank Childcare,Supplies and Services,304403,Equipment and Materials,05-Jul-2020,000009118989813,AMZNMktplace,5999,Other consumables,28.35,4.74,23.61
Children and Young Peoples Services,Head of Education and Skills,071732,Dean Bank Childcare,Supplies and Services,304403,Equipment and Materials,05-Jul-2020,000009118989817,AMZNMKTPLACE AMAZON.CO,5999,Other consumables,17.84,0.00,17.84
Children and Young Peoples Services,Head of Childrens Social Care,085334,West Rainton Satelite Home,Supplies and Services,304403,Equipment and Materials,05-Jul-2020,000009118989889,AMZNMKTPLACE AMAZON.CO,5999,Other consumables,41.93,0.00,41.93
Children and Young Peoples Services,Head of Childrens Social Care,085352,Tow Law CU,Supplies and Services,324117,Provisions E324,05-Jul-2020,000009118990429,CO-OP GROUP 010989,5411,Catering costs - provisions,11.75,0.00,11.75
Adult and Health Services,Head of Adults,055643,Hawthorn House LD Respite Unit,Supplies and Services,324117,Provisions E324,05-Jul-2020,000009118990635,CO-OP GROUP FOOD,5411,Catering costs - provisions,1.50,0.00,1.50
Children and Young Peoples Services,Head of Childrens Social Care,085333,Coxhoe Satelite Home,Supplies and Services,324117,Provisions E324,05-Jul-2020,000009118991165,CO-OP GROUP 310016,5411,Catering costs - provisions,3.20,0.00,3.20
Children and Young Peoples Services,Head of Childrens Social Care,085333,Coxhoe Satelite Home,Supplies and Services,348037,Subsistence E348,05-Jul-2020,000009118991167,Pizza Roma,5812,Subsistence,28.60,0.00,28.60
"Regeneration, Economy and Growth",Business Durham CL0850,030671,Business Space 030671,Supplies and Services,304999,Equipment and Materials,05-Jul-2020,000009118991199,HOME BARGAINS,5251,Misc equipment tools and materials,21.72,0.00,21.72
Children and Young Peoples Services,Head of Education and Skills,071802,Louisa Cent Nursery,Supplies and Services,324117,Provisions E324,05-Jul-2020,000009118991283,TESCO STORES 4358,5411,Catering costs - provisions,6.90,0.00,6.90
Children and Young Peoples Services,Head of Early Help Inclusion & Vulnerable Children.,085954,Walworth,Supplies and Services,384999,Miscellaneous Expenses,06-Jul-2020,000007254571250,NEXT DIRECTORY,5965,Other expenses,-73.00,0.00,-73.00
Children and Young Peoples Services,Head of Education and Skills,071801,Selby Cottage Childcare Centre,Supplies and Services,324117,Provisions E324,06-Jul-2020,000009118988835,TESCO STORES 2371,5411,Catering costs - provisions,44.12,0.00,44.12
Resources BK0010,Digital and Customer Services,065335,School Services - Implementations,Supplies and Services,304639,Equipment and Materials,06-Jul-2020,000009118990927,www.zandgroup.se,5732,Technicians-supplies,1.95,0.00,1.95
Children and Young Peoples Services,Head of Childrens Social Care,085612,Families First Consett,Supplies and Services,364301,Grants to Voluntary Organisations,06-Jul-2020,000009121752415,AMZN Mktp UK TF3LM5HP5,5942,Hardship,63.69,10.62,53.07
Neighbourhoods and Climate Change,Technical Services CM0300,011036,Highway Capitalised Maint - Carriageway A Class Roads,Supplies and Services,336005,Advertising E336,06-Jul-2020,000009121752429,NEWSQUEST MEDIA,2741,Advertising other than for staff,"1,190.06",198.34,991.72
"Regeneration, Economy and Growth",Development and Housing,031599,Prevention Initiatives,Supplies and Services,352001,Conference Expenses,06-Jul-2020,000009121752469,AYCLIFFE BIZ,7011,Conferencesseminars fees etc,266.00,0.00,266.00
"Regeneration, Economy and Growth",Development and Housing,031599,Prevention Initiatives,Supplies and Services,352001,Conference Expenses,06-Jul-2020,000009121752473,BUDGET H EXPRESS HOTEL,7011,Conferencesseminars fees etc,301.00,0.00,301.00
"Regeneration, Economy and Growth",Development and Housing,031599,Prevention Initiatives,Supplies and Services,352001,Conference Expenses,06-Jul-2020,000009121752479,BUDGET H EXPRESS HOTEL,7011,Conferencesseminars fees etc,89.00,14.83,74.17
"Regeneration, Economy and Growth",Development and Housing,031599,Prevention Initiatives,Supplies and Services,352001,Conference Expenses,06-Jul-2020,000009121752481,BUDGET H EXPRESS HOTEL,7011,Conferencesseminars fees etc,500.00,0.00,500.00
"Regeneration, Economy and Growth",Development and Housing,031500,Housing Solutions - Core Team,Supplies and Services,352001,Conference Expenses,06-Jul-2020,000009121752537,GRAINGER APARTMENTS NE,7011,Conferencesseminars fees etc,450.00,0.00,450.00
Children and Young Peoples Services,Head of Education and Skills,075021,Youth Employment Initiative,Supplies and Services,364301,Grants to Voluntary Organisations,06-Jul-2020,000009121752551,CURRYS ONLINE,5732,Hardship,199.00,33.17,165.83
Children and Young Peoples Services,Head of Education and Skills,075021,Youth Employment Initiative,Supplies and Services,364301,Grants to Voluntary Organisations,06-Jul-2020,000009121752559,CURRYS ONLINE,5732,Hardship,199.00,33.17,165.83
Children and Young Peoples Services,Head of Education and Skills,075021,Youth Employment Initiative,Supplies and Services,364301,Grants to Voluntary Organisations,06-Jul-2020,000009121752567,CURRYS ONLINE,5732,Hardship,199.00,33.17,165.83
Children and Young Peoples Services,Head of Education and Skills,075021,Youth Employment Initiative,Supplies and Services,364301,Grants to Voluntary Organisations,06-Jul-2020,000009121752571,CURRYS ONLINE,5732,Hardship,239.00,39.83,199.17
Children and Young Peoples Services,Head of Education and Skills,075021,Youth Employment Initiative,Supplies and Services,364301,Grants to Voluntary Organisations,06-Jul-2020,000009121752577,Durham County CNCL,9399,Hardship,11.00,0.00,11.00
Children and Young Peoples Services,Head of Childrens Social Care,085352,Tow Law CU,Supplies and Services,324117,Provisions E324,06-Jul-2020,000009121752713,CO-OP GROUP 010989,5411,Catering costs - provisions,2.20,0.00,2.20
Children and Young Peoples Services,Head of Early Help Inclusion & Vulnerable Children.,088105,BA/BC/Crook 0-19 Community Family Hub,Supplies and Services,332047,Printing Stationery and Gen Off Exps,06-Jul-2020,000009121752725,AMZNMktplace,5999,Stationery,7.98,1.33,6.65
Children and Young Peoples Services,Head of Early Help Inclusion & Vulnerable Children.,088104,BA/BC/Crook 0-19 Targeted Family Support,Supplies and Services,332047,Printing Stationery and Gen Off Exps,06-Jul-2020,000009121752735,AMZNMktplace,5999,Stationery,13.39,2.23,11.16
Children and Young Peoples Services,Head of Early Help Inclusion & Vulnerable Children.,088105,BA/BC/Crook 0-19 Community Family Hub,Supplies and Services,304259,Equipment and Materials,06-Jul-2020,000009121752737,AMZNMktplace,5999,Equipment-purchase and rental,92.58,15.45,77.13
Children and Young Peoples Services,Head of Early Help Inclusion & Vulnerable Children.,088104,BA/BC/Crook 0-19 Targeted Family Support,Supplies and Services,332047,Printing Stationery and Gen Off Exps,06-Jul-2020,000009121752743,AMZNMKTPLACE AMAZON.CO,5999,Stationery,64.98,0.00,64.98
Children and Young Peoples Services,Head of Childrens Social Care,085332,Middlestone Moor CU,Employees,040149,Recruitment Instruction and Training,06-Jul-2020,000009121752801,Fletchers,7629,Training-all costs,5.00,0.00,5.00
Children and Young Peoples Services,Head of Early Help Inclusion & Vulnerable Children.,085952,Secure Education,Supplies and Services,304403,Equipment and Materials,06-Jul-2020,000009121752809,AMZNMKTPLACE AMAZON.CO,5999,Other consumables,19.99,3.33,16.66
Children and Young Peoples Services,Head of Early Help Inclusion & Vulnerable Children.,085954,Walworth,Supplies and Services,384999,Miscellaneous Expenses,06-Jul-2020,000009121752817,NEXT DIRECTORY,5965,Other expenses,144.99,0.00,144.99
Children and Young Peoples Services,Head of Early Help Inclusion & Vulnerable Children.,085956,Lumley,Supplies and Services,324117,Provisions E324,06-Jul-2020,000009121752819,ASDA GEORGE COM LEEDS,5411,Catering costs - provisions,8.95,0.00,8.95
Children and Young Peoples Services,Head of Early Help Inclusion & Vulnerable Children.,085954,Walworth,Supplies and Services,324117,Provisions E324,06-Jul-2020,000009121752821,ASDA GROCERIES ONLINE,5411,Catering costs - provisions,156.45,0.00,156.45
Children and Young Peoples Services,Head of Early Help Inclusion & Vulnerable Children.,085954,Walworth,Supplies and Services,342033,Computers and Communications,06-Jul-2020,000009121752823,VERY,5964,Computer hardware,78.99,0.00,78.99
Children and Young Peoples Services,Head of Early Help Inclusion & Vulnerable Children.,085956,Lumley,Supplies and Services,328041,Clothing uniforms and laundry E328,06-Jul-2020,000009121752825,ARGOS LTD,5310,Clothing uniforms and laundry,283.94,0.00,283.94
Children and Young Peoples Services,Head of Early Help Inclusion & Vulnerable Children.,085954,Walworth,Supplies and Services,324117,Provisions E324,06-Jul-2020,000009121752833,ASDA GROCERIES ONLINE,5411,Catering costs - provisions,-1.63,0.00,-1.63
Children and Young Peoples Services,Head of Early Help Inclusion & Vulnerable Children.,073998,TTF-Co-ordinator Grant,Transfer Payments,525033,Other,06-Jul-2020,000009121752893,FRANKS THE FLOORING ST,5713,Grants to individuals,234.00,0.00,234.00
Children and Young Peoples Services,Head of Education and Skills,071732,Dean Bank Childcare,Supplies and Services,324117,Provisions E324,06-Jul-2020,000009121752975,SAINSBURYS SACAT (2303,5411,Catering costs - provisions,8.10,0.00,8.10
Children and Young Peoples Services,Head of Education and Skills,071732,Dean Bank Childcare,Supplies and Services,324117,Provisions E324,06-Jul-2020,000009121752985,ASDA GROCERIES ONLINE,5411,Catering costs - provisions,72.32,0.00,72.32
Children and Young Peoples Services,Head of Education and Skills,071732,Dean Bank Childcare,Supplies and Services,324117,Provisions E324,06-Jul-2020,000009121752995,ASDA GROCERIES ONLINE,5411,Catering costs - provisions,62.72,0.00,62.72
Children and Young Peoples Services,Head of Education and Skills,071732,Dean Bank Childcare,Supplies and Services,324117,Provisions E324,06-Jul-2020,000009121752997,ASDA GROCERIES ONLINE,5411,Catering costs - provisions,74.45,0.00,74.45
Children and Young Peoples Services,Head of Education and Skills,071732,Dean Bank Childcare,Supplies and Services,324117,Provisions E324,06-Jul-2020,000009121753007,ASDA GROCERIES ONLINE,5411,Catering costs - provisions,-0.50,0.00,-0.50
Children and Young Peoples Services,Head of Childrens Social Care,085332,Middlestone Moor CU,Supplies and Services,348037,Subsistence E348,06-Jul-2020,000009121753029,MCDONALDS,5812,Subsistence,9.11,0.00,9.11
"Regeneration, Economy and Growth",Development and Housing,031500,Housing Solutions - Core Team,Supplies and Services,352001,Conference Expenses,06-Jul-2020,000009121753053,BUDGET H EXPRESS HOTEL,7011,Conferencesseminars fees etc,356.00,59.33,296.67
"Regeneration, Economy and Growth",Business Durham CL0850,030671,Business Space 030671,Supplies and Services,332047,Printing Stationery and Gen Off Exps,06-Jul-2020,000009121753099,EMERGE (NE) LTD,5943,Stationery,72.24,0.00,72.24
Children and Young Peoples Services,Head of Early Help Inclusion & Vulnerable Children.,088119,Durham 0-19 Community Family Hub,Supplies and Services,324117,Provisions E324,06-Jul-2020,000009121753187,ASDA GROCERIES ONLINE,5411,Catering costs - provisions,25.18,0.00,25.18
Children and Young Peoples Services,Head of Early Help Inclusion & Vulnerable Children.,071569,Woodhouse Close Childrens Centre,Supplies and Services,304259,Equipment and Materials,06-Jul-2020,000009121753247,Amazon.co.uk HV1Q62GA5,5969,Equipment-purchase and rental,44.99,7.50,37.49
Children and Young Peoples Services,Head of Early Help Inclusion & Vulnerable Children.,071569,Woodhouse Close Childrens Centre,Supplies and Services,304259,Equipment and Materials,06-Jul-2020,000009121753251,ASDA STORES,5411,Equipment-purchase and rental,1.00,0.00,1.00
Children and Young Peoples Services,Head of Early Help Inclusion & Vulnerable Children.,088106,Ferryhill & N.Aycliffe 0-19 Targeted Family Support,Supplies and Services,364301,Grants to Voluntary Organisations,06-Jul-2020,000009121753255,ARGOS LTD,5310,Hardship,29.95,0.00,29.95
Children and Young Peoples Services,Head of Childrens Social Care,085341,High Etherley Satelite Home,Supplies and Services,304403,Equipment and Materials,06-Jul-2020,000009121753301,C.E.X LIMITED,5065,Other consumables,5.00,0.00,5.00
Children and Young Peoples Services,Head of Childrens Social Care,085341,High Etherley Satelite Home,Supplies and Services,328041,Clothing uniforms and laundry E328,06-Jul-2020,000009121753311,SuperDryPOS,5691,Clothing uniforms and laundry,17.99,0.00,17.99
Children and Young Peoples Services,Head of Childrens Social Care,085341,High Etherley Satelite Home,Supplies and Services,328041,Clothing uniforms and laundry E328,06-Jul-2020,000009121753315,FOOT LOCKER,5661,Clothing uniforms and laundry,55.04,0.00,55.04
Children and Young Peoples Services,Head of Childrens Social Care,085341,High Etherley Satelite Home,Supplies and Services,324117,Provisions E324,06-Jul-2020,000009121753319,SHAKEAHOLIC,5499,Catering costs - provisions,8.18,0.00,8.18
Children and Young Peoples Services,Head of Childrens Social Care,085341,High Etherley Satelite Home,Supplies and Services,304403,Equipment and Materials,06-Jul-2020,000009121753325,CARD FACTORY,5947,Other consumables,6.97,0.00,6.97
Children and Young Peoples Services,Head of Childrens Social Care,085341,High Etherley Satelite Home,Supplies and Services,384999,Miscellaneous Expenses,06-Jul-2020,000009121753331,THE PERFUME SHOP,5977,Other expenses,20.00,0.00,20.00
Children and Young Peoples Services,Head of Childrens Social Care,085341,High Etherley Satelite Home,Supplies and Services,348037,Subsistence E348,06-Jul-2020,000009121753341,GREGGS,5812,Subsistence,5.85,0.00,5.85
Adult and Health Services,Head of Adults,055643,Hawthorn House LD Respite Unit,Supplies and Services,324117,Provisions E324,06-Jul-2020,000009121753391,CO-OP GROUP 010465,5411,Catering costs - provisions,3.00,0.00,3.00
Children and Young Peoples Services,Head of Childrens Social Care,085352,Tow Law CU,Supplies and Services,328041,Clothing uniforms and laundry E328,06-Jul-2020,000009121753487,ARGOS LTD,5310,Clothing uniforms and laundry,11.95,0.00,11.95
Children and Young Peoples Services,Head of Childrens Social Care,085334,West Rainton Satelite Home,Supplies and Services,324117,Provisions E324,06-Jul-2020,000009121753541,B&M 681 - DURHAM,5399,Catering costs - provisions,102.77,0.00,102.77
Resources BK0010,Business Support,052986,CYPS - Locality and Operational Support,Supplies and Services,304403,Equipment and Materials,06-Jul-2020,000009121753575,AMZNMktplace,5999,Other consumables,59.98,10.00,49.98
Resources BK0010,Business Support,052986,CYPS - Locality and Operational Support,Supplies and Services,304403,Equipment and Materials,06-Jul-2020,000009121753583,AMZNMktplace,5999,Other consumables,35.95,5.99,29.96
Children and Young Peoples Services,Head of Childrens Social Care,085332,Middlestone Moor CU,Supplies and Services,312009,Newspapers books and periodicals E312,06-Jul-2020,000009121753629,MIDDLESTONE MOOR NEWSA,5994,Newspapers books and periodicals,32.40,0.00,32.40
Children and Young Peoples Services,Head of Childrens Social Care,085352,Tow Law CU,Supplies and Services,304403,Equipment and Materials,06-Jul-2020,000009121753661,AMZNMktplace,5999,Other consumables,20.58,3.43,17.15
Children and Young Peoples Services,Head of Childrens Social Care,085342,16 Hickstead Rise (previously 9 Cedar Ave),Supplies and Services,324117,Provisions E324,06-Jul-2020,000009121753677,TESCO STORES 2916,5411,Catering costs - provisions,77.62,0.00,77.62
"Regeneration, Economy and Growth",Development and Housing,030772,CLLD South,Supplies and Services,304221,Equipment and Materials,06-Jul-2020,000009121753769,SCREWFIX DIRECT,5200,Direct materials,170.94,28.49,142.45
"Regeneration, Economy and Growth",Development and Housing,031500,Housing Solutions - Core Team,Supplies and Services,304999,Equipment and Materials,06-Jul-2020,000009121753823,DUNCAN BELTON TA K,6513,Misc equipment tools and materials,350.00,0.00,350.00
"Regeneration, Economy and Growth",Culture Sport and Tourism,011263,Louisa Centre 011263,Supplies and Services,304999,Equipment and Materials,06-Jul-2020,000009121753873,MAIN BROTHERS DIY,5251,Misc equipment tools and materials,19.94,0.00,19.94
Chief Executive's Office,Communications Management,060270,Communications and Marketing,Supplies and Services,372009,Subscriptions E372,06-Jul-2020,000009121753885,STK Shutterstock,7333,Subscriptions 372009,369.00,0.00,369.00
Adult and Health Services,Head of Adults,055310,Positive Journeys (Tudhoe),Supplies and Services,324117,Provisions E324,06-Jul-2020,000009121753897,TESCO STORES 6329,5411,Catering costs - provisions,4.09,0.00,4.09
Children and Young Peoples Services,Head of Childrens Social Care,085650,Pre Birth Team,Supplies and Services,304403,Equipment and Materials,06-Jul-2020,000009121753919,TESCO ONLINE,5999,Other consumables,20.00,0.00,20.00
Children and Young Peoples Services,Head of Childrens Social Care,085333,Coxhoe Satelite Home,Supplies and Services,324117,Provisions E324,06-Jul-2020,000009121753993,CO-OP GROUP 310016,5411,Catering costs - provisions,4.20,0.00,4.20
"Regeneration, Economy and Growth",Development and Housing,031576,B& B - Temp Accom,Supplies and Services,364320,Grants to Voluntary Organisations,06-Jul-2020,000009123765509,HI NEWCASTLE WASHI,7011,Accommodation assistance,260.00,0.00,260.00
"Regeneration, Economy and Growth",Development and Housing,031576,B& B - Temp Accom,Supplies and Services,364320,Grants to Voluntary Organisations,06-Jul-2020,000009123765527,HI NEWCASTLE WASHI,7011,Accommodation assistance,260.00,0.00,260.00
Children and Young Peoples Services,Head of Childrens Social Care,085341,High Etherley Satelite Home,Supplies and Services,328041,Clothing uniforms and laundry E328,06-Jul-2020,000009123765853,Klarna schuh,5651,Clothing uniforms and laundry,28.00,0.00,28.00
Children and Young Peoples Services,Head of Early Help Inclusion & Vulnerable Children.,085954,Walworth,Supplies and Services,304259,Equipment and Materials,06-Jul-2020,000009126234507,SPORTSDIRECT.COM,5941,Equipment-purchase and rental,34.49,5.75,28.74
Children and Young Peoples Services,Head of Childrens Social Care,085341,High Etherley Satelite Home,Supplies and Services,328041,Clothing uniforms and laundry E328,06-Jul-2020,000009143248267,Klarna schuh,5651,Clothing uniforms and laundry,-28.00,0.00,-28.00
Children and Young Peoples Services,Head of Education and Skills,071801,Selby Cottage Childcare Centre,Supplies and Services,324117,Provisions E324,07-Jul-2020,000009123764323,ONE STOP 3026,5411,Catering costs - provisions,4.10,0.00,4.10
Adult and Health Services,Head of Adults,052714,Development and Learning AHS 052714,Supplies and Services,342053,Computers and Communications,07-Jul-2020,000009123764355,MIRO.COM,7372,Computer software,154.04,0.00,154.04
Resources BK0010,Digital and Customer Services,070110,School Services - Man Info System (MIS) Support Team,Supplies and Services,342053,Computers and Communications,07-Jul-2020,000009123764363,WPMU DEV INCSUBFEE.COM,7372,Computer software,15.24,0.00,15.24
Children and Young Peoples Services,Head of Childrens Social Care,085561,Social Work Academy,Supplies and Services,312009,Newspapers books and periodicals E312,07-Jul-2020,000009123764367,PP CRITICALPUB,5942,Newspapers books and periodicals,"1,092.12",0.00,1092.12
Neighbourhoods and Climate Change,Environmental Services,010341,Nei.Prot - N. Wardens,Supplies and Services,344033,Telephones,07-Jul-2020,000009123764375,AMZ Milomdoi Direct,5999,Telephones general-all costs,-92.89,0.00,-92.89
Children and Young Peoples Services,Head of Childrens Social Care,085501,Child Care Cases Legal Expenses,Supplies and Services,304403,Equipment and Materials,07-Jul-2020,000009123764449,SUNDERLAND CC,7523,Other consumables,33.00,0.00,33.00
Children and Young Peoples Services,Head of Education and Skills,075021,Youth Employment Initiative,Supplies and Services,364301,Grants to Voluntary Organisations,07-Jul-2020,000009123764467,Durham County CNCL,9399,Hardship,11.00,0.00,11.00
Children and Young Peoples Services,Head of Childrens Social Care,085332,Middlestone Moor CU,Supplies and Services,324117,Provisions E324,07-Jul-2020,000009123764501,TESCO STORES 6329,5411,Catering costs - provisions,4.10,0.00,4.10
Children and Young Peoples Services,Head of Childrens Social Care,085332,Middlestone Moor CU,Premises,145023,Cleaning and Domestic Supplies,07-Jul-2020,000009123764507,WILKO RETAIL LIMITED,5399,Cleaning and domestic materials,25.15,0.00,25.15
Children and Young Peoples Services,Head of Childrens Social Care,085332,Middlestone Moor CU,Supplies and Services,324117,Provisions E324,07-Jul-2020,000009123764513,ASDA SUPERSTORE 4987,5411,Catering costs - provisions,6.10,0.00,6.10
Children and Young Peoples Services,Head of Childrens Social Care,085332,Middlestone Moor CU,Supplies and Services,324117,Provisions E324,07-Jul-2020,000009123764519,LIDL GB SPENNYMOOR,5411,Catering costs - provisions,6.82,0.00,6.82
Children and Young Peoples Services,Head of Childrens Social Care,085352,Tow Law CU,Supplies and Services,348037,Subsistence E348,07-Jul-2020,000009123764597,GREGGS,5812,Subsistence,4.40,0.00,4.40
Children and Young Peoples Services,Head of Childrens Social Care,085513,Supporting Family Time Team,Supplies and Services,304259,Equipment and Materials,07-Jul-2020,000009123764617,AMZNMKTPLACE AMAZON.CO,5999,Equipment-purchase and rental,49.75,8.30,41.45
"Regeneration, Economy and Growth",Development and Housing,031576,B& B - Temp Accom,Supplies and Services,364320,Grants to Voluntary Organisations,07-Jul-2020,000009123764653,AYCLIFFE BIZ,7011,Accommodation assistance,38.00,0.00,38.00
Children and Young Peoples Services,Head of Early Help Inclusion & Vulnerable Children.,085962,Aycliffe Secure - Durham,Supplies and Services,324117,Provisions E324,07-Jul-2020,000009123764675,TESCO STORES 6329,5411,Catering costs - provisions,120.49,0.00,120.49
Resources BK0010,Digital and Customer Services,065487,ICT Telephony Recharges,Supplies and Services,372009,Subscriptions E372,07-Jul-2020,000009123764773,WEB NETWORKSOLUTIONS,5968,Subscriptions 372009,38.50,0.00,38.50
Children and Young Peoples Services,Head of Education and Skills,071732,Dean Bank Childcare,Supplies and Services,304403,Equipment and Materials,07-Jul-2020,000009123764783,AMZNMktplace,5999,Other consumables,17.18,2.86,14.32
Children and Young Peoples Services,Head of Education and Skills,071732,Dean Bank Childcare,Supplies and Services,304403,Equipment and Materials,07-Jul-2020,000009123764789,AMZNMktplace,5999,Other consumables,17.18,2.86,14.32
Children and Young Peoples Services,Head of Education and Skills,071732,Dean Bank Childcare,Supplies and Services,304403,Equipment and Materials,07-Jul-2020,000009123764791,AMZNMktplace,5999,Other consumables,23.98,4.00,19.98
"Regeneration, Economy and Growth",Development and Housing,030771,Durham Advance Flexible Fund,Transport,235057,Public Transport,07-Jul-2020,000009123764873,ARRIVA NORTH EAST,4131,Staff travelling,26.20,0.00,26.20
Children and Young Peoples Services,Head of Childrens Social Care,085334,West Rainton Satelite Home,Supplies and Services,304403,Equipment and Materials,07-Jul-2020,000009123764921,AMZNMKTPLACE AMAZON.CO,5999,Other consumables,15.90,0.00,15.90
Children and Young Peoples Services,Head of Early Help Inclusion & Vulnerable Children.,071445,Chester le Street One Point Hub,Transport,235057,Public Transport,07-Jul-2020,000009123764929,SUNDERLAND CC,7523,Staff travelling,22.00,0.00,22.00
Children and Young Peoples Services,Head of Early Help Inclusion & Vulnerable Children.,071445,Chester le Street One Point Hub,Supplies and Services,304259,Equipment and Materials,07-Jul-2020,000009123764933,Durham County CNCL,9399,Equipment-purchase and rental,22.00,0.00,22.00
Children and Young Peoples Services,Head of Early Help Inclusion & Vulnerable Children.,071445,Chester le Street One Point Hub,Supplies and Services,304259,Equipment and Materials,07-Jul-2020,000009123764937,SUNDERLAND CC,9399,Equipment-purchase and rental,-66.00,0.00,-66.00
Children and Young Peoples Services,Head of Early Help Inclusion & Vulnerable Children.,085957,Secure Management,Supplies and Services,384999,Miscellaneous Expenses,07-Jul-2020,000009123764941,Amazon.co.uk 3H34775G5,5969,Other expenses,17.48,2.91,14.57
Children and Young Peoples Services,Head of Early Help Inclusion & Vulnerable Children.,085954,Walworth,Supplies and Services,304403,Equipment and Materials,07-Jul-2020,000009123764947,AMZNMktplace,5999,Other consumables,15.98,0.00,15.98
Children and Young Peoples Services,Head of Early Help Inclusion & Vulnerable Children.,085962,Aycliffe Secure - Durham,Supplies and Services,304649,Equipment and Materials,07-Jul-2020,000009123764951,AMZ Army and Navy St,7311,Toys,20.94,3.49,17.45
Children and Young Peoples Services,Head of Early Help Inclusion & Vulnerable Children.,085954,Walworth,Supplies and Services,384999,Miscellaneous Expenses,07-Jul-2020,000009123764957,WALLARTDESI,5970,Other expenses,23.98,0.00,23.98
"Regeneration, Economy and Growth",Development and Housing,031500,Housing Solutions - Core Team,Supplies and Services,352001,Conference Expenses,07-Jul-2020,000009123765023,AYCLIFFE BIZ,7011,Conferencesseminars fees etc,152.00,0.00,152.00
Children and Young Peoples Services,Head of Childrens Social Care,085352,Tow Law CU,Supplies and Services,348037,Subsistence E348,07-Jul-2020,000009123765031,KFC WEST AUCKLAND,5814,Subsistence,56.33,0.00,56.33
Children and Young Peoples Services,Head of Early Help Inclusion & Vulnerable Children.,088109,Spennymoor & Shildon 0-19 Community Family Hub,Supplies and Services,312009,Newspapers books and periodicals E312,07-Jul-2020,000009123765113,Amazon.co.uk 5V7N52WX5,5969,Newspapers books and periodicals,98.70,0.00,98.70
Children and Young Peoples Services,Head of Early Help Inclusion & Vulnerable Children.,088116,South Area - Teenage Parent Programme,Supplies and Services,384302,Miscellaneous Expenses,07-Jul-2020,000009123765119,HOME BARGAINS,5251,Activity expenses,48.95,0.00,48.95
Children and Young Peoples Services,Head of Childrens Social Care,085342,16 Hickstead Rise (previously 9 Cedar Ave),Supplies and Services,344033,Telephones,07-Jul-2020,000009123765185,giffgaff,4814,Telephones general-all costs,10.00,0.00,10.00
Children and Young Peoples Services,Head of Childrens Social Care,085352,Tow Law CU,Supplies and Services,304999,Equipment and Materials,07-Jul-2020,000009123765249,HOME BARGAINS SPENNYMO,5251,Misc equipment tools and materials,2.58,0.00,2.58
Children and Young Peoples Services,Head of Childrens Social Care,085352,Tow Law CU,Supplies and Services,324117,Provisions E324,07-Jul-2020,000009123765273,ASDA SUPERSTORE 4987,5411,Catering costs - provisions,148.16,0.00,148.16
Adult and Health Services,Head of Adults,055643,Hawthorn House LD Respite Unit,Supplies and Services,324117,Provisions E324,07-Jul-2020,000009123765337,JR HOLLAND FOODSERVICE,5499,Catering costs - provisions,16.36,0.00,16.36
Children and Young Peoples Services,Head of Childrens Social Care,085334,West Rainton Satelite Home,Supplies and Services,324117,Provisions E324,07-Jul-2020,000009123765355,TESCO STORES 2371,5411,Catering costs - provisions,92.79,0.00,92.79
Children and Young Peoples Services,Head of Childrens Social Care,085334,West Rainton Satelite Home,Supplies and Services,324117,Provisions E324,07-Jul-2020,000009123765361,TESCO STORES 2371,5411,Catering costs - provisions,77.50,0.00,77.50
Children and Young Peoples Services,Head of Childrens Social Care,085334,West Rainton Satelite Home,Supplies and Services,324117,Provisions E324,07-Jul-2020,000009123765363,TESCO STORES 2371,5411,Catering costs - provisions,30.10,0.00,30.10
Children and Young Peoples Services,Head of Early Help Inclusion & Vulnerable Children.,088115,North Area - Teenage Parent Programme,Supplies and Services,384302,Miscellaneous Expenses,07-Jul-2020,000009123765375,AMZNMktplace,5999,Activity expenses,81.36,13.56,67.80
Children and Young Peoples Services,Head of Early Help Inclusion & Vulnerable Children.,088115,North Area - Teenage Parent Programme,Supplies and Services,384302,Miscellaneous Expenses,07-Jul-2020,000009123765375 - 1,AMZNMktplace,5999,Activity expenses,0.12,,0.12
Children and Young Peoples Services,Head of Early Help Inclusion & Vulnerable Children.,088115,North Area - Teenage Parent Programme,Supplies and Services,384302,Miscellaneous Expenses,07-Jul-2020,000009123765381,AMZNMktplace,5999,Activity expenses,77.88,13.01,64.87
Resources BK0010,Business Support,052986,CYPS - Locality and Operational Support,Supplies and Services,304403,Equipment and Materials,07-Jul-2020,000009123765435,AMZNMktplace,5999,Other consumables,49.98,8.34,41.64
Resources BK0010,Business Support,052986,CYPS - Locality and Operational Support,Supplies and Services,304403,Equipment and Materials,07-Jul-2020,000009123765439,AMZNMktplace,5999,Other consumables,11.35,0.00,11.35
Neighbourhoods and Climate Change,Environmental Services,010301,C&G - North Grounds Maintenance,Supplies and Services,304221,Equipment and Materials,07-Jul-2020,000009123765545,WWW.JTDOVE.CO.UK,5211,Direct materials,211.20,0.00,211.20
Children and Young Peoples Services,Head of Childrens Social Care,085342,16 Hickstead Rise (previously 9 Cedar Ave),Supplies and Services,324117,Provisions E324,07-Jul-2020,000009123765571,TESCO STORES 2916,5411,Catering costs - provisions,41.22,0.00,41.22
Children and Young Peoples Services,Head of Education and Skills,071802,Louisa Cent Nursery,Supplies and Services,324117,Provisions E324,07-Jul-2020,000009123765579,ASDA SUPERSTORE,5411,Catering costs - provisions,25.27,0.00,25.27
"Regeneration, Economy and Growth",Development and Housing,030772,CLLD South,Supplies and Services,304403,Equipment and Materials,07-Jul-2020,000009123765665,AMZNMktplace,5999,Other consumables,199.99,33.33,166.66
"Regeneration, Economy and Growth",Development and Housing,030772,CLLD South,Supplies and Services,304221,Equipment and Materials,07-Jul-2020,000009123765675,SCREWFIX DIRECT,5200,Direct materials,139.99,23.33,116.66
Children and Young Peoples Services,Head of Childrens Social Care,085332,Middlestone Moor CU,Supplies and Services,384999,Miscellaneous Expenses,07-Jul-2020,000009123765679,Amazon.co.uk 0E03F8JY5,5969,Other expenses,4.06,0.68,3.38
Children and Young Peoples Services,Head of Childrens Social Care,085332,Middlestone Moor CU,Supplies and Services,384302,Miscellaneous Expenses,07-Jul-2020,000009123765681,TOPGEAR KARTING,7999,Activity expenses,35.00,0.00,35.00
Children and Young Peoples Services,Head of Childrens Social Care,085332,Middlestone Moor CU,Supplies and Services,384237,Miscellaneous Expenses,07-Jul-2020,000009123765685,TOPGEAR KARTING,7999,Recreational exps outings parties,123.00,0.00,123.00
Children and Young Peoples Services,Head of Early Help Inclusion & Vulnerable Children.,088107,Ferryhill & Newton Aycliffe 0-19 Community Family Hub,Supplies and Services,304403,Equipment and Materials,07-Jul-2020,000009123765699,AMZNMktplace,5999,Other consumables,5.95,0.99,4.96
Children and Young Peoples Services,Head of Early Help Inclusion & Vulnerable Children.,088107,Ferryhill & Newton Aycliffe 0-19 Community Family Hub,Supplies and Services,304403,Equipment and Materials,07-Jul-2020,000009123765705,AMZNMktplace,5999,Other consumables,5.95,0.99,4.96
Children and Young Peoples Services,Head of Early Help Inclusion & Vulnerable Children.,088107,Ferryhill & Newton Aycliffe 0-19 Community Family Hub,Supplies and Services,304403,Equipment and Materials,07-Jul-2020,000009123765707,AMZNMktplace,5999,Other consumables,5.95,0.99,4.96
Children and Young Peoples Services,Head of Early Help Inclusion & Vulnerable Children.,088107,Ferryhill & Newton Aycliffe 0-19 Community Family Hub,Supplies and Services,304403,Equipment and Materials,07-Jul-2020,000009123765709,AMZNMktplace,5999,Other consumables,5.95,0.99,4.96
Children and Young Peoples Services,Head of Early Help Inclusion & Vulnerable Children.,088107,Ferryhill & Newton Aycliffe 0-19 Community Family Hub,Supplies and Services,304403,Equipment and Materials,07-Jul-2020,000009123765711,AMZNMktplace,5999,Other consumables,5.95,0.99,4.96
Children and Young Peoples Services,Head of Early Help Inclusion & Vulnerable Children.,088107,Ferryhill & Newton Aycliffe 0-19 Community Family Hub,Supplies and Services,304403,Equipment and Materials,07-Jul-2020,000009123765713,AMZNMktplace,5999,Other consumables,5.95,0.99,4.96
Children and Young Peoples Services,Head of Early Help Inclusion & Vulnerable Children.,088107,Ferryhill & Newton Aycliffe 0-19 Community Family Hub,Supplies and Services,304403,Equipment and Materials,07-Jul-2020,000009123765715,AMZNMktplace,5999,Other consumables,5.95,0.99,4.96
Children and Young Peoples Services,Head of Early Help Inclusion & Vulnerable Children.,088107,Ferryhill & Newton Aycliffe 0-19 Community Family Hub,Supplies and Services,304403,Equipment and Materials,07-Jul-2020,000009123765719,AMZNMktplace,5999,Other consumables,5.95,0.99,4.96
Children and Young Peoples Services,Head of Early Help Inclusion & Vulnerable Children.,088107,Ferryhill & Newton Aycliffe 0-19 Community Family Hub,Supplies and Services,304403,Equipment and Materials,07-Jul-2020,000009123765721,AMZNMktplace,5999,Other consumables,5.95,0.99,4.96
Children and Young Peoples Services,Head of Early Help Inclusion & Vulnerable Children.,088107,Ferryhill & Newton Aycliffe 0-19 Community Family Hub,Supplies and Services,304403,Equipment and Materials,07-Jul-2020,000009123765723,AMZNMktplace,5999,Other consumables,5.95,0.99,4.96
Resources BK0010,Transformation,060125,Information Management,Supplies and Services,352001,Conference Expenses,07-Jul-2020,000009123765819,CONS INT ARCHIV,9399,Conferencesseminars fees etc,90.64,0.00,90.64
Adult and Health Services,Head of Adults,055310,Positive Journeys (Tudhoe),Supplies and Services,324117,Provisions E324,07-Jul-2020,000009123765835,TESCO STORES 6653,5411,Catering costs - provisions,2.99,0.00,2.99
Adult and Health Services,Head of Adults,055310,Positive Journeys (Tudhoe),Supplies and Services,324117,Provisions E324,07-Jul-2020,000009123765841,B&M 681 - DURHAM,5399,Catering costs - provisions,6.89,0.00,6.89
Adult and Health Services,Head of Adults,055310,Positive Journeys (Tudhoe),Supplies and Services,304999,Equipment and Materials,07-Jul-2020,000009123765843,HOME BARGAINS SUNDERLA,5251,Misc equipment tools and materials,5.34,0.00,5.34
Resources BK0010,Legal & Democratic Services,067910,Democratic Representation 067910,Supplies and Services,342033,Computers and Communications,07-Jul-2020,000009126234307,AMZNMKTPLACE AMAZON.CO,5999,Computer hardware,16.02,2.67,13.35
Resources BK0010,Legal & Democratic Services,067910,Democratic Representation 067910,Supplies and Services,342033,Computers and Communications,07-Jul-2020,000009126234307 - 1,AMZNMKTPLACE AMAZON.CO,5999,Computer hardware,19.96,,19.96
Children and Young Peoples Services,Head of Early Help Inclusion & Vulnerable Children.,085962,Aycliffe Secure - Durham,Supplies and Services,304403,Equipment and Materials,07-Jul-2020,000009126234675,AMZNMKTPLACE AMAZON.CO,5999,Other consumables,107.96,18.00,89.96
Children and Young Peoples Services,Head of Early Help Inclusion & Vulnerable Children.,085962,Aycliffe Secure - Durham,Supplies and Services,304403,Equipment and Materials,07-Jul-2020,000009126234689,BOOTS.COM,5912,Other consumables,31.48,0.00,31.48
Adult and Health Services,Head of Adults,055643,Hawthorn House LD Respite Unit,Supplies and Services,324117,Provisions E324,07-Jul-2020,000009126234907,BATLEYS PERTH,5300,Catering costs - provisions,24.44,0.00,24.44
Neighbourhoods and Climate Change,Environmental Services,031071,E&D - Sustainability and Climate Change,Supplies and Services,304403,Equipment and Materials,08-Jul-2020,000009123764371,AMZNMktplace,5999,Other consumables,79.99,0.00,79.99
Adult and Health Services,Head of Adults,052714,Development and Learning AHS 052714,Supplies and Services,342053,Computers and Communications,08-Jul-2020,000009123764379,MIRO.COM,7372,Computer software,4.24,0.00,4.24
Resources BK0010,Digital and Customer Services,070110,School Services - Man Info System (MIS) Support Team,Supplies and Services,342053,Computers and Communications,08-Jul-2020,000009123764381,WPMU DEV INCSUBFEE.COM,7372,Computer software,0.42,0.00,0.42
Children and Young Peoples Services,Head of Childrens Social Care,085332,Middlestone Moor CU,Supplies and Services,324117,Provisions E324,08-Jul-2020,000009123764509,TESCO STORES 2371,5411,Catering costs - provisions,152.97,0.00,152.97
Children and Young Peoples Services,Head of Early Help Inclusion & Vulnerable Children.,085954,Walworth,Supplies and Services,304403,Equipment and Materials,08-Jul-2020,000009123764681,AMZNMktplace,5999,Other consumables,19.77,0.00,19.77
Resources BK0010,Digital and Customer Services,065487,ICT Telephony Recharges,Supplies and Services,372009,Subscriptions E372,08-Jul-2020,000009123764777,WEB NETWORKSOLUTIONS,5968,Subscriptions 372009,1.06,0.00,1.06
Children and Young Peoples Services,Head of Childrens Social Care,085334,West Rainton Satelite Home,Supplies and Services,304403,Equipment and Materials,08-Jul-2020,000009123764809,AMZNMktplace,5999,Other consumables,13.99,0.00,13.99
Children and Young Peoples Services,Head of Childrens Social Care,085334,West Rainton Satelite Home,Supplies and Services,304403,Equipment and Materials,08-Jul-2020,000009123764815,AMZNMktplace,5999,Other consumables,13.99,0.00,13.99
Resources BK0010,Transformation,060125,Information Management,Supplies and Services,352001,Conference Expenses,08-Jul-2020,000009123765825,CONS INT ARCHIV,9399,Conferencesseminars fees etc,2.49,0.00,2.49
"Regeneration, Economy and Growth",Business Durham CL0850,030689,Inward Investment and Aftercare,Supplies and Services,304999,Equipment and Materials,08-Jul-2020,000009126234285,TSOHOST,5968,Misc equipment tools and materials,8.34,0.00,8.34
Children and Young Peoples Services,Head of Education and Skills,071801,Selby Cottage Childcare Centre,Supplies and Services,304999,Equipment and Materials,08-Jul-2020,000009126234299,Amazon Prime 2I0CP91Q5,5968,Misc equipment tools and materials,7.99,0.00,7.99
"Regeneration, Economy and Growth",Development and Housing,031599,Prevention Initiatives,Supplies and Services,348037,Subsistence E348,08-Jul-2020,000009126234313,HOTEL 52 STANLEY,5812,Subsistence,129.00,21.50,107.50
Children and Young Peoples Services,Head of Childrens Social Care,085332,Middlestone Moor CU,Supplies and Services,304259,Equipment and Materials,08-Jul-2020,000009126234339,CURRYS ONLINE,5732,Equipment-purchase and rental,299.00,0.00,299.00
Children and Young Peoples Services,Head of Early Help Inclusion & Vulnerable Children.,088104,BA/BC/Crook 0-19 Targeted Family Support,Supplies and Services,324117,Provisions E324,08-Jul-2020,000009126234453,TESCO STORES 6329,5411,Catering costs - provisions,10.40,0.00,10.40
Children and Young Peoples Services,Head of Early Help Inclusion & Vulnerable Children.,088104,BA/BC/Crook 0-19 Targeted Family Support,Supplies and Services,332047,Printing Stationery and Gen Off Exps,08-Jul-2020,000009126234461,AMZNMKTPLACE AMAZON.CO,5999,Stationery,23.94,3.99,19.95
Children and Young Peoples Services,Head of Early Help Inclusion & Vulnerable Children.,088104,BA/BC/Crook 0-19 Targeted Family Support,Supplies and Services,332047,Printing Stationery and Gen Off Exps,08-Jul-2020,000009126234461 - 1,AMZNMKTPLACE AMAZON.CO,5999,Stationery,0.03,,0.03
Children and Young Peoples Services,Head of Early Help Inclusion & Vulnerable Children.,088104,BA/BC/Crook 0-19 Targeted Family Support,Supplies and Services,384999,Miscellaneous Expenses,08-Jul-2020,000009126234465,HOME BARGAINS,5251,Other expenses,18.33,0.00,18.33
Children and Young Peoples Services,Head of Childrens Social Care,085517,Supporting Solutions Service (Edge of Care),Supplies and Services,304259,Equipment and Materials,08-Jul-2020,000009126234467,ARGOS LTD,5310,Equipment-purchase and rental,149.99,0.00,149.99
Children and Young Peoples Services,Head of Early Help Inclusion & Vulnerable Children.,088104,BA/BC/Crook 0-19 Targeted Family Support,Supplies and Services,324117,Provisions E324,08-Jul-2020,000009126234471,774 026,5411,Catering costs - provisions,46.30,0.00,46.30
Children and Young Peoples Services,Head of Early Help Inclusion & Vulnerable Children.,085954,Walworth,Supplies and Services,304403,Equipment and Materials,08-Jul-2020,000009126234497,AMZNMktplace,5999,Other consumables,28.97,4.83,24.14
Children and Young Peoples Services,Head of Early Help Inclusion & Vulnerable Children.,085954,Walworth,Supplies and Services,304403,Equipment and Materials,08-Jul-2020,000009126234499,AMZNMktplace,5999,Other consumables,64.98,10.83,54.15
Children and Young Peoples Services,Head of Early Help Inclusion & Vulnerable Children.,085954,Walworth,Supplies and Services,304403,Equipment and Materials,08-Jul-2020,000009126234499 - 1,AMZNMktplace,5999,Other consumables,11.32,,11.32
Children and Young Peoples Services,Head of Early Help Inclusion & Vulnerable Children.,085954,Walworth,Supplies and Services,304403,Equipment and Materials,08-Jul-2020,000009126234503,AMZNMktplace,5999,Other consumables,46.68,7.78,38.90
Children and Young Peoples Services,Head of Early Help Inclusion & Vulnerable Children.,085954,Walworth,Supplies and Services,304403,Equipment and Materials,08-Jul-2020,000009126234503 - 1,AMZNMktplace,5999,Other consumables,41.97,,41.97
Children and Young Peoples Services,Head of Childrens Social Care,085352,Tow Law CU,Supplies and Services,308011,Furniture,08-Jul-2020,000009126234567,IKEA LTD 143 GATESHEAD,5712,Furniture repair and replacement,324.00,0.00,324.00
Children and Young Peoples Services,Head of Education and Skills,071732,Dean Bank Childcare,Supplies and Services,304403,Equipment and Materials,08-Jul-2020,000009126234581,AMZNMktplace,5999,Other consumables,4.60,0.77,3.83
Children and Young Peoples Services,Head of Childrens Social Care,085334,West Rainton Satelite Home,Supplies and Services,304221,Equipment and Materials,08-Jul-2020,000009126234601,B & Q 1343,5200,Direct materials,42.00,0.00,42.00
Children and Young Peoples Services,Head of Childrens Social Care,085334,West Rainton Satelite Home,Supplies and Services,304403,Equipment and Materials,08-Jul-2020,000009126234671,AMZNMktplace,5999,Other consumables,170.70,0.00,170.70
Children and Young Peoples Services,Head of Early Help Inclusion & Vulnerable Children.,085962,Aycliffe Secure - Durham,Supplies and Services,328041,Clothing uniforms and laundry E328,08-Jul-2020,000009126234679,FOOTASYLUM PLC,5691,Clothing uniforms and laundry,88.97,0.00,88.97
Children and Young Peoples Services,Head of Early Help Inclusion & Vulnerable Children.,085957,Secure Management,Supplies and Services,384999,Miscellaneous Expenses,08-Jul-2020,000009126234683,Amazon.co.uk 3P9FZ9T15,5969,Other expenses,63.09,10.53,52.56
Children and Young Peoples Services,Head of Early Help Inclusion & Vulnerable Children.,085962,Aycliffe Secure - Durham,Supplies and Services,328041,Clothing uniforms and laundry E328,08-Jul-2020,000009126234691,FLANNELSFASHION.,5691,Clothing uniforms and laundry,97.99,16.33,81.66
"Regeneration, Economy and Growth",Development and Housing,031576,B& B - Temp Accom,Supplies and Services,364320,Grants to Voluntary Organisations,08-Jul-2020,000009126234711,HI NEWCASTLE WASHI,7011,Accommodation assistance,260.00,0.00,260.00
"Regeneration, Economy and Growth",Development and Housing,031576,B& B - Temp Accom,Supplies and Services,364320,Grants to Voluntary Organisations,08-Jul-2020,000009126234715,HI NEWCASTLE WASHI,7011,Accommodation assistance,260.00,0.00,260.00
"Regeneration, Economy and Growth",Development and Housing,031576,B& B - Temp Accom,Supplies and Services,364320,Grants to Voluntary Organisations,08-Jul-2020,000009126234717,HI NEWCASTLE WASHI,7011,Accommodation assistance,348.00,0.00,348.00
Children and Young Peoples Services,Head of Early Help Inclusion & Vulnerable Children.,088119,Durham 0-19 Community Family Hub,Supplies and Services,384999,Miscellaneous Expenses,08-Jul-2020,000009126234737,Amazon.co.uk JM2OE1KS5,5969,Other expenses,22.99,3.83,19.16
Children and Young Peoples Services,Head of Early Help Inclusion & Vulnerable Children.,088119,Durham 0-19 Community Family Hub,Supplies and Services,384999,Miscellaneous Expenses,08-Jul-2020,000009126234743,Amazon.co.uk 122ZU3IU5,5969,Other expenses,22.99,3.83,19.16
Children and Young Peoples Services,Head of Early Help Inclusion & Vulnerable Children.,088119,Durham 0-19 Community Family Hub,Supplies and Services,304403,Equipment and Materials,08-Jul-2020,000009126234745,AMZNMktplace,5999,Other consumables,12.98,0.00,12.98
Children and Young Peoples Services,Head of Early Help Inclusion & Vulnerable Children.,088119,Durham 0-19 Community Family Hub,Supplies and Services,304403,Equipment and Materials,08-Jul-2020,000009126234747,AMZNMktplace,5999,Other consumables,7.05,1.18,5.87
Children and Young Peoples Services,Head of Early Help Inclusion & Vulnerable Children.,088119,Durham 0-19 Community Family Hub,Supplies and Services,384999,Miscellaneous Expenses,08-Jul-2020,000009126234749,Amazon.co.uk SE7339J85,5969,Other expenses,6.98,1.17,5.81
"Regeneration, Economy and Growth",Development and Housing,031576,B& B - Temp Accom,Supplies and Services,364320,Grants to Voluntary Organisations,08-Jul-2020,000009126234761,BUDGET H EXPRESS HOTEL,7011,Accommodation assistance,89.00,14.83,74.17
Children and Young Peoples Services,Head of Early Help Inclusion & Vulnerable Children.,071569,Woodhouse Close Childrens Centre,Supplies and Services,304259,Equipment and Materials,08-Jul-2020,000009126234799,WILKO RETAIL LIMITED,5399,Equipment-purchase and rental,10.00,0.00,10.00
Children and Young Peoples Services,Head of Childrens Social Care,085341,High Etherley Satelite Home,Supplies and Services,304403,Equipment and Materials,08-Jul-2020,000009126234815,AMZNMKTPLACE AMAZON.CO,5999,Other consumables,76.82,0.00,76.82
Adult and Health Services,Head of Adults,055643,Hawthorn House LD Respite Unit,Supplies and Services,324117,Provisions E324,08-Jul-2020,000009126234837,WILKO RETAIL LIMITED,5399,Catering costs - provisions,8.50,0.00,8.50
Adult and Health Services,Head of Adults,055643,Hawthorn House LD Respite Unit,Supplies and Services,324117,Provisions E324,08-Jul-2020,000009126234841,ASDA STORES LTD 4313,5411,Catering costs - provisions,40.00,0.00,40.00
Children and Young Peoples Services,Head of Education and Skills,071802,Louisa Cent Nursery,Supplies and Services,304999,Equipment and Materials,08-Jul-2020,000009126234843,HOME BARGAINS,5251,Misc equipment tools and materials,23.63,0.00,23.63
Adult and Health Services,Head of Adults,055643,Hawthorn House LD Respite Unit,Supplies and Services,324117,Provisions E324,08-Jul-2020,000009126234913,JR HOLLAND FOODSERVICE,5499,Catering costs - provisions,14.62,0.00,14.62
Children and Young Peoples Services,Head of Childrens Social Care,085334,West Rainton Satelite Home,Supplies and Services,324117,Provisions E324,08-Jul-2020,000009126234923,PPOINT_ TAN GAGZ LTD 3,5411,Catering costs - provisions,9.80,0.00,9.80
Children and Young Peoples Services,Head of Early Help Inclusion & Vulnerable Children.,088115,North Area - Teenage Parent Programme,Supplies and Services,384302,Miscellaneous Expenses,08-Jul-2020,000009126234927,AMZNMktplace,5999,Activity expenses,37.92,6.36,31.56
Children and Young Peoples Services,Head of Early Help Inclusion & Vulnerable Children.,088115,North Area - Teenage Parent Programme,Supplies and Services,384302,Miscellaneous Expenses,08-Jul-2020,000009126234931,AMZNMktplace,5999,Activity expenses,23.40,3.92,19.48
Children and Young Peoples Services,Head of Early Help Inclusion & Vulnerable Children.,088115,North Area - Teenage Parent Programme,Supplies and Services,384302,Miscellaneous Expenses,08-Jul-2020,000009126234935,AMZNMktplace,5999,Activity expenses,6.99,1.17,5.82
Children and Young Peoples Services,Head of Early Help Inclusion & Vulnerable Children.,088115,North Area - Teenage Parent Programme,Supplies and Services,384302,Miscellaneous Expenses,08-Jul-2020,000009126234937,AMZNMktplace,5999,Activity expenses,29.88,5.04,24.84
Children and Young Peoples Services,Head of Early Help Inclusion & Vulnerable Children.,088115,North Area - Teenage Parent Programme,Supplies and Services,384302,Miscellaneous Expenses,08-Jul-2020,000009126234943,AMZNMktplace,5999,Activity expenses,9.70,1.62,8.08
Resources BK0010,Business Support,052986,CYPS - Locality and Operational Support,Supplies and Services,384302,Miscellaneous Expenses,08-Jul-2020,000009126234947,SAVERS HEALTH & BEAUTY,5912,Activity expenses,2.94,0.00,2.94
Children and Young Peoples Services,Head of Early Help Inclusion & Vulnerable Children.,088103,Consett & Stanley 0-19 Community Family Hub,Supplies and Services,384302,Miscellaneous Expenses,08-Jul-2020,000009126234951,WWW.THEWORKS.CO.UK,5310,Activity expenses,408.50,0.00,408.50
Resources BK0010,Business Support,052986,CYPS - Locality and Operational Support,Supplies and Services,384999,Miscellaneous Expenses,08-Jul-2020,000009126234971,Amazon.co.uk LM2AU3JO5,5969,Other expenses,52.76,0.00,52.76
Resources BK0010,Business Support,052986,CYPS - Locality and Operational Support,Supplies and Services,384999,Miscellaneous Expenses,08-Jul-2020,000009126234973,Amazon.co.uk Q94QO3T85,5969,Other expenses,42.61,7.10,35.51
Resources BK0010,Business Support,052986,CYPS - Locality and Operational Support,Supplies and Services,384999,Miscellaneous Expenses,08-Jul-2020,000009126234975,Amazon.co.uk 8J0IP5GE5,5969,Other expenses,52.76,0.00,52.76
Resources BK0010,Business Support,052986,CYPS - Locality and Operational Support,Supplies and Services,328041,Clothing uniforms and laundry E328,08-Jul-2020,000009126234977,ARGOS LTD,5310,Clothing uniforms and laundry,63.95,0.00,63.95
Regeneration and Local Services,COVID19 - Regeneration Economy and Growth,091004,COVID19 - Regeneration Economy and Growth,Supplies and Services,304259,Equipment and Materials,08-Jul-2020,000009126234983,AMZNMktplace,5999,Equipment-purchase and rental,169.80,28.30,141.50
Regeneration and Local Services,COVID19 - Regeneration Economy and Growth,091004,COVID19 - Regeneration Economy and Growth,Supplies and Services,304259,Equipment and Materials,08-Jul-2020,000009126234983 - 1,AMZNMktplace,5999,Equipment-purchase and rental,0.10,,0.10
Adult and Health Services,Head of Adults,055301,Stanley Pathways,Supplies and Services,324117,Provisions E324,08-Jul-2020,000009126234985,LIDL GB DURHAM,5411,Catering costs - provisions,2.30,0.00,2.30
"Regeneration, Economy and Growth",Development and Housing,031576,B& B - Temp Accom,Supplies and Services,364320,Grants to Voluntary Organisations,08-Jul-2020,000009126234989,BUDGET H EXPRESS HOTEL,7011,Accommodation assistance,297.00,0.00,297.00
Neighbourhoods and Climate Change,Environmental Services,010301,C&G - North Grounds Maintenance,Supplies and Services,304221,Equipment and Materials,08-Jul-2020,000009126234993,WWW.ARCO.CO.UK,5085,Direct materials,75.93,0.00,75.93
Children and Young Peoples Services,Head of Childrens Social Care,085352,Tow Law CU,Supplies and Services,304999,Equipment and Materials,08-Jul-2020,000009126235001,"BOOTS, 6551",5912,Misc equipment tools and materials,49.99,0.00,49.99
Children and Young Peoples Services,Head of Childrens Social Care,085352,Tow Law CU,Supplies and Services,308011,Furniture,08-Jul-2020,000009126235007,IKEA LTD 143 GATESHEAD,5712,Furniture repair and replacement,73.75,0.00,73.75
Children and Young Peoples Services,Head of Childrens Social Care,085342,16 Hickstead Rise (previously 9 Cedar Ave),Supplies and Services,324117,Provisions E324,08-Jul-2020,000009126235011,TESCO STORES 2916,5411,Catering costs - provisions,18.08,0.00,18.08
Children and Young Peoples Services,Head of Early Help Inclusion & Vulnerable Children.,088107,Ferryhill & Newton Aycliffe 0-19 Community Family Hub,Supplies and Services,304403,Equipment and Materials,08-Jul-2020,000009126235047,AMZNMktplace,5999,Other consumables,187.92,31.32,156.60
Children and Young Peoples Services,Head of Early Help Inclusion & Vulnerable Children.,088107,Ferryhill & Newton Aycliffe 0-19 Community Family Hub,Supplies and Services,304403,Equipment and Materials,08-Jul-2020,000009126235047 - 1,AMZNMktplace,5999,Other consumables,0.09,,0.09
Children and Young Peoples Services,Head of Early Help Inclusion & Vulnerable Children.,088107,Ferryhill & Newton Aycliffe 0-19 Community Family Hub,Supplies and Services,304403,Equipment and Materials,08-Jul-2020,000009126235053,AMZNMktplace,5999,Other consumables,36.90,6.16,30.74
Children and Young Peoples Services,Head of Early Help Inclusion & Vulnerable Children.,088107,Ferryhill & Newton Aycliffe 0-19 Community Family Hub,Supplies and Services,304403,Equipment and Materials,08-Jul-2020,000009126235055,AMZNMktplace,5999,Other consumables,6.95,1.16,5.79
Children and Young Peoples Services,Head of Early Help Inclusion & Vulnerable Children.,088107,Ferryhill & Newton Aycliffe 0-19 Community Family Hub,Supplies and Services,304403,Equipment and Materials,08-Jul-2020,000009126235057,AMZNMktplace,5999,Other consumables,59.10,0.00,59.10
Children and Young Peoples Services,Head of Early Help Inclusion & Vulnerable Children.,088107,Ferryhill & Newton Aycliffe 0-19 Community Family Hub,Supplies and Services,304403,Equipment and Materials,08-Jul-2020,000009126235059,AMZNMktplace,5999,Other consumables,8.99,1.50,7.49
Chief Executive's Office,Communications Management,060270,Communications and Marketing,Supplies and Services,336005,Advertising E336,08-Jul-2020,000009126235101,FACEBK Y387ZSA4B2,7311,Advertising other than for staff,500.00,0.00,500.00
Children and Young Peoples Services,Head of Childrens Social Care,085341,High Etherley Satelite Home,Supplies and Services,304221,Equipment and Materials,08-Jul-2020,000009126235113,HOMEBASE LTD 822,5200,Direct materials,75.00,0.00,75.00
Children and Young Peoples Services,Head of Childrens Social Care,085333,Coxhoe Satelite Home,Supplies and Services,324117,Provisions E324,08-Jul-2020,000009126235157,TESCO STORES 2371,5411,Catering costs - provisions,98.96,0.00,98.96
Children and Young Peoples Services,Head of Childrens Social Care,085333,Coxhoe Satelite Home,Supplies and Services,324117,Provisions E324,08-Jul-2020,000009126235161,B&M 681 - DURHAM,5399,Catering costs - provisions,24.96,0.00,24.96
Children and Young Peoples Services,Head of Childrens Social Care,085333,Coxhoe Satelite Home,Supplies and Services,304259,Equipment and Materials,08-Jul-2020,000009126235163,SPORTSDIRECT 264,5941,Equipment-purchase and rental,5.50,0.00,5.50
"Regeneration, Economy and Growth",Development and Housing,031576,B& B - Temp Accom,Supplies and Services,364320,Grants to Voluntary Organisations,08-Jul-2020,000009128841113,AYCLIFFE BIZ,7011,Accommodation assistance,38.00,0.00,38.00
Children and Young Peoples Services,Head of Childrens Social Care,085352,Tow Law CU,Supplies and Services,304403,Equipment and Materials,08-Jul-2020,000009128841213,AMZNMKTPLACE AMAZON.CO,5999,Other consumables,58.46,0.00,58.46
Children and Young Peoples Services,Head of Early Help Inclusion & Vulnerable Children.,088107,Ferryhill & Newton Aycliffe 0-19 Community Family Hub,Supplies and Services,304403,Equipment and Materials,09-Jul-2020,000009126235063,AMZNMktplace,5999,Other consumables,105.78,17.63,88.15
Children and Young Peoples Services,Head of Early Help Inclusion & Vulnerable Children.,088107,Ferryhill & Newton Aycliffe 0-19 Community Family Hub,Supplies and Services,304403,Equipment and Materials,09-Jul-2020,000009126235063 - 1,AMZNMktplace,5999,Other consumables,0.15,,0.15
"Regeneration, Economy and Growth",Business Durham CL0850,030689,Inward Investment and Aftercare,Supplies and Services,304999,Equipment and Materials,09-Jul-2020,000009128840497,MAILCHIMP MONTHLY,5968,Misc equipment tools and materials,81.04,0.00,81.04
Children and Young Peoples Services,Head of Childrens Social Care,085612,Families First Consett,Supplies and Services,364301,Grants to Voluntary Organisations,09-Jul-2020,000009128840521,AMZNMktplace,5999,Hardship,177.00,29.50,147.50
"Regeneration, Economy and Growth",Culture Sport and Tourism,011219,Office Services 011219,Supplies and Services,342033,Computers and Communications,09-Jul-2020,000009128840539,Amazon.co.uk ME84G1RM4,5969,Computer hardware,4.57,0.00,4.57
Children and Young Peoples Services,Head of Childrens Social Care,085501,Child Care Cases Legal Expenses,Supplies and Services,304403,Equipment and Materials,09-Jul-2020,000009128840581,CITY OF NEWCASTLE INTE,9399,Other consumables,11.00,0.00,11.00
Children and Young Peoples Services,Head of Childrens Social Care,085501,Child Care Cases Legal Expenses,Supplies and Services,304403,Equipment and Materials,09-Jul-2020,000009128840587,GEN REGISTER OFFICE,9399,Other consumables,14.00,0.00,14.00
Children and Young Peoples Services,Head of Education and Skills,075021,Youth Employment Initiative,Supplies and Services,364301,Grants to Voluntary Organisations,09-Jul-2020,000009128840593,CURRYS ONLINE,5732,Hardship,199.00,33.17,165.83
Children and Young Peoples Services,Head of Childrens Social Care,085333,Coxhoe Satelite Home,Supplies and Services,304403,Equipment and Materials,09-Jul-2020,000009128840645,AMZNMktplace,5999,Other consumables,5.94,0.99,4.95
"Regeneration, Economy and Growth",Development and Housing,030776,LINKCD Flexible Fund,Supplies and Services,304259,Equipment and Materials,09-Jul-2020,000009128840649,Durham County CNCL,9399,Equipment-purchase and rental,11.00,0.00,11.00
Children and Young Peoples Services,Head of Childrens Social Care,085332,Middlestone Moor CU,Supplies and Services,324117,Provisions E324,09-Jul-2020,000009128840673,LIDL GB SPENNYMOOR,5411,Catering costs - provisions,0.75,0.00,0.75
Children and Young Peoples Services,Head of Childrens Social Care,085332,Middlestone Moor CU,Supplies and Services,324117,Provisions E324,09-Jul-2020,000009128840681,SQ YOUNGS FISH BAR,5811,Catering costs - provisions,1.00,0.00,1.00
Children and Young Peoples Services,Head of Childrens Social Care,085332,Middlestone Moor CU,Supplies and Services,324117,Provisions E324,09-Jul-2020,000009128840687,SQ YOUNGS FISH BAR,5811,Catering costs - provisions,9.10,0.00,9.10
Children and Young Peoples Services,Head of Childrens Social Care,085332,Middlestone Moor CU,Supplies and Services,324117,Provisions E324,09-Jul-2020,000009128840689,ALDI 59 774,5411,Catering costs - provisions,2.48,0.00,2.48
Children and Young Peoples Services,Head of Early Help Inclusion & Vulnerable Children.,085965,Barnard,Supplies and Services,304403,Equipment and Materials,09-Jul-2020,000009128840693,AMZNMktplace,5999,Other consumables,16.99,2.83,14.16
Children and Young Peoples Services,Head of Early Help Inclusion & Vulnerable Children.,085965,Barnard,Supplies and Services,304403,Equipment and Materials,09-Jul-2020,000009128840699,AMZNMktplace,5999,Other consumables,10.99,1.83,9.16
Children and Young Peoples Services,Head of Early Help Inclusion & Vulnerable Children.,085954,Walworth,Supplies and Services,304403,Equipment and Materials,09-Jul-2020,000009128840701,AMZNMktplace,5999,Other consumables,63.96,10.68,53.28
Children and Young Peoples Services,Head of Early Help Inclusion & Vulnerable Children.,085962,Aycliffe Secure - Durham,Supplies and Services,304403,Equipment and Materials,09-Jul-2020,000009128840703,AMZNMktplace,5999,Other consumables,13.99,0.00,13.99
Children and Young Peoples Services,Head of Early Help Inclusion & Vulnerable Children.,085965,Barnard,Supplies and Services,304403,Equipment and Materials,09-Jul-2020,000009128840709,AMZNMktplace,5999,Other consumables,17.94,2.99,14.95
Children and Young Peoples Services,Head of Education and Skills,071732,Dean Bank Childcare,Supplies and Services,304403,Equipment and Materials,09-Jul-2020,000009128840819,AMZNMktplace,5999,Other consumables,2.19,0.37,1.82
Children and Young Peoples Services,Head of Education and Skills,071732,Dean Bank Childcare,Supplies and Services,304403,Equipment and Materials,09-Jul-2020,000009128840823,AMZNMktplace,5999,Other consumables,2.19,0.37,1.82
Children and Young Peoples Services,Head of Education and Skills,071732,Dean Bank Childcare,Supplies and Services,304403,Equipment and Materials,09-Jul-2020,000009128840827,AMZNMktplace,5999,Other consumables,2.19,0.37,1.82
Children and Young Peoples Services,Head of Education and Skills,071732,Dean Bank Childcare,Supplies and Services,304403,Equipment and Materials,09-Jul-2020,000009128840831,AMZNMktplace,5999,Other consumables,20.70,3.45,17.25
Children and Young Peoples Services,Head of Education and Skills,071732,Dean Bank Childcare,Supplies and Services,324117,Provisions E324,09-Jul-2020,000009128840833,B&M 035 - SHILDON,5399,Catering costs - provisions,145.13,0.00,145.13
Children and Young Peoples Services,Head of Childrens Social Care,085334,West Rainton Satelite Home,Supplies and Services,324117,Provisions E324,09-Jul-2020,000009128840851,TESCO STORES 2371,5411,Catering costs - provisions,28.45,0.00,28.45
Children and Young Peoples Services,Head of Childrens Social Care,085332,Middlestone Moor CU,Supplies and Services,348037,Subsistence E348,09-Jul-2020,000009128840875,PIZZA COTTAGE,5814,Subsistence,10.40,0.00,10.40
"Regeneration, Economy and Growth",Development and Housing,031500,Housing Solutions - Core Team,Supplies and Services,324117,Provisions E324,09-Jul-2020,000009128840963,TESCO STORES 2371,5411,Catering costs - provisions,33.00,0.00,33.00
"Regeneration, Economy and Growth",Development and Housing,031500,Housing Solutions - Core Team,Supplies and Services,352001,Conference Expenses,09-Jul-2020,000009128840969,HI NEWCASTLE WASHI,7011,Conferencesseminars fees etc,450.00,0.00,450.00
"Regeneration, Economy and Growth",Development and Housing,031500,Housing Solutions - Core Team,Supplies and Services,352001,Conference Expenses,09-Jul-2020,000009128840971,HI NEWCASTLE WASHI,7011,Conferencesseminars fees etc,450.00,0.00,450.00
"Regeneration, Economy and Growth",Development and Housing,031500,Housing Solutions - Core Team,Supplies and Services,352001,Conference Expenses,09-Jul-2020,000009128840975,HI NEWCASTLE WASHI,7011,Conferencesseminars fees etc,335.00,0.00,335.00
"Regeneration, Economy and Growth",Development and Housing,030776,LINKCD Flexible Fund,Supplies and Services,340001,Postages E340,09-Jul-2020,000009128840983,THE POST OFFICE,9402,Postages,2.45,0.00,2.45
Resources BK0010,Business Support,052986,CYPS - Locality and Operational Support,Supplies and Services,308011,Furniture,09-Jul-2020,000009128840989,J DODDS CARPETS LTD,5713,Furniture repair and replacement,258.00,0.00,258.00
"Regeneration, Economy and Growth",Development and Housing,031576,B& B - Temp Accom,Supplies and Services,364320,Grants to Voluntary Organisations,09-Jul-2020,000009128841029,AYCLIFFE BIZ,7011,Accommodation assistance,114.00,0.00,114.00
"Regeneration, Economy and Growth",Development and Housing,031576,B& B - Temp Accom,Supplies and Services,364320,Grants to Voluntary Organisations,09-Jul-2020,000009128841117,BUDGET H EXPRESS HOTEL,7011,Accommodation assistance,534.00,89.00,445.00
Neighbourhoods and Climate Change,Environmental Services,010367,C&G - South Grounds Maintenance,Supplies and Services,304221,Equipment and Materials,09-Jul-2020,000009128841175,CARRS BILLINGTON SPENN,5599,Direct materials,458.40,0.00,458.40
Children and Young Peoples Services,Head of Childrens Social Care,085352,Tow Law CU,Supplies and Services,308011,Furniture,09-Jul-2020,000009128841215,FRANKS THE FLOORING ST,5713,Furniture repair and replacement,435.00,0.00,435.00
Children and Young Peoples Services,Head of Childrens Social Care,085352,Tow Law CU,Supplies and Services,324117,Provisions E324,09-Jul-2020,000009128841217,774 026,5411,Catering costs - provisions,23.07,0.00,23.07
"Regeneration, Economy and Growth",Development and Housing,031576,B& B - Temp Accom,Supplies and Services,364320,Grants to Voluntary Organisations,09-Jul-2020,000009128841223,HOTEL 52 STANLEY,5812,Accommodation assistance,67.50,0.00,67.50
Children and Young Peoples Services,Head of Early Help Inclusion & Vulnerable Children.,088115,North Area - Teenage Parent Programme,Supplies and Services,384302,Miscellaneous Expenses,09-Jul-2020,000009128841277,AMZNMktplace,5999,Activity expenses,1.95,0.33,1.62
Children and Young Peoples Services,Head of Early Help Inclusion & Vulnerable Children.,088115,North Area - Teenage Parent Programme,Supplies and Services,384302,Miscellaneous Expenses,09-Jul-2020,000009128841281,AMZNMktplace,5999,Activity expenses,1.95,0.33,1.62
Children and Young Peoples Services,Head of Early Help Inclusion & Vulnerable Children.,088115,North Area - Teenage Parent Programme,Supplies and Services,384302,Miscellaneous Expenses,09-Jul-2020,000009128841287,AMZNMktplace,5999,Activity expenses,1.95,0.33,1.62
Children and Young Peoples Services,Head of Early Help Inclusion & Vulnerable Children.,088115,North Area - Teenage Parent Programme,Supplies and Services,384302,Miscellaneous Expenses,09-Jul-2020,000009128841289,AMZNMktplace,5999,Activity expenses,1.95,0.33,1.62
Children and Young Peoples Services,Head of Early Help Inclusion & Vulnerable Children.,088115,North Area - Teenage Parent Programme,Supplies and Services,384302,Miscellaneous Expenses,09-Jul-2020,000009128841295,AMZNMktplace,5999,Activity expenses,1.95,0.33,1.62
Children and Young Peoples Services,Head of Childrens Social Care,085334,West Rainton Satelite Home,Supplies and Services,324117,Provisions E324,09-Jul-2020,000009128841329,TESCO STORES 2371,5411,Catering costs - provisions,200.91,0.00,200.91
Children and Young Peoples Services,Head of Childrens Social Care,085334,West Rainton Satelite Home,Supplies and Services,324117,Provisions E324,09-Jul-2020,000009128841335,TESCO STORES 2371,5411,Catering costs - provisions,11.20,0.00,11.20
Children and Young Peoples Services,Head of Early Help Inclusion & Vulnerable Children.,085957,Secure Management,Supplies and Services,304403,Equipment and Materials,09-Jul-2020,000009128841339,AMZNMKTPLACE AMAZON.CO,5999,Other consumables,15.96,2.68,13.28
Children and Young Peoples Services,Head of Early Help Inclusion & Vulnerable Children.,085957,Secure Management,Supplies and Services,304403,Equipment and Materials,09-Jul-2020,000009128841345,AMZNMKTPLACE AMAZON.CO,5999,Other consumables,4.99,0.83,4.16
Children and Young Peoples Services,Head of Early Help Inclusion & Vulnerable Children.,085954,Walworth,Supplies and Services,328041,Clothing uniforms and laundry E328,09-Jul-2020,000009128841353,FOOTASYLUM PLC,5691,Clothing uniforms and laundry,29.99,0.00,29.99
Children and Young Peoples Services,Head of Early Help Inclusion & Vulnerable Children.,085957,Secure Management,Supplies and Services,384999,Miscellaneous Expenses,09-Jul-2020,000009128841359,INCCHOICE,5047,Other expenses,122.16,20.36,101.80
Children and Young Peoples Services,Head of Early Help Inclusion & Vulnerable Children.,085957,Secure Management,Supplies and Services,304245,Equipment and Materials,09-Jul-2020,000009128841365,FAST KEY SERVICES LIMI,7399,Materials,7.34,1.22,6.12
Resources BK0010,Business Support,052986,CYPS - Locality and Operational Support,Supplies and Services,384999,Miscellaneous Expenses,09-Jul-2020,000009128841373,Amazon.co.uk 3298A8EV5,5969,Other expenses,52.76,0.00,52.76
Resources BK0010,Business Support,052986,CYPS - Locality and Operational Support,Supplies and Services,342033,Computers and Communications,09-Jul-2020,000009128841377,WWW.SECURE-PAYMENT-SER,7372,Computer hardware,19.50,0.00,19.50
Children and Young Peoples Services,Head of Childrens Social Care,085333,Coxhoe Satelite Home,Supplies and Services,324117,Provisions E324,09-Jul-2020,000009128841385,WILKO RETAIL LIMITED,5399,Catering costs - provisions,1.60,0.00,1.60
Children and Young Peoples Services,Head of Childrens Social Care,085333,Coxhoe Satelite Home,Supplies and Services,324117,Provisions E324,09-Jul-2020,000009128841387,MARKS&SPENCER PLC,5411,Catering costs - provisions,42.60,0.00,42.60
"Regeneration, Economy and Growth",Development and Housing,031576,B& B - Temp Accom,Supplies and Services,364320,Grants to Voluntary Organisations,09-Jul-2020,000009128841395,BUDGET H EXPRESS HOTEL,7011,Accommodation assistance,99.00,0.00,99.00
"Regeneration, Economy and Growth",Development and Housing,031576,B& B - Temp Accom,Supplies and Services,364320,Grants to Voluntary Organisations,09-Jul-2020,000009128841399,HI NEWCASTLE WASHI,7011,Accommodation assistance,65.00,0.00,65.00
"Regeneration, Economy and Growth",Development and Housing,031576,B& B - Temp Accom,Supplies and Services,364320,Grants to Voluntary Organisations,09-Jul-2020,000009128841405,HI NEWCASTLE WASHI,7011,Accommodation assistance,130.00,0.00,130.00
Children and Young Peoples Services,Head of Childrens Social Care,085342,16 Hickstead Rise (previously 9 Cedar Ave),Supplies and Services,324117,Provisions E324,09-Jul-2020,000009128841425,TESCO STORES 2916,5411,Catering costs - provisions,96.11,0.00,96.11
Resources BK0010,Business Support,052986,CYPS - Locality and Operational Support,Supplies and Services,324117,Provisions E324,09-Jul-2020,000009128841445,ASDA GEORGE COM LEEDS,5411,Catering costs - provisions,30.00,0.00,30.00
Children and Young Peoples Services,Head of Early Help Inclusion & Vulnerable Children.,088107,Ferryhill & Newton Aycliffe 0-19 Community Family Hub,Supplies and Services,304403,Equipment and Materials,09-Jul-2020,000009128841463,AMZNMktplace,5999,Other consumables,13.47,2.25,11.22
Children and Young Peoples Services,Head of Early Help Inclusion & Vulnerable Children.,088107,Ferryhill & Newton Aycliffe 0-19 Community Family Hub,Supplies and Services,304403,Equipment and Materials,09-Jul-2020,000009128841469,AMZNMktplace,5999,Other consumables,13.47,2.25,11.22
Chief Executive's Office,Communications Management,060270,Communications and Marketing,Supplies and Services,336005,Advertising E336,09-Jul-2020,000009128841491,LINKEDIN,5968,Advertising other than for staff,18.55,0.00,18.55
Adult and Health Services,Head of Adults,055310,Positive Journeys (Tudhoe),Supplies and Services,324117,Provisions E324,09-Jul-2020,000009128841495,CO-OP GROUP FOOD,5411,Catering costs - provisions,1.50,0.00,1.50
"Regeneration, Economy and Growth",Development and Housing,030771,Durham Advance Flexible Fund,Transport,235057,Public Transport,09-Jul-2020,000009128841577,GO NORTH EAST LIMITED,4131,Staff travelling,7.00,0.00,7.00
Children and Young Peoples Services,Head of Childrens Social Care,085380,Operations Manager LAC Resources,Supplies and Services,328041,Clothing uniforms and laundry E328,09-Jul-2020,000009132174375,ARGOS LTD,5310,Clothing uniforms and laundry,152.95,0.00,152.95
Children and Young Peoples Services,Head of Childrens Social Care,085342,16 Hickstead Rise (previously 9 Cedar Ave),Supplies and Services,308011,Furniture,09-Jul-2020,000009132174985,IKEA LTD SHOP ONLINE,5712,Furniture repair and replacement,289.00,0.00,289.00
"Regeneration, Economy and Growth",Development and Housing,031500,Housing Solutions - Core Team,Supplies and Services,328041,Clothing uniforms and laundry E328,09-Jul-2020,000009132175399,ARGOS LTD,5310,Clothing uniforms and laundry,4.99,0.00,4.99
"Regeneration, Economy and Growth",Development and Housing,030771,Durham Advance Flexible Fund,Supplies and Services,304259,Equipment and Materials,09-Jul-2020,000009132177959,DVSA LEARNER,9399,Equipment-purchase and rental,11.00,0.00,11.00
Children and Young Peoples Services,Head of Education and Skills,070169,Durham SSP,Supplies and Services,304403,Equipment and Materials,09-Jul-2020,9128841439,WWW.KNOWLEDGEGRAB.COM,7392,Other consumables,118.80,0.00,118.80
"Regeneration, Economy and Growth",Business Durham CL0850,030689,Inward Investment and Aftercare,Supplies and Services,304999,Equipment and Materials,10-Jul-2020,000009128840501,MAILCHIMP MONTHLY,5968,Misc equipment tools and materials,2.23,0.00,2.23
Children and Young Peoples Services,Head of Early Help Inclusion & Vulnerable Children.,085965,Barnard,Supplies and Services,304403,Equipment and Materials,10-Jul-2020,000009128840711,AMZNMktplace,5999,Other consumables,21.90,3.65,18.25
Children and Young Peoples Services,Head of Early Help Inclusion & Vulnerable Children.,088119,Durham 0-19 Community Family Hub,Supplies and Services,304403,Equipment and Materials,10-Jul-2020,000009128841057,AMZNMktplace,5999,Other consumables,50.82,8.47,42.35
Children and Young Peoples Services,Head of Early Help Inclusion & Vulnerable Children.,088119,Durham 0-19 Community Family Hub,Supplies and Services,304403,Equipment and Materials,10-Jul-2020,000009128841057 - 1,AMZNMktplace,5999,Other consumables,80.90,,80.90
"Regeneration, Economy and Growth",Business Durham CL0850,030689,Inward Investment and Aftercare,Third Party Payments,430100,Rendered by Private Contractors,10-Jul-2020,000009132173431,BLS monday.com,7399,Payments to sub-contractors,148.80,0.00,148.80
Children and Young Peoples Services,Head of Childrens Social Care,085341,High Etherley Satelite Home,Supplies and Services,324117,Provisions E324,10-Jul-2020,000009132173467,TESCO STORES 6329,5411,Catering costs - provisions,32.00,0.00,32.00
Children and Young Peoples Services,Head of Childrens Social Care,085341,High Etherley Satelite Home,Supplies and Services,324117,Provisions E324,10-Jul-2020,000009132173479,774 026,5411,Catering costs - provisions,32.60,0.00,32.60
Children and Young Peoples Services,Head of Education and Skills,071801,Selby Cottage Childcare Centre,Supplies and Services,304403,Equipment and Materials,10-Jul-2020,000009132173545,AMZNMKTPLACE AMAZON.CO,5999,Other consumables,15.00,2.50,12.50
"Regeneration, Economy and Growth",Development and Housing,031576,B& B - Temp Accom,Supplies and Services,364320,Grants to Voluntary Organisations,10-Jul-2020,000009132173601,HI NEWCASTLE WASHI,7011,Accommodation assistance,325.00,0.00,325.00
"Regeneration, Economy and Growth",Development and Housing,031576,B& B - Temp Accom,Supplies and Services,364320,Grants to Voluntary Organisations,10-Jul-2020,000009132173613,HI NEWCASTLE WASHI,7011,Accommodation assistance,130.00,0.00,130.00
"Regeneration, Economy and Growth",Development and Housing,031599,Prevention Initiatives,Supplies and Services,352001,Conference Expenses,10-Jul-2020,000009132173647,AYCLIFFE BIZ,7011,Conferencesseminars fees etc,190.00,0.00,190.00
"Regeneration, Economy and Growth",Development and Housing,031599,Prevention Initiatives,Supplies and Services,352001,Conference Expenses,10-Jul-2020,000009132173653,BUDGET H EXPRESS HOTEL,7011,Conferencesseminars fees etc,300.00,0.00,300.00
"Regeneration, Economy and Growth",Development and Housing,031599,Prevention Initiatives,Supplies and Services,352001,Conference Expenses,10-Jul-2020,000009132173657,BUDGET H EXPRESS HOTEL,7011,Conferencesseminars fees etc,200.00,0.00,200.00
Children and Young Peoples Services,Head of Childrens Social Care,085501,Child Care Cases Legal Expenses,Supplies and Services,304403,Equipment and Materials,10-Jul-2020,000009132173715,SUNDERLAND CC,7523,Other consumables,11.00,0.00,11.00
"Regeneration, Economy and Growth",Development and Housing,030773,CLLD North,Supplies and Services,384999,Miscellaneous Expenses,10-Jul-2020,000009132173743,Amazon.co.uk ZG1AA1CW5,5969,Other expenses,89.99,0.00,89.99
"Regeneration, Economy and Growth",Development and Housing,031500,Housing Solutions - Core Team,Supplies and Services,352001,Conference Expenses,10-Jul-2020,000009132173763,GRAINGER APARTMENTS NE,7011,Conferencesseminars fees etc,150.00,0.00,150.00
Children and Young Peoples Services,Head of Education and Skills,075021,Youth Employment Initiative,Supplies and Services,364301,Grants to Voluntary Organisations,10-Jul-2020,000009132173777,CURRYS ONLINE,5732,Hardship,199.00,33.17,165.83
Children and Young Peoples Services,Head of Childrens Social Care,085352,Tow Law CU,Supplies and Services,328041,Clothing uniforms and laundry E328,10-Jul-2020,000009132173975,Nike Store 00802,5655,Clothing uniforms and laundry,36.40,0.00,36.40
Children and Young Peoples Services,Head of Childrens Social Care,085352,Tow Law CU,Supplies and Services,324117,Provisions E324,10-Jul-2020,000009132173985,HERON FOODS,5499,Catering costs - provisions,18.49,0.00,18.49
Children and Young Peoples Services,Head of Childrens Social Care,085358,Orchard House Sacriston Solo Home,Supplies and Services,324117,Provisions E324,10-Jul-2020,000009132173993,B&M 681 - DURHAM,5399,Catering costs - provisions,70.00,0.00,70.00
Children and Young Peoples Services,Head of Childrens Social Care,085352,Tow Law CU,Supplies and Services,348037,Subsistence E348,10-Jul-2020,000009132173999,IZ Perla Nera,5812,Subsistence,22.60,0.00,22.60
Children and Young Peoples Services,Head of Childrens Social Care,085352,Tow Law CU,Supplies and Services,304259,Equipment and Materials,10-Jul-2020,000009132174005,J D SPORTS,5941,Equipment-purchase and rental,59.10,0.00,59.10
Children and Young Peoples Services,Head of Early Help Inclusion & Vulnerable Children.,088104,BA/BC/Crook 0-19 Targeted Family Support,Supplies and Services,304259,Equipment and Materials,10-Jul-2020,000009132174313,TESCO STORES 6329,5411,Equipment-purchase and rental,3.00,0.00,3.00
Children and Young Peoples Services,Head of Early Help Inclusion & Vulnerable Children.,088104,BA/BC/Crook 0-19 Targeted Family Support,Supplies and Services,324117,Provisions E324,10-Jul-2020,000009132174325,774 026,5411,Catering costs - provisions,3.78,0.00,3.78
Children and Young Peoples Services,Head of Education and Skills,071733,Shildon Childcare,Supplies and Services,324117,Provisions E324,10-Jul-2020,000009132174347,TOTAL PRODUCE GATESHEA,5411,Catering costs - provisions,111.94,0.00,111.94
"Regeneration, Economy and Growth",Culture Sport and Tourism,054812,Gala Theatre - Catering etc,Supplies and Services,324117,Provisions E324,10-Jul-2020,000009132174353,BESTWAY WHOLESALE,5451,Catering costs - provisions,505.12,0.00,505.12
"Regeneration, Economy and Growth",Culture Sport and Tourism,054812,Gala Theatre - Catering etc,Supplies and Services,324117,Provisions E324,10-Jul-2020,000009132174359,BESTWAY WHOLESALE,5451,Catering costs - provisions,670.12,0.00,670.12
"Regeneration, Economy and Growth",Culture Sport and Tourism,054812,Gala Theatre - Catering etc,Supplies and Services,324117,Provisions E324,10-Jul-2020,000009132174365,BESTWAY WHOLESALE,5451,Catering costs - provisions,635.27,0.00,635.27
Children and Young Peoples Services,Head of Early Help Inclusion & Vulnerable Children.,085962,Aycliffe Secure - Durham,Supplies and Services,304403,Equipment and Materials,10-Jul-2020,000009132174527,AMZNMktplace,5999,Other consumables,8.46,1.41,7.05
Children and Young Peoples Services,Head of Early Help Inclusion & Vulnerable Children.,085965,Barnard,Supplies and Services,304403,Equipment and Materials,10-Jul-2020,000009132174537,AMZNMktplace,5999,Other consumables,16.85,2.81,14.04
Children and Young Peoples Services,Head of Early Help Inclusion & Vulnerable Children.,085954,Walworth,Supplies and Services,304403,Equipment and Materials,10-Jul-2020,000009132174543,AMZNMktplace,5999,Other consumables,32.95,0.00,32.95
Children and Young Peoples Services,Head of Early Help Inclusion & Vulnerable Children.,085965,Barnard,Supplies and Services,304403,Equipment and Materials,10-Jul-2020,000009132174551,AMZNMktplace,5999,Other consumables,26.36,0.00,26.36
Children and Young Peoples Services,Head of Early Help Inclusion & Vulnerable Children.,085962,Aycliffe Secure - Durham,Supplies and Services,304403,Equipment and Materials,10-Jul-2020,000009132174557,AMZNMktplace,5999,Other consumables,12.95,0.00,12.95
Children and Young Peoples Services,Head of Early Help Inclusion & Vulnerable Children.,085962,Aycliffe Secure - Durham,Supplies and Services,304403,Equipment and Materials,10-Jul-2020,000009132174569,AMZNMktplace,5999,Other consumables,17.59,2.93,14.66
Children and Young Peoples Services,Head of Early Help Inclusion & Vulnerable Children.,085962,Aycliffe Secure - Durham,Supplies and Services,304403,Equipment and Materials,10-Jul-2020,000009132174575,AMZNMktplace,5999,Other consumables,33.70,5.62,28.08
"Regeneration, Economy and Growth",Development and Housing,030772,CLLD South,Supplies and Services,304221,Equipment and Materials,10-Jul-2020,000009132174633,SCREWFIX DIRECT,5200,Direct materials,474.57,0.00,474.57
Children and Young Peoples Services,Head of Childrens Social Care,085352,Tow Law CU,Supplies and Services,324117,Provisions E324,10-Jul-2020,000009132174719,ASDA STORES LTD 4313,5411,Catering costs - provisions,35.00,0.00,35.00
Children and Young Peoples Services,Head of Childrens Social Care,085352,Tow Law CU,Supplies and Services,304259,Equipment and Materials,10-Jul-2020,000009132174729,CURRYS ONLINE,5732,Equipment-purchase and rental,199.00,0.00,199.00
Children and Young Peoples Services,Head of Childrens Social Care,085352,Tow Law CU,Supplies and Services,348037,Subsistence E348,10-Jul-2020,000009132174743,PARK FOOT CARAVAN,5812,Subsistence,113.50,0.00,113.50
Children and Young Peoples Services,Head of Childrens Social Care,085352,Tow Law CU,Supplies and Services,304259,Equipment and Materials,10-Jul-2020,000009132174751,SPORTSDIRECT 145,5941,Equipment-purchase and rental,27.00,0.00,27.00
Neighbourhoods and Climate Change,Environmental Services,010551,Fleet - Chilton Fleet,Transport,215013,Running Costs of Vehicles,10-Jul-2020,000009132174799,DVLA VEHICLE TAX,9311,Vehicle Excise Duty (VED),267.50,0.00,267.50
Neighbourhoods and Climate Change,Environmental Services,010900,Fleet - Meadowfield Fleet,Transport,215013,Running Costs of Vehicles,10-Jul-2020,000009132174821,DVLA VEHICLE TAX,9311,Vehicle Excise Duty (VED),267.50,0.00,267.50
Neighbourhoods and Climate Change,Environmental Services,010900,Fleet - Meadowfield Fleet,Transport,215013,Running Costs of Vehicles,10-Jul-2020,000009132174825,DVLA VEHICLE TAX,9311,Vehicle Excise Duty (VED),167.50,0.00,167.50
Neighbourhoods and Climate Change,Environmental Services,010561,Fleet - Morrison Busty Fleet,Transport,215013,Running Costs of Vehicles,10-Jul-2020,000009132174837,DVLA VEHICLE TAX,9311,Vehicle Excise Duty (VED),267.50,0.00,267.50
Neighbourhoods and Climate Change,Environmental Services,010561,Fleet - Morrison Busty Fleet,Transport,215013,Running Costs of Vehicles,10-Jul-2020,000009132174843,DVLA VEHICLE TAX,9311,Vehicle Excise Duty (VED),167.50,0.00,167.50
Neighbourhoods and Climate Change,Environmental Services,010900,Fleet - Meadowfield Fleet,Transport,215013,Running Costs of Vehicles,10-Jul-2020,000009132174849,DVLA VEHICLE TAX,9311,Vehicle Excise Duty (VED),267.50,0.00,267.50
Neighbourhoods and Climate Change,Environmental Services,010561,Fleet - Morrison Busty Fleet,Transport,215013,Running Costs of Vehicles,10-Jul-2020,000009132174851,DVLA VEHICLE TAX,9311,Vehicle Excise Duty (VED),267.50,0.00,267.50
Neighbourhoods and Climate Change,Environmental Services,010551,Fleet - Chilton Fleet,Transport,215013,Running Costs of Vehicles,10-Jul-2020,000009132174857,DVLA VEHICLE TAX,9311,Vehicle Excise Duty (VED),267.50,0.00,267.50
Neighbourhoods and Climate Change,Environmental Services,010900,Fleet - Meadowfield Fleet,Transport,215013,Running Costs of Vehicles,10-Jul-2020,000009132174861,DVLA VEHICLE TAX,9311,Vehicle Excise Duty (VED),167.50,0.00,167.50
Neighbourhoods and Climate Change,Environmental Services,010551,Fleet - Chilton Fleet,Transport,215013,Running Costs of Vehicles,10-Jul-2020,000009132174869,DVLA VEHICLE TAX,9311,Vehicle Excise Duty (VED),267.50,0.00,267.50
Neighbourhoods and Climate Change,Environmental Services,010561,Fleet - Morrison Busty Fleet,Transport,215013,Running Costs of Vehicles,10-Jul-2020,000009132174877,DVLA VEHICLE TAX,9311,Vehicle Excise Duty (VED),267.50,0.00,267.50
Neighbourhoods and Climate Change,Environmental Services,010900,Fleet - Meadowfield Fleet,Transport,215013,Running Costs of Vehicles,10-Jul-2020,000009132174881,DVLA VEHICLE TAX,9311,Vehicle Excise Duty (VED),267.50,0.00,267.50
Neighbourhoods and Climate Change,Environmental Services,010900,Fleet - Meadowfield Fleet,Transport,215013,Running Costs of Vehicles,10-Jul-2020,000009132174885,DVLA VEHICLE TAX,9311,Vehicle Excise Duty (VED),267.50,0.00,267.50
Neighbourhoods and Climate Change,Environmental Services,010900,Fleet - Meadowfield Fleet,Transport,215013,Running Costs of Vehicles,10-Jul-2020,000009132174891,DVLA VEHICLE TAX,9311,Vehicle Excise Duty (VED),267.50,0.00,267.50
Neighbourhoods and Climate Change,Environmental Services,010561,Fleet - Morrison Busty Fleet,Transport,215013,Running Costs of Vehicles,10-Jul-2020,000009132174897,DVLA VEHICLE TAX,9311,Vehicle Excise Duty (VED),267.50,0.00,267.50
Neighbourhoods and Climate Change,Environmental Services,010561,Fleet - Morrison Busty Fleet,Transport,215013,Running Costs of Vehicles,10-Jul-2020,000009132174903,DVLA VEHICLE TAX,9311,Vehicle Excise Duty (VED),167.50,0.00,167.50
Neighbourhoods and Climate Change,Environmental Services,010900,Fleet - Meadowfield Fleet,Transport,215013,Running Costs of Vehicles,10-Jul-2020,000009132174909,DVLA VEHICLE TAX,9311,Vehicle Excise Duty (VED),167.50,0.00,167.50
Neighbourhoods and Climate Change,Environmental Services,010900,Fleet - Meadowfield Fleet,Transport,215013,Running Costs of Vehicles,10-Jul-2020,000009132174913,DVLA VEHICLE TAX,9311,Vehicle Excise Duty (VED),267.50,0.00,267.50
Neighbourhoods and Climate Change,Environmental Services,010900,Fleet - Meadowfield Fleet,Transport,215013,Running Costs of Vehicles,10-Jul-2020,000009132174921,DVLA VEHICLE TAX,9311,Vehicle Excise Duty (VED),167.50,0.00,167.50
Children and Young Peoples Services,Head of Childrens Social Care,085332,Middlestone Moor CU,Transport,215995,Running Costs of Vehicles,10-Jul-2020,000009132175185,PARK HEAD SERVICE,5541,Vehicle running expenses,40.03,0.00,40.03
"Regeneration, Economy and Growth",Development and Housing,030771,Durham Advance Flexible Fund,Supplies and Services,304403,Equipment and Materials,10-Jul-2020,000009132175249,AMZNMktplace,5999,Other consumables,533.49,0.00,533.49
"Regeneration, Economy and Growth",Development and Housing,030771,Durham Advance Flexible Fund,Supplies and Services,384700,Miscellaneous Expenses,10-Jul-2020,000009132175387,GEN REGISTER OFFICE,9399,Miscellaneous grants,14.00,0.00,14.00
"Regeneration, Economy and Growth",Development and Housing,031576,B& B - Temp Accom,Supplies and Services,364320,Grants to Voluntary Organisations,10-Jul-2020,000009132175581,AYCLIFFE BIZ,7011,Accommodation assistance,152.00,0.00,152.00
"Regeneration, Economy and Growth",Development and Housing,031576,B& B - Temp Accom,Supplies and Services,364320,Grants to Voluntary Organisations,10-Jul-2020,000009132175591,HI NEWCASTLE WASHI,7011,Accommodation assistance,195.00,0.00,195.00
"Regeneration, Economy and Growth",Development and Housing,031576,B& B - Temp Accom,Supplies and Services,364320,Grants to Voluntary Organisations,10-Jul-2020,000009132175597,HI NEWCASTLE WASHI,7011,Accommodation assistance,100.00,0.00,100.00
"Regeneration, Economy and Growth",Development and Housing,031576,B& B - Temp Accom,Supplies and Services,364320,Grants to Voluntary Organisations,10-Jul-2020,000009132175603,HI NEWCASTLE WASHI,7011,Accommodation assistance,195.00,0.00,195.00
"Regeneration, Economy and Growth",Development and Housing,031576,B& B - Temp Accom,Supplies and Services,364320,Grants to Voluntary Organisations,10-Jul-2020,000009132175605,WWW.ROOMZZZ.COM,7011,Accommodation assistance,630.00,0.00,630.00
"Regeneration, Economy and Growth",Development and Housing,031500,Housing Solutions - Core Team,Supplies and Services,352001,Conference Expenses,10-Jul-2020,000009132175639,AYCLIFFE BIZ,7011,Conferencesseminars fees etc,76.00,0.00,76.00
Children and Young Peoples Services,Head of Childrens Social Care,085331,New Lea Childrens Home,Supplies and Services,304999,Equipment and Materials,10-Jul-2020,000009132175655,COSTCO WHOLESALE UK,7278,Misc equipment tools and materials,87.62,0.00,87.62
Children and Young Peoples Services,Head of Childrens Social Care,085331,New Lea Childrens Home,Supplies and Services,324117,Provisions E324,10-Jul-2020,000009132175665,ASDA SUPERSTORE,5411,Catering costs - provisions,46.55,0.00,46.55
Children and Young Peoples Services,Head of Childrens Social Care,085331,New Lea Childrens Home,Supplies and Services,304403,Equipment and Materials,10-Jul-2020,000009132175675,CARD FACTORY,5947,Other consumables,35.78,0.00,35.78
Children and Young Peoples Services,Head of Childrens Social Care,085331,New Lea Childrens Home,Supplies and Services,348037,Subsistence E348,10-Jul-2020,000009132175685,MCDONALDS 1555,5814,Subsistence,9.18,0.00,9.18
Children and Young Peoples Services,Head of Childrens Social Care,085331,New Lea Childrens Home,Supplies and Services,384999,Miscellaneous Expenses,10-Jul-2020,000009132175691,H SAMUEL,5944,Other expenses,14.50,0.00,14.50
"Regeneration, Economy and Growth",Development and Housing,031576,B& B - Temp Accom,Supplies and Services,364320,Grants to Voluntary Organisations,10-Jul-2020,000009132175951,AYCLIFFE BIZ,7011,Accommodation assistance,152.00,0.00,152.00
Children and Young Peoples Services,Head of Childrens Social Care,085622,Families First Ferryhill,Supplies and Services,364301,Grants to Voluntary Organisations,10-Jul-2020,000009132176137,B&M 134 - BISHOP AUCKL,5399,Hardship,20.00,0.00,20.00
Children and Young Peoples Services,Head of Childrens Social Care,085622,Families First Ferryhill,Supplies and Services,364301,Grants to Voluntary Organisations,10-Jul-2020,000009132176147,WILKO RETAIL LIMITED,5399,Hardship,79.00,0.00,79.00
Children and Young Peoples Services,Head of Childrens Social Care,085352,Tow Law CU,Supplies and Services,324117,Provisions E324,10-Jul-2020,000009132176545,TESCO STORES 2371,5411,Catering costs - provisions,168.30,0.00,168.30
Children and Young Peoples Services,Head of Childrens Social Care,085352,Tow Law CU,Supplies and Services,324117,Provisions E324,10-Jul-2020,000009132176557,TESCO STORES 2371,5411,Catering costs - provisions,39.10,0.00,39.10
Children and Young Peoples Services,Head of Childrens Social Care,085352,Tow Law CU,Supplies and Services,304403,Equipment and Materials,10-Jul-2020,000009132176561,TIMPSON LTD,5999,Other consumables,42.00,0.00,42.00
"Regeneration, Economy and Growth",Development and Housing,031576,B& B - Temp Accom,Supplies and Services,364320,Grants to Voluntary Organisations,10-Jul-2020,000009132176655,BUDGET H EXPRESS HOTEL,7011,Accommodation assistance,400.00,0.00,400.00
"Regeneration, Economy and Growth",Development and Housing,031576,B& B - Temp Accom,Supplies and Services,364320,Grants to Voluntary Organisations,10-Jul-2020,000009132176669,BUDGET H EXPRESS HOTEL,7011,Accommodation assistance,400.00,0.00,400.00
Adult and Health Services,Head of Adults,055643,Hawthorn House LD Respite Unit,Supplies and Services,324117,Provisions E324,10-Jul-2020,000009132176757,HOPWELLS LTD,5811,Catering costs - provisions,1.50,0.25,1.25
Adult and Health Services,Head of Adults,055643,Hawthorn House LD Respite Unit,Supplies and Services,324117,Provisions E324,10-Jul-2020,000009132176757 - 1,HOPWELLS LTD,5811,Catering costs - provisions,38.72,,38.72
Adult and Health Services,Head of Adults,055643,Hawthorn House LD Respite Unit,Supplies and Services,324117,Provisions E324,10-Jul-2020,000009132176773,JR HOLLAND FOODSERVICE,5499,Catering costs - provisions,17.64,0.00,17.64
Adult and Health Services,Head of Adults,055643,Hawthorn House LD Respite Unit,Supplies and Services,324117,Provisions E324,10-Jul-2020,000009132176779,JR HOLLAND FOODSERVICE,5499,Catering costs - provisions,15.33,0.00,15.33
Children and Young Peoples Services,Head of Education and Skills,070155,Inspection-HQ,Supplies and Services,384999,Miscellaneous Expenses,10-Jul-2020,000009132176805,PAYPAL TEACHERHEAD,8211,Other expenses,70.00,0.00,70.00
Resources BK0010,Digital and Customer Services,065335,School Services - Implementations,Supplies and Services,304639,Equipment and Materials,10-Jul-2020,000009132176911,REPLACEBASE,5732,Technicians-supplies,271.66,45.28,226.38
Children and Young Peoples Services,Head of Childrens Social Care,085342,16 Hickstead Rise (previously 9 Cedar Ave),Supplies and Services,304259,Equipment and Materials,10-Jul-2020,000009132176931,CURRYS ONLINE,5732,Equipment-purchase and rental,279.99,0.00,279.99
Children and Young Peoples Services,Head of Early Help Inclusion & Vulnerable Children.,085957,Secure Management,Supplies and Services,304403,Equipment and Materials,10-Jul-2020,000009132176961,BARRINGTON,5734,Other consumables,129.00,21.50,107.50
Children and Young Peoples Services,Head of Early Help Inclusion & Vulnerable Children.,085954,Walworth,Supplies and Services,328041,Clothing uniforms and laundry E328,10-Jul-2020,000009132176967,FOOTASYLUM PLC,5691,Clothing uniforms and laundry,-114.99,0.00,-114.99
Regeneration and Local Services,COVID19 - Regeneration Economy and Growth,091004,COVID19 - Regeneration Economy and Growth,Supplies and Services,304259,Equipment and Materials,10-Jul-2020,000009132177025,AMZNMKTPLACE AMAZON.CO,5999,Equipment-purchase and rental,15.64,2.61,13.03
Children and Young Peoples Services,Head of Childrens Social Care,085332,Middlestone Moor CU,Supplies and Services,324117,Provisions E324,10-Jul-2020,000009132177079,ASDA SUPERSTORE 4987,5411,Catering costs - provisions,34.39,0.00,34.39
Children and Young Peoples Services,Head of Childrens Social Care,085332,Middlestone Moor CU,Supplies and Services,324117,Provisions E324,10-Jul-2020,000009132177093,GEORGE BOLAM (FOODS) L,5499,Catering costs - provisions,9.56,0.00,9.56
"Regeneration, Economy and Growth",Development and Housing,031576,B& B - Temp Accom,Supplies and Services,364320,Grants to Voluntary Organisations,10-Jul-2020,000009132177237,HOTEL 52 STANLEY,5812,Accommodation assistance,150.00,0.00,150.00
"Regeneration, Economy and Growth",Development and Housing,031576,B& B - Temp Accom,Transport,235073,Public Transport,10-Jul-2020,000009132177255,BLUELINE TAXIS,4121,Travel-clients/students/children,21.40,0.00,21.40
Children and Young Peoples Services,Head of Childrens Social Care,085352,Tow Law CU,Supplies and Services,304403,Equipment and Materials,10-Jul-2020,000009132177377,AMZNMktplace,5999,Other consumables,13.59,2.27,11.32
Children and Young Peoples Services,Head of Childrens Social Care,085342,16 Hickstead Rise (previously 9 Cedar Ave),Supplies and Services,324117,Provisions E324,10-Jul-2020,000009132177411,TESCO STORES 2916,5411,Catering costs - provisions,37.65,0.00,37.65
Children and Young Peoples Services,Head of Education and Skills,071802,Louisa Cent Nursery,Supplies and Services,324117,Provisions E324,10-Jul-2020,000009132177443,ASDA SUPERSTORE,5411,Catering costs - provisions,94.59,0.00,94.59
Children and Young Peoples Services,Head of Education and Skills,070140,School Admissions and Transport 070140,Supplies and Services,332047,Printing Stationery and Gen Off Exps,10-Jul-2020,000009132177699,AMZNMktplace,5999,Stationery,81.30,13.55,67.75
Children and Young Peoples Services,Head of Education and Skills,070140,School Admissions and Transport 070140,Supplies and Services,332047,Printing Stationery and Gen Off Exps,10-Jul-2020,000009132177699 - 1,AMZNMktplace,5999,Stationery,0.10,,0.10
Children and Young Peoples Services,Head of Education and Skills,070140,School Admissions and Transport 070140,Supplies and Services,332047,Printing Stationery and Gen Off Exps,10-Jul-2020,000009132177709,AMZNMktplace,5999,Stationery,48.78,8.13,40.65
Children and Young Peoples Services,Head of Education and Skills,070140,School Admissions and Transport 070140,Supplies and Services,332047,Printing Stationery and Gen Off Exps,10-Jul-2020,000009132177709 - 1,AMZNMktplace,5999,Stationery,0.06,,0.06
Resources BK0010,COVID19 - Resources,091007,COVID19 - Resources,Supplies and Services,332047,Printing Stationery and Gen Off Exps,10-Jul-2020,000009132177725,AMZNMktplace,5999,Stationery,28.99,4.83,24.16
Resources BK0010,COVID19 - Resources,091007,COVID19 - Resources,Supplies and Services,332047,Printing Stationery and Gen Off Exps,10-Jul-2020,000009132177733,AMZNMktplace,5999,Stationery,28.99,4.83,24.16
Resources BK0010,COVID19 - Resources,091007,COVID19 - Resources,Supplies and Services,332047,Printing Stationery and Gen Off Exps,10-Jul-2020,000009132177741,AMZNMktplace,5999,Stationery,28.99,4.83,24.16
Resources BK0010,COVID19 - Resources,091007,COVID19 - Resources,Supplies and Services,332047,Printing Stationery and Gen Off Exps,10-Jul-2020,000009132177745,AMZNMktplace,5999,Stationery,28.99,4.83,24.16
Resources BK0010,COVID19 - Resources,091007,COVID19 - Resources,Supplies and Services,332047,Printing Stationery and Gen Off Exps,10-Jul-2020,000009132177749,AMZNMktplace,5999,Stationery,28.99,4.83,24.16
Resources BK0010,COVID19 - Resources,091007,COVID19 - Resources,Supplies and Services,332047,Printing Stationery and Gen Off Exps,10-Jul-2020,000009132177755,AMZNMktplace,5999,Stationery,28.99,4.83,24.16
Resources BK0010,COVID19 - Resources,091007,COVID19 - Resources,Supplies and Services,332047,Printing Stationery and Gen Off Exps,10-Jul-2020,000009132177761,AMZNMktplace,5999,Stationery,28.99,4.83,24.16
Adult and Health Services,Head of Adults,052229,Countywide AMHP Team,Supplies and Services,352001,Conference Expenses,10-Jul-2020,000009132177765,THE BRITISH ASSOCIATIO,8699,Conferencesseminars fees etc,-60.00,0.00,-60.00
Resources BK0010,COVID19 - Resources,091007,COVID19 - Resources,Supplies and Services,332047,Printing Stationery and Gen Off Exps,10-Jul-2020,000009132177775,AMZNMKTPLACE AMAZON.CO,5999,Stationery,28.99,4.83,24.16
Children and Young Peoples Services,Head of Early Help Inclusion & Vulnerable Children.,085810,CDYJS - Interventions Team,Supplies and Services,304999,Equipment and Materials,10-Jul-2020,000009132178031,www.groupon.co.uk,7278,Misc equipment tools and materials,29.90,0.00,29.90
Adult and Health Services,Head of Adults,055643,Hawthorn House LD Respite Unit,Supplies and Services,324117,Provisions E324,10-Jul-2020,000009135864707,BATLEYS PERTH,5300,Catering costs - provisions,3.06,0.51,2.55
Adult and Health Services,Head of Adults,055643,Hawthorn House LD Respite Unit,Supplies and Services,324117,Provisions E324,10-Jul-2020,000009135864707 - 1,BATLEYS PERTH,5300,Catering costs - provisions,132.83,,132.83
"Regeneration, Economy and Growth",Development and Housing,030771,Durham Advance Flexible Fund,Supplies and Services,384700,Miscellaneous Expenses,10-Jul-2020,000009150481987,GEN REGISTER OFFICE,9399,Miscellaneous grants,-7.50,0.00,-7.50
Children and Young Peoples Services,Head of Childrens Social Care,085332,Middlestone Moor CU,Supplies and Services,342033,Computers and Communications,11-Jul-2020,000009132174467,SHOCKCART,7372,Computer hardware,16.90,0.00,16.90
Children and Young Peoples Services,Head of Early Help Inclusion & Vulnerable Children.,085962,Aycliffe Secure - Durham,Supplies and Services,304403,Equipment and Materials,11-Jul-2020,000009132174581,AMZNMktplace,5999,Other consumables,10.98,0.00,10.98
Children and Young Peoples Services,Head of Childrens Social Care,085352,Tow Law CU,Supplies and Services,348037,Subsistence E348,11-Jul-2020,000009132174759,Just Eat,5814,Subsistence,50.12,0.00,50.12
Children and Young Peoples Services,Head of Childrens Social Care,085352,Tow Law CU,Supplies and Services,304403,Equipment and Materials,11-Jul-2020,000009132174769,AMZNMktplace,5999,Other consumables,29.99,5.00,24.99
Children and Young Peoples Services,Head of Education and Skills,071732,Dean Bank Childcare,Supplies and Services,324117,Provisions E324,11-Jul-2020,000009132175007,CO-OP GROUP 010503,5411,Catering costs - provisions,23.21,0.00,23.21
"Regeneration, Economy and Growth",Development and Housing,030771,Durham Advance Flexible Fund,Supplies and Services,304403,Equipment and Materials,11-Jul-2020,000009132175259,AMZNMktplace,5999,Other consumables,595.00,0.00,595.00
Children and Young Peoples Services,Head of Childrens Social Care,085341,High Etherley Satelite Home,Supplies and Services,348037,Subsistence E348,11-Jul-2020,000009132176205,MCDONALDS 1555,5814,Subsistence,3.89,0.00,3.89
Children and Young Peoples Services,Head of Childrens Social Care,085333,Coxhoe Satelite Home,Supplies and Services,324117,Provisions E324,11-Jul-2020,000009132176417,MARKS&SPENCER PLC,5411,Catering costs - provisions,4.15,0.00,4.15
Children and Young Peoples Services,Head of Childrens Social Care,085352,Tow Law CU,Supplies and Services,348037,Subsistence E348,11-Jul-2020,000009132176569,MUFFIN BREAK METRO CEN,5813,Subsistence,8.80,0.00,8.80
Children and Young Peoples Services,Head of Childrens Social Care,085352,Tow Law CU,Supplies and Services,348037,Subsistence E348,11-Jul-2020,000009132176575,FIVE GUYS GATESHEAD,5814,Subsistence,27.40,0.00,27.40
Children and Young Peoples Services,Head of Childrens Social Care,085332,Middlestone Moor CU,Supplies and Services,324117,Provisions E324,11-Jul-2020,000009132177097,ASDA SUPERSTORE 4987,5411,Catering costs - provisions,13.70,0.00,13.70
Children and Young Peoples Services,Head of Childrens Social Care,085333,Coxhoe Satelite Home,Transport,235057,Public Transport,11-Jul-2020,000009132177265,PRINCE BISHOP SHOPPING,7523,Staff travelling,2.10,0.00,2.10
Children and Young Peoples Services,Head of Childrens Social Care,085352,Tow Law CU,Supplies and Services,324117,Provisions E324,11-Jul-2020,000009132177385,G&J NEWSAGENTS,5411,Catering costs - provisions,3.23,0.00,3.23
Children and Young Peoples Services,Head of Childrens Social Care,085352,Tow Law CU,Supplies and Services,324117,Provisions E324,11-Jul-2020,000009132177391,CO-OP GROUP 010670,5411,Catering costs - provisions,1.45,0.00,1.45
Children and Young Peoples Services,Head of Childrens Social Care,085352,Tow Law CU,Supplies and Services,324117,Provisions E324,11-Jul-2020,000009132177393,SAINSBURYS LOC4634,5411,Catering costs - provisions,12.85,0.00,12.85
Children and Young Peoples Services,Head of Childrens Social Care,085352,Tow Law CU,Supplies and Services,348037,Subsistence E348,11-Jul-2020,000009132177401,FISH FACE,5814,Subsistence,15.80,0.00,15.80
Children and Young Peoples Services,Head of Childrens Social Care,085341,High Etherley Satelite Home,Supplies and Services,324117,Provisions E324,12-Jul-2020,000009132173489,SPAR - GEM WEST AUCKLA,5411,Catering costs - provisions,12.36,0.00,12.36
Children and Young Peoples Services,Head of Childrens Social Care,085341,High Etherley Satelite Home,Supplies and Services,324117,Provisions E324,12-Jul-2020,000009132173499,CO-OP GROUP 310015,5411,Catering costs - provisions,2.15,0.00,2.15
Children and Young Peoples Services,Head of Childrens Social Care,085341,High Etherley Satelite Home,Supplies and Services,324117,Provisions E324,12-Jul-2020,000009132173509,CO-OP GROUP 310015,5411,Catering costs - provisions,10.00,0.00,10.00
"Regeneration, Economy and Growth",Culture Sport and Tourism,011219,Office Services 011219,Supplies and Services,342033,Computers and Communications,12-Jul-2020,000009132173561,Amazon.co.uk O82OL2CY5,5969,Computer hardware,104.31,17.48,86.83
Children and Young Peoples Services,Head of Childrens Social Care,085352,Tow Law CU,Supplies and Services,348037,Subsistence E348,12-Jul-2020,000009132174015,iZ Joey s Waffle,5812,Subsistence,9.75,0.00,9.75
Children and Young Peoples Services,Head of Childrens Social Care,085352,Tow Law CU,Supplies and Services,304259,Equipment and Materials,12-Jul-2020,000009132174021,HALFORDS 0526,5940,Equipment-purchase and rental,21.15,0.00,21.15
Children and Young Peoples Services,Head of Childrens Social Care,085333,Coxhoe Satelite Home,Supplies and Services,324117,Provisions E324,12-Jul-2020,000009132174181,B&M 681 - DURHAM,5399,Catering costs - provisions,9.97,0.00,9.97
Children and Young Peoples Services,Head of Childrens Social Care,085333,Coxhoe Satelite Home,Supplies and Services,324117,Provisions E324,12-Jul-2020,000009132174197,B&M 681 - DURHAM,5399,Catering costs - provisions,20.77,0.00,20.77
Children and Young Peoples Services,Head of Early Help Inclusion & Vulnerable Children.,088105,BA/BC/Crook 0-19 Community Family Hub,Supplies and Services,304259,Equipment and Materials,12-Jul-2020,000009132174333,Amazon.co.uk O70E371M5,5969,Equipment-purchase and rental,17.64,2.94,14.70
Children and Young Peoples Services,Head of Early Help Inclusion & Vulnerable Children.,088105,BA/BC/Crook 0-19 Community Family Hub,Supplies and Services,304259,Equipment and Materials,12-Jul-2020,000009132174333 - 1,Amazon.co.uk O70E371M5,5969,Equipment-purchase and rental,0.06,,0.06
Children and Young Peoples Services,Head of Early Help Inclusion & Vulnerable Children.,085962,Aycliffe Secure - Durham,Supplies and Services,304403,Equipment and Materials,12-Jul-2020,000009132174589,AMZNMktplace,5999,Other consumables,19.98,0.00,19.98
Children and Young Peoples Services,Head of Childrens Social Care,085352,Tow Law CU,Supplies and Services,304403,Equipment and Materials,12-Jul-2020,000009132174773,AMZNMktplace,5999,Other consumables,81.53,13.60,67.93
Children and Young Peoples Services,Head of Early Help Inclusion & Vulnerable Children.,085962,Aycliffe Secure - Durham,Supplies and Services,348037,Subsistence E348,12-Jul-2020,000009132175199,Just Eat,5814,Subsistence,70.70,0.00,70.70
Children and Young Peoples Services,Head of Childrens Social Care,085331,New Lea Childrens Home,Supplies and Services,308011,Furniture,12-Jul-2020,000009132175701,IKEA LTD 143 GATESHEAD,5712,Furniture repair and replacement,266.55,0.00,266.55
Children and Young Peoples Services,Head of Childrens Social Care,085331,New Lea Childrens Home,Supplies and Services,308011,Furniture,12-Jul-2020,000009132175711,IKEA LTD 143 GATESHEAD,5712,Furniture repair and replacement,7.55,0.00,7.55
Children and Young Peoples Services,Head of Childrens Social Care,085331,New Lea Childrens Home,Transport,215995,Running Costs of Vehicles,12-Jul-2020,000009132175719,SHELL REDHEUGH BRI,5541,Vehicle running expenses,20.00,0.00,20.00
Children and Young Peoples Services,Head of Childrens Social Care,085331,New Lea Childrens Home,Transport,215995,Running Costs of Vehicles,12-Jul-2020,000009132175729,SHELL REDHEUGH BRI,5541,Vehicle running expenses,7.50,0.00,7.50
Children and Young Peoples Services,Head of Childrens Social Care,085352,Tow Law CU,Supplies and Services,324117,Provisions E324,12-Jul-2020,000009132176075,ONE STOP 2969,5411,Catering costs - provisions,4.99,0.00,4.99
Adult and Health Services,Head of Adults,055643,Hawthorn House LD Respite Unit,Supplies and Services,324117,Provisions E324,12-Jul-2020,000009132176355,CO-OP GROUP 010465,5411,Catering costs - provisions,1.60,0.00,1.60
Adult and Health Services,Head of Adults,055643,Hawthorn House LD Respite Unit,Supplies and Services,324117,Provisions E324,12-Jul-2020,000009132176365,CO-OP GROUP 010465,5411,Catering costs - provisions,3.00,0.00,3.00
Children and Young Peoples Services,Head of Early Help Inclusion & Vulnerable Children.,085957,Secure Management,Supplies and Services,304999,Equipment and Materials,12-Jul-2020,000009132176591,TESCO SUBSCRIPTION,5968,Misc equipment tools and materials,6.99,0.00,6.99
Resources BK0010,Digital and Customer Services,065335,School Services - Implementations,Supplies and Services,304303,Equipment and Materials,12-Jul-2020,000009132176921,AMZNMktplace,5999,Network for resale,248.31,41.40,206.91
Children and Young Peoples Services,Head of Childrens Social Care,085332,Middlestone Moor CU,Supplies and Services,324117,Provisions E324,12-Jul-2020,000009132177099,ASDA SUPERSTORE 4987,5411,Catering costs - provisions,9.90,0.00,9.90
Children and Young Peoples Services,Head of Education and Skills,071802,Louisa Cent Nursery,Supplies and Services,324117,Provisions E324,12-Jul-2020,000009132177451,ALDI 11 774,5411,Catering costs - provisions,9.72,1.62,8.10
Children and Young Peoples Services,Head of Education and Skills,071802,Louisa Cent Nursery,Supplies and Services,324117,Provisions E324,12-Jul-2020,000009132177451 - 1,ALDI 11 774,5411,Catering costs - provisions,2.39,,2.39
Children and Young Peoples Services,Head of Childrens Social Care,052956,Independent Reviewing Officers Team 1,Supplies and Services,332047,Printing Stationery and Gen Off Exps,12-Jul-2020,000009132177779,AMZNMktplace,5999,Stationery,383.40,63.96,319.44
Children and Young Peoples Services,Head of Childrens Social Care,085378,Young Persons Service Team 3,Supplies and Services,332047,Printing Stationery and Gen Off Exps,12-Jul-2020,000009132177785,AMZNMKTPLACE AMAZON.CO,5999,Stationery,191.70,31.98,159.72
Children and Young Peoples Services,Head of Childrens Social Care,085342,16 Hickstead Rise (previously 9 Cedar Ave),Supplies and Services,344033,Telephones,13-Jul-2020,000009132176451,WWW.VOXI.CO.UK,4814,Telephones general-all costs,10.00,0.00,10.00
Children and Young Peoples Services,Head of Education and Skills,071801,Selby Cottage Childcare Centre,Supplies and Services,304403,Equipment and Materials,13-Jul-2020,000009135863923,AMZNMktplace,5999,Other consumables,33.95,5.66,28.29
Children and Young Peoples Services,Head of Education and Skills,071801,Selby Cottage Childcare Centre,Supplies and Services,324117,Provisions E324,13-Jul-2020,000009135863927,WILKO RETAIL LIMITED,5399,Catering costs - provisions,9.00,0.00,9.00
Children and Young Peoples Services,Head of Education and Skills,054640,Durham Learning Resources 054640,Supplies and Services,384999,Miscellaneous Expenses,13-Jul-2020,000009135863945,Amazon.co.uk 7L7TZ1I95,5969,Other expenses,71.88,0.00,71.88
Resources BK0010,Digital and Customer Services,065432,Web Development Group,Supplies and Services,342053,Computers and Communications,13-Jul-2020,000009135863955,BLS POWERMAPPER,5734,Computer software,238.80,0.00,238.80
Children and Young Peoples Services,Head of Early Help Inclusion & Vulnerable Children.,088112,Seaham & Central Durham 0-19 Targeted Family Support,Supplies and Services,342033,Computers and Communications,13-Jul-2020,000009135863963,AMZNMktplace,5999,Computer hardware,8.32,0.00,8.32
"Regeneration, Economy and Growth",Development and Housing,031599,Prevention Initiatives,Supplies and Services,352001,Conference Expenses,13-Jul-2020,000009135863969,BUDGET H EXPRESS HOTEL,7011,Conferencesseminars fees etc,500.00,0.00,500.00
"Regeneration, Economy and Growth",Development and Housing,031599,Prevention Initiatives,Supplies and Services,352001,Conference Expenses,13-Jul-2020,000009135863973,BUDGET H EXPRESS HOTEL,7011,Conferencesseminars fees etc,182.16,30.36,151.80
"Regeneration, Economy and Growth",Development and Housing,031599,Prevention Initiatives,Supplies and Services,352001,Conference Expenses,13-Jul-2020,000009135863973 - 1,BUDGET H EXPRESS HOTEL,7011,Conferencesseminars fees etc,84.84,,84.84
"Regeneration, Economy and Growth",Development and Housing,031599,Prevention Initiatives,Supplies and Services,352001,Conference Expenses,13-Jul-2020,000009135863975,BUDGET H EXPRESS HOTEL,7011,Conferencesseminars fees etc,200.00,0.00,200.00
Children and Young Peoples Services,Head of Childrens Social Care,085501,Child Care Cases Legal Expenses,Supplies and Services,304403,Equipment and Materials,13-Jul-2020,000009135863985,STOCKTON BOROUGH COUNC,9399,Other consumables,11.00,0.00,11.00
Children and Young Peoples Services,Head of Education and Skills,075021,Youth Employment Initiative,Supplies and Services,364301,Grants to Voluntary Organisations,13-Jul-2020,000009135863993,CURRYS ONLINE,5732,Hardship,199.00,0.00,199.00
Adult and Health Services,Head of Adults,055302,Durham Pathways,Supplies and Services,304259,Equipment and Materials,13-Jul-2020,000009135864001,CURRYS ONLINE,5732,Equipment-purchase and rental,309.99,0.00,309.99
Neighbourhoods and Climate Change,Environmental Services,010383,C&G - South Street Cleansing,Supplies and Services,304403,Equipment and Materials,13-Jul-2020,000009135864007,TIMPSON LTD,5999,Other consumables,48.75,0.00,48.75
Children and Young Peoples Services,Head of Childrens Social Care,085352,Tow Law CU,Supplies and Services,324117,Provisions E324,13-Jul-2020,000009135864087,CO-OP GROUP 010989,5411,Catering costs - provisions,2.53,0.00,2.53
Children and Young Peoples Services,Head of Early Help Inclusion & Vulnerable Children.,088104,BA/BC/Crook 0-19 Targeted Family Support,Supplies and Services,384999,Miscellaneous Expenses,13-Jul-2020,000009135864113,Amazon.co.uk V34N10T45,5969,Other expenses,134.46,22.41,112.05
Children and Young Peoples Services,Head of Early Help Inclusion & Vulnerable Children.,088104,BA/BC/Crook 0-19 Targeted Family Support,Supplies and Services,384999,Miscellaneous Expenses,13-Jul-2020,000009135864113 - 1,Amazon.co.uk V34N10T45,5969,Other expenses,0.54,,0.54
Children and Young Peoples Services,Head of Early Help Inclusion & Vulnerable Children.,088104,BA/BC/Crook 0-19 Targeted Family Support,Supplies and Services,304259,Equipment and Materials,13-Jul-2020,000009135864117,PAYPAL DADPAD,8299,Equipment-purchase and rental,30.00,0.00,30.00
Children and Young Peoples Services,Head of Early Help Inclusion & Vulnerable Children.,088105,BA/BC/Crook 0-19 Community Family Hub,Supplies and Services,332047,Printing Stationery and Gen Off Exps,13-Jul-2020,000009135864121,AMZNMktplace,5999,Stationery,61.80,10.35,51.45
Children and Young Peoples Services,Head of Childrens Social Care,085332,Middlestone Moor CU,Supplies and Services,324117,Provisions E324,13-Jul-2020,000009135864141,WILKO RETAIL LIMITED,5399,Catering costs - provisions,9.50,0.00,9.50
Children and Young Peoples Services,Head of Early Help Inclusion & Vulnerable Children.,085956,Lumley,Supplies and Services,384999,Miscellaneous Expenses,13-Jul-2020,000009135864145,Amazon.co.uk YL7BC6YH5,5969,Other expenses,2.99,0.50,2.49
Children and Young Peoples Services,Head of Early Help Inclusion & Vulnerable Children.,085956,Lumley,Supplies and Services,304403,Equipment and Materials,13-Jul-2020,000009135864147,AMZNMktplace,5999,Other consumables,9.96,1.66,8.30
Children and Young Peoples Services,Head of Early Help Inclusion & Vulnerable Children.,085956,Lumley,Supplies and Services,304403,Equipment and Materials,13-Jul-2020,000009135864147 - 1,AMZNMktplace,5999,Other consumables,18.00,,18.00
Children and Young Peoples Services,Head of Early Help Inclusion & Vulnerable Children.,085956,Lumley,Supplies and Services,304403,Equipment and Materials,13-Jul-2020,000009135864153,AMZNMktplace,5999,Other consumables,6.00,1.00,5.00
Children and Young Peoples Services,Head of Early Help Inclusion & Vulnerable Children.,085954,Walworth,Supplies and Services,324117,Provisions E324,13-Jul-2020,000009135864155,ASDA GROCERIES ONLINE,5411,Catering costs - provisions,80.95,0.00,80.95
Children and Young Peoples Services,Head of Early Help Inclusion & Vulnerable Children.,085954,Walworth,Supplies and Services,324117,Provisions E324,13-Jul-2020,000009135864159,ASDA GROCERIES ONLINE,5411,Catering costs - provisions,-0.05,0.00,-0.05
"Regeneration, Economy and Growth",Development and Housing,030772,CLLD South,Supplies and Services,324117,Provisions E324,13-Jul-2020,000009135864181,ASDA STORES,5411,Catering costs - provisions,49.00,0.00,49.00
Children and Young Peoples Services,Head of Childrens Social Care,085361,LAC & Permanence Team 1,Supplies and Services,384871,Miscellaneous Expenses,13-Jul-2020,000009135864187,WWW.ADVENTUREVALLEY.CO,7999,Training-other activities,25.85,0.00,25.85
"Regeneration, Economy and Growth",Culture Sport and Tourism,011198,Culture & Sport Management 011198,Supplies and Services,342053,Computers and Communications,13-Jul-2020,000009135864211,MENTIMETER,5045,Computer software,285.78,0.00,285.78
Children and Young Peoples Services,Head of Childrens Social Care,085352,Tow Law CU,Supplies and Services,304403,Equipment and Materials,13-Jul-2020,000009135864259,AMZNMktplace,5999,Other consumables,9.25,1.54,7.71
Neighbourhoods and Climate Change,Environmental Services,010900,Fleet - Meadowfield Fleet,Transport,215013,Running Costs of Vehicles,13-Jul-2020,000009135864265,DVLA VEHICLE TAX,9311,Vehicle Excise Duty (VED),617.50,0.00,617.50
Neighbourhoods and Climate Change,Environmental Services,010900,Fleet - Meadowfield Fleet,Transport,215013,Running Costs of Vehicles,13-Jul-2020,000009135864269,DVLA VEHICLE TAX,9311,Vehicle Excise Duty (VED),267.50,0.00,267.50
Neighbourhoods and Climate Change,Environmental Services,010900,Fleet - Meadowfield Fleet,Transport,215013,Running Costs of Vehicles,13-Jul-2020,000009135864275,DVLA VEHICLE TAX,9311,Vehicle Excise Duty (VED),267.50,0.00,267.50
Resources BK0010,Business Support,010832,Business Support 010832,Transport,215013,Running Costs of Vehicles,13-Jul-2020,000009135864279,DVLA VEHICLE TAX,9311,Vehicle Excise Duty (VED),617.50,0.00,617.50
Neighbourhoods and Climate Change,Environmental Services,010561,Fleet - Morrison Busty Fleet,Transport,215013,Running Costs of Vehicles,13-Jul-2020,000009135864285,DVLA VEHICLE TAX,9311,Vehicle Excise Duty (VED),267.50,0.00,267.50
Neighbourhoods and Climate Change,Environmental Services,010900,Fleet - Meadowfield Fleet,Transport,215013,Running Costs of Vehicles,13-Jul-2020,000009135864287,DVLA VEHICLE TAX,9311,Vehicle Excise Duty (VED),267.50,0.00,267.50
Neighbourhoods and Climate Change,Environmental Services,010900,Fleet - Meadowfield Fleet,Transport,215013,Running Costs of Vehicles,13-Jul-2020,000009135864289,DVLA VEHICLE TAX,9311,Vehicle Excise Duty (VED),267.50,0.00,267.50
Neighbourhoods and Climate Change,Environmental Services,010900,Fleet - Meadowfield Fleet,Transport,215013,Running Costs of Vehicles,13-Jul-2020,000009135864291,DVLA VEHICLE TAX,9311,Vehicle Excise Duty (VED),267.50,0.00,267.50
Neighbourhoods and Climate Change,Environmental Services,010561,Fleet - Morrison Busty Fleet,Transport,215013,Running Costs of Vehicles,13-Jul-2020,000009135864293,DVLA VEHICLE TAX,9311,Vehicle Excise Duty (VED),617.50,0.00,617.50
Neighbourhoods and Climate Change,Environmental Services,010864,Fleet - Hackworth Road Fleet,Transport,215013,Running Costs of Vehicles,13-Jul-2020,000009135864297,DVLA VEHICLE TAX,9311,Vehicle Excise Duty (VED),267.50,0.00,267.50
Children and Young Peoples Services,Head of Early Help Inclusion & Vulnerable Children.,088109,Spennymoor & Shildon 0-19 Community Family Hub,Supplies and Services,324117,Provisions E324,13-Jul-2020,000009135864303,TESCO STORES 6329,5411,Catering costs - provisions,25.59,0.00,25.59
Children and Young Peoples Services,Head of Early Help Inclusion & Vulnerable Children.,088109,Spennymoor & Shildon 0-19 Community Family Hub,Supplies and Services,328041,Clothing uniforms and laundry E328,13-Jul-2020,000009135864309,POUNDSTRETCHER 692,5331,Clothing uniforms and laundry,68.39,0.00,68.39
Children and Young Peoples Services,Head of Education and Skills,071732,Dean Bank Childcare,Supplies and Services,304403,Equipment and Materials,13-Jul-2020,000009135864313,AMZNMktplace,5999,Other consumables,9.16,0.00,9.16
Children and Young Peoples Services,Head of Education and Skills,071732,Dean Bank Childcare,Supplies and Services,324117,Provisions E324,13-Jul-2020,000009135864317,ASDA GROCERIES ONLINE,5411,Catering costs - provisions,99.64,0.00,99.64
Neighbourhoods and Climate Change,Environmental Services,031221,North Pennines - Bowlees,Supplies and Services,304403,Equipment and Materials,13-Jul-2020,000009135864341,SP DISPLAYPRO,5734,Other consumables,97.78,16.30,81.48
Children and Young Peoples Services,Head of Childrens Social Care,085332,Middlestone Moor CU,Supplies and Services,348037,Subsistence E348,13-Jul-2020,000009135864347,FISH FACE,5814,Subsistence,16.70,0.00,16.70
"Regeneration, Economy and Growth",Development and Housing,030771,Durham Advance Flexible Fund,Transport,235057,Public Transport,13-Jul-2020,000009135864367,ARRIVA NORTH EAST,4131,Staff travelling,26.20,0.00,26.20
Children and Young Peoples Services,Head of Early Help Inclusion & Vulnerable Children.,071445,Chester le Street One Point Hub,Transport,235057,Public Transport,13-Jul-2020,000009135864417,SUNDERLAND CC,7523,Staff travelling,11.00,0.00,11.00
Neighbourhoods and Climate Change,Environmental Services,011058,C&G - Wharton Park,Supplies and Services,304259,Equipment and Materials,13-Jul-2020,000009135864437,SCREWFIX DIRECT,5200,Equipment-purchase and rental,34.99,0.00,34.99
"Regeneration, Economy and Growth",Development and Housing,031576,B& B - Temp Accom,Supplies and Services,364320,Grants to Voluntary Organisations,13-Jul-2020,000009135864455,HI NEWCASTLE WASHI,7011,Accommodation assistance,66.00,0.00,66.00
"Regeneration, Economy and Growth",Development and Housing,031500,Housing Solutions - Core Team,Supplies and Services,352001,Conference Expenses,13-Jul-2020,000009135864471,AYCLIFFE BIZ,7011,Conferencesseminars fees etc,76.00,0.00,76.00
Children and Young Peoples Services,Head of Childrens Social Care,085352,Tow Law CU,Supplies and Services,348037,Subsistence E348,13-Jul-2020,000009135864511,THE DAIRY BARN,5812,Subsistence,10.05,0.00,10.05
Children and Young Peoples Services,Head of Childrens Social Care,085352,Tow Law CU,Supplies and Services,324117,Provisions E324,13-Jul-2020,000009135864517,NISA LOCAL,5411,Catering costs - provisions,17.24,0.00,17.24
Children and Young Peoples Services,Head of Early Help Inclusion & Vulnerable Children.,085355,12 Brough Close Aycliffe,Supplies and Services,304259,Equipment and Materials,13-Jul-2020,000009135864591,DECATHLON,5941,Equipment-purchase and rental,104.94,0.00,104.94
Neighbourhoods and Climate Change,Environmental Services,010367,C&G - South Grounds Maintenance,Supplies and Services,304221,Equipment and Materials,13-Jul-2020,000009135864601,B & Q 1120,5200,Direct materials,2.00,0.00,2.00
Neighbourhoods and Climate Change,Environmental Services,010367,C&G - South Grounds Maintenance,Supplies and Services,304999,Equipment and Materials,13-Jul-2020,000009135864605,Snowballs,5251,Misc equipment tools and materials,19.40,0.00,19.40
Adult and Health Services,Head of Adults,055643,Hawthorn House LD Respite Unit,Supplies and Services,324117,Provisions E324,13-Jul-2020,000009135864615,CO-OP GROUP 010465,5411,Catering costs - provisions,6.80,0.00,6.80
Children and Young Peoples Services,Head of Childrens Social Care,085333,Coxhoe Satelite Home,Supplies and Services,324117,Provisions E324,13-Jul-2020,000009135864631,ASDA SUPERSTORE 4987,5411,Catering costs - provisions,113.75,0.00,113.75
Adult and Health Services,Head of Adults,055306,Spennymoor Pathways,Supplies and Services,324117,Provisions E324,13-Jul-2020,000009135864665,ONE STOP 3047,5411,Catering costs - provisions,1.15,0.00,1.15
Adult and Health Services,Head of Adults,055306,Spennymoor Pathways,Supplies and Services,308011,Furniture,13-Jul-2020,000009135864671,DUNELM LTD,5714,Furniture repair and replacement,22.00,0.00,22.00
Neighbourhoods and Climate Change,Environmental Services,010367,C&G - South Grounds Maintenance,Supplies and Services,304221,Equipment and Materials,13-Jul-2020,000009135864699,J.T.ATKINSON,5211,Direct materials,54.95,0.00,54.95
Adult and Health Services,Head of Adults,055643,Hawthorn House LD Respite Unit,Supplies and Services,324117,Provisions E324,13-Jul-2020,000009135864709,FREEMAN CATERING BUTCH,5422,Catering costs - provisions,46.20,0.00,46.20
Adult and Health Services,Head of Adults,055643,Hawthorn House LD Respite Unit,Supplies and Services,324117,Provisions E324,13-Jul-2020,000009135864715,JR HOLLAND FOODSERVICE,5499,Catering costs - provisions,15.98,0.00,15.98
Neighbourhoods and Climate Change,Environmental Services,031200,North Pennines Core,Supplies and Services,304999,Equipment and Materials,13-Jul-2020,000009135864723,123 REG LTD,5968,Misc equipment tools and materials,14.39,2.40,11.99
Resources BK0010,Business Support,052986,CYPS - Locality and Operational Support,Supplies and Services,304403,Equipment and Materials,13-Jul-2020,000009135864797,AMZNMktplace,5999,Other consumables,483.64,0.00,483.64
Resources BK0010,Business Support,052986,CYPS - Locality and Operational Support,Supplies and Services,304403,Equipment and Materials,13-Jul-2020,000009135864799,AMZNMktplace,5999,Other consumables,139.41,0.00,139.41
Children and Young Peoples Services,Head of Childrens Social Care,085334,West Rainton Satelite Home,Supplies and Services,324117,Provisions E324,13-Jul-2020,000009135864803,TESCO STORES 2371,5411,Catering costs - provisions,198.13,0.00,198.13
Children and Young Peoples Services,Head of Childrens Social Care,085334,West Rainton Satelite Home,Supplies and Services,304999,Equipment and Materials,13-Jul-2020,000009135864809,HOME BARGAINS,5251,Misc equipment tools and materials,30.19,5.03,25.16
Children and Young Peoples Services,Head of Childrens Social Care,085334,West Rainton Satelite Home,Supplies and Services,304999,Equipment and Materials,13-Jul-2020,000009135864811,HOME BARGAINS,5251,Misc equipment tools and materials,4.98,0.83,4.15
Children and Young Peoples Services,Head of Childrens Social Care,085334,West Rainton Satelite Home,Supplies and Services,304999,Equipment and Materials,13-Jul-2020,000009135864811 - 1,HOME BARGAINS,5251,Misc equipment tools and materials,2.56,,2.56
Children and Young Peoples Services,Head of Early Help Inclusion & Vulnerable Children.,085961,Themed Week Activity,Supplies and Services,384999,Miscellaneous Expenses,13-Jul-2020,000009135864833,Amazon.co.uk 0I3VD26S5,5969,Other expenses,5.00,0.83,4.17
Children and Young Peoples Services,Head of Early Help Inclusion & Vulnerable Children.,085961,Themed Week Activity,Supplies and Services,384999,Miscellaneous Expenses,13-Jul-2020,000009135864837,Amazon.co.uk 8Z9A13EM5,5969,Other expenses,9.96,1.66,8.30
Children and Young Peoples Services,Head of Early Help Inclusion & Vulnerable Children.,085961,Themed Week Activity,Supplies and Services,384999,Miscellaneous Expenses,13-Jul-2020,000009135864837 - 1,Amazon.co.uk 8Z9A13EM5,5969,Other expenses,0.04,,0.04
Children and Young Peoples Services,Head of Early Help Inclusion & Vulnerable Children.,085961,Themed Week Activity,Supplies and Services,304403,Equipment and Materials,13-Jul-2020,000009135864839,AMZNMktplace,5999,Other consumables,9.88,1.65,8.23
Children and Young Peoples Services,Head of Early Help Inclusion & Vulnerable Children.,085961,Themed Week Activity,Supplies and Services,304403,Equipment and Materials,13-Jul-2020,000009135864843,WWW.FINDMEAGIFT.CO.UK,5947,Other consumables,24.95,0.00,24.95
Regeneration and Local Services,COVID19 - Regeneration Economy and Growth,091004,COVID19 - Regeneration Economy and Growth,Supplies and Services,304259,Equipment and Materials,13-Jul-2020,000009135864871,AMZNMktplace,5999,Equipment-purchase and rental,99.60,16.60,83.00
Regeneration and Local Services,COVID19 - Regeneration Economy and Growth,091004,COVID19 - Regeneration Economy and Growth,Supplies and Services,304259,Equipment and Materials,13-Jul-2020,000009135864871 - 1,AMZNMktplace,5999,Equipment-purchase and rental,0.40,,0.40
Children and Young Peoples Services,Head of Childrens Social Care,085332,Middlestone Moor CU,Supplies and Services,324117,Provisions E324,13-Jul-2020,000009135864885,WM MORRISONS STORE,5411,Catering costs - provisions,9.30,0.00,9.30
Children and Young Peoples Services,Head of Education and Skills,071802,Louisa Cent Nursery,Supplies and Services,324117,Provisions E324,13-Jul-2020,000009135864923,ALDI STORES,5411,Catering costs - provisions,7.10,1.18,5.92
Resources BK0010,Business Support,052986,CYPS - Locality and Operational Support,Supplies and Services,324117,Provisions E324,13-Jul-2020,000009135864953,ASDA GROCERIES ONLINE,5411,Catering costs - provisions,61.38,0.00,61.38
"Regeneration, Economy and Growth",Development and Housing,031500,Housing Solutions - Core Team,Supplies and Services,304999,Equipment and Materials,13-Jul-2020,000009135864979,DUNCAN BELTON TA K,6513,Misc equipment tools and materials,350.00,0.00,350.00
Chief Executive's Office,Communications Management,060270,Communications and Marketing,Supplies and Services,336005,Advertising E336,13-Jul-2020,000009135865007,FACEBK EXPJ4TA4B2,7311,Advertising other than for staff,500.00,0.00,500.00
Children and Young Peoples Services,Head of Childrens Social Care,085396,Fostering Placement Team,Transport,235057,Public Transport,13-Jul-2020,000009135865011,HOLIDAY PAYMENT VRUK,4722,Staff travelling,485.00,0.00,485.00
Adult and Health Services,Head of Adults,055310,Positive Journeys (Tudhoe),Supplies and Services,328041,Clothing uniforms and laundry E328,13-Jul-2020,000009135865017,THE WORKS,5310,Clothing uniforms and laundry,37.50,0.00,37.50
Children and Young Peoples Services,Head of Childrens Social Care,085333,Coxhoe Satelite Home,Transport,235057,Public Transport,13-Jul-2020,000009135865083,PRINCE BISHOP SHOPPING,7523,Staff travelling,3.30,0.00,3.30
Children and Young Peoples Services,Head of Childrens Social Care,085333,Coxhoe Satelite Home,Supplies and Services,304999,Equipment and Materials,13-Jul-2020,000009135865091,SAVERS HEALTH & BEAUTY,5912,Misc equipment tools and materials,3.18,0.00,3.18
Children and Young Peoples Services,Head of Childrens Social Care,085333,Coxhoe Satelite Home,Supplies and Services,304259,Equipment and Materials,13-Jul-2020,000009135865093,J D SPORTS 026,5941,Equipment-purchase and rental,120.10,0.00,120.10
Children and Young Peoples Services,Head of Early Help Inclusion & Vulnerable Children.,088105,BA/BC/Crook 0-19 Community Family Hub,Supplies and Services,332047,Printing Stationery and Gen Off Exps,13-Jul-2020,000009138010593,AMZNMKTPLACE AMAZON.CO,5999,Stationery,13.77,2.30,11.47
Children and Young Peoples Services,Head of Early Help Inclusion & Vulnerable Children.,088104,BA/BC/Crook 0-19 Targeted Family Support,Supplies and Services,304259,Equipment and Materials,13-Jul-2020,000009138010621,SPORTSDIRECT.COM,5941,Equipment-purchase and rental,16.99,2.83,14.16
Children and Young Peoples Services,Head of Early Help Inclusion & Vulnerable Children.,085961,Themed Week Activity,Supplies and Services,304403,Equipment and Materials,13-Jul-2020,000009138011069,AMZNMKTPLACE AMAZON.CO,5999,Other consumables,11.98,2.00,9.98
"Regeneration, Economy and Growth",Culture Sport and Tourism,011198,Culture & Sport Management 011198,Supplies and Services,342053,Computers and Communications,14-Jul-2020,000009135864215,MENTIMETER,5045,Computer software,7.86,0.00,7.86
Children and Young Peoples Services,Head of Childrens Social Care,085341,High Etherley Satelite Home,Supplies and Services,324117,Provisions E324,14-Jul-2020,000009138010373,TESCO STORES 6329,5411,Catering costs - provisions,39.64,0.00,39.64
"Regeneration, Economy and Growth",Business Durham CL0850,030689,Inward Investment and Aftercare,Supplies and Services,304999,Equipment and Materials,14-Jul-2020,000009138010379,MOZ INC,5817,Misc equipment tools and materials,143.42,0.00,143.42
Children and Young Peoples Services,Head of Education and Skills,071801,Selby Cottage Childcare Centre,Supplies and Services,324117,Provisions E324,14-Jul-2020,000009138010405,TESCO STORES 2371,5411,Catering costs - provisions,116.29,0.00,116.29
Resources BK0010,Digital and Customer Services,065449,Internal Applications Group,Supplies and Services,342053,Computers and Communications,14-Jul-2020,000009138010419,Pluralsight,8299,Computer software,163.06,0.00,163.06
"Regeneration, Economy and Growth",Development and Housing,031599,Prevention Initiatives,Supplies and Services,352001,Conference Expenses,14-Jul-2020,000009138010425,AYCLIFFE BIZ,7011,Conferencesseminars fees etc,152.00,0.00,152.00
"Regeneration, Economy and Growth",Development and Housing,031599,Prevention Initiatives,Supplies and Services,352001,Conference Expenses,14-Jul-2020,000009138010429,THE HONEST LAWYER,7011,Conferencesseminars fees etc,77.90,0.00,77.90
Children and Young Peoples Services,Head of Childrens Social Care,085332,Middlestone Moor CU,Premises,103020,School Funding Rep and Maint,14-Jul-2020,000009138010497,R DEFTY,5251,Other routine reps and maintenance,6.95,0.00,6.95
Children and Young Peoples Services,Head of Childrens Social Care,085332,Middlestone Moor CU,Supplies and Services,324117,Provisions E324,14-Jul-2020,000009138010501,ASDA SUPERSTORE 4987,5411,Catering costs - provisions,67.54,0.00,67.54
Children and Young Peoples Services,Head of Childrens Social Care,085332,Middlestone Moor CU,Supplies and Services,324117,Provisions E324,14-Jul-2020,000009138010505,ALDI 74 774,5411,Catering costs - provisions,11.84,0.00,11.84
Children and Young Peoples Services,Head of Early Help Inclusion & Vulnerable Children.,088105,BA/BC/Crook 0-19 Community Family Hub,Supplies and Services,304259,Equipment and Materials,14-Jul-2020,000009138010583,AMZNMktplace,5999,Equipment-purchase and rental,4.99,0.83,4.16
Children and Young Peoples Services,Head of Early Help Inclusion & Vulnerable Children.,088105,BA/BC/Crook 0-19 Community Family Hub,Supplies and Services,332047,Printing Stationery and Gen Off Exps,14-Jul-2020,000009138010589,AMZNMktplace,5999,Stationery,4.99,0.83,4.16
Children and Young Peoples Services,Head of Early Help Inclusion & Vulnerable Children.,088108,Spennymoor & Shildon 0-19 Targeted Family Support,Supplies and Services,332047,Printing Stationery and Gen Off Exps,14-Jul-2020,000009138010597,AMZNMKTPLACE AMAZON.CO,5999,Stationery,62.30,10.38,51.92
Children and Young Peoples Services,Head of Early Help Inclusion & Vulnerable Children.,088105,BA/BC/Crook 0-19 Community Family Hub,Supplies and Services,332047,Printing Stationery and Gen Off Exps,14-Jul-2020,000009138010599,AMZNMKTPLACE AMAZON.CO,5999,Stationery,3.29,0.55,2.74
Children and Young Peoples Services,Head of Early Help Inclusion & Vulnerable Children.,088105,BA/BC/Crook 0-19 Community Family Hub,Supplies and Services,332047,Printing Stationery and Gen Off Exps,14-Jul-2020,000009138010603,AMZNMKTPLACE AMAZON.CO,5999,Stationery,2.99,0.50,2.49
Children and Young Peoples Services,Head of Early Help Inclusion & Vulnerable Children.,088105,BA/BC/Crook 0-19 Community Family Hub,Supplies and Services,332047,Printing Stationery and Gen Off Exps,14-Jul-2020,000009138010605,Amazon.co.uk 4B7Q98LL5,5969,Stationery,16.64,0.00,16.64
Children and Young Peoples Services,Head of Early Help Inclusion & Vulnerable Children.,088104,BA/BC/Crook 0-19 Targeted Family Support,Supplies and Services,332047,Printing Stationery and Gen Off Exps,14-Jul-2020,000009138010609,AMZNMktplace,5999,Stationery,66.90,11.15,55.75
Children and Young Peoples Services,Head of Early Help Inclusion & Vulnerable Children.,088104,BA/BC/Crook 0-19 Targeted Family Support,Supplies and Services,332047,Printing Stationery and Gen Off Exps,14-Jul-2020,000009138010609 - 1,AMZNMktplace,5999,Stationery,0.05,,0.05
Children and Young Peoples Services,Head of Early Help Inclusion & Vulnerable Children.,088105,BA/BC/Crook 0-19 Community Family Hub,Supplies and Services,332047,Printing Stationery and Gen Off Exps,14-Jul-2020,000009138010613,Amazon.co.uk EN9PT16R5,5969,Stationery,4.95,0.83,4.12
Children and Young Peoples Services,Head of Early Help Inclusion & Vulnerable Children.,088104,BA/BC/Crook 0-19 Targeted Family Support,Supplies and Services,304259,Equipment and Materials,14-Jul-2020,000009138010617,WWW.THEWORKS.CO.UK,5310,Equipment-purchase and rental,220.15,0.00,220.15
Children and Young Peoples Services,Head of Early Help Inclusion & Vulnerable Children.,085965,Barnard,Supplies and Services,328041,Clothing uniforms and laundry E328,14-Jul-2020,000009138010641,TOTAL SPORT NE LTD,5691,Clothing uniforms and laundry,51.87,0.00,51.87
Children and Young Peoples Services,Head of Early Help Inclusion & Vulnerable Children.,085954,Walworth,Supplies and Services,304403,Equipment and Materials,14-Jul-2020,000009138010643,AMZNMktplace,5999,Other consumables,32.95,0.00,32.95
Children and Young Peoples Services,Head of Early Help Inclusion & Vulnerable Children.,085956,Lumley,Supplies and Services,324117,Provisions E324,14-Jul-2020,000009138010645,TESCO STORES 6329,5411,Catering costs - provisions,111.57,0.00,111.57
Children and Young Peoples Services,Head of Childrens Social Care,085362,LAC & Permanence Team 2,Supplies and Services,384999,Miscellaneous Expenses,14-Jul-2020,000009138010661,HARTLEPOOL BC,9399,Other expenses,11.00,0.00,11.00
Neighbourhoods and Climate Change,Environmental Services,010551,Fleet - Chilton Fleet,Transport,215013,Running Costs of Vehicles,14-Jul-2020,000009138010701,DVLA VEHICLE TAX,9311,Vehicle Excise Duty (VED),167.50,0.00,167.50
Neighbourhoods and Climate Change,Environmental Services,010864,Fleet - Hackworth Road Fleet,Transport,215013,Running Costs of Vehicles,14-Jul-2020,000009138010707,DVLA VEHICLE TAX,9311,Vehicle Excise Duty (VED),167.50,0.00,167.50
Children and Young Peoples Services,Head of Early Help Inclusion & Vulnerable Children.,088109,Spennymoor & Shildon 0-19 Community Family Hub,Supplies and Services,324117,Provisions E324,14-Jul-2020,000009138010717,ASDA STORES,5411,Catering costs - provisions,32.60,0.00,32.60
Children and Young Peoples Services,Head of Childrens Social Care,085342,16 Hickstead Rise (previously 9 Cedar Ave),Supplies and Services,348037,Subsistence E348,14-Jul-2020,000009138010719,Reds Fish Bar,5812,Subsistence,28.10,0.00,28.10
Children and Young Peoples Services,Head of Education and Skills,071732,Dean Bank Childcare,Supplies and Services,324117,Provisions E324,14-Jul-2020,000009138010723,B&M 035 - SHILDON,5399,Catering costs - provisions,9.00,0.00,9.00
Children and Young Peoples Services,Head of Education and Skills,071732,Dean Bank Childcare,Supplies and Services,324117,Provisions E324,14-Jul-2020,000009138010727,SAINSBURYS SACAT (2303,5411,Catering costs - provisions,38.00,0.00,38.00
Neighbourhoods and Climate Change,Environmental Services,031221,North Pennines - Bowlees,Supplies and Services,332047,Printing Stationery and Gen Off Exps,14-Jul-2020,000009138010729,WWW.UKPOS.COM,5943,Stationery,21.18,3.53,17.65
"Regeneration, Economy and Growth",Development and Housing,030771,Durham Advance Flexible Fund,Transport,235057,Public Transport,14-Jul-2020,000009138010747,ARRIVA NORTH EAST,4131,Staff travelling,7.50,0.00,7.50
"Regeneration, Economy and Growth",Development and Housing,031500,Housing Solutions - Core Team,Supplies and Services,324117,Provisions E324,14-Jul-2020,000009138010777,ASDA STORE 4703,5411,Catering costs - provisions,10.00,0.00,10.00
"Regeneration, Economy and Growth",Development and Housing,030771,Durham Advance Flexible Fund,Employees,040149,Recruitment Instruction and Training,14-Jul-2020,000009138010781,VIRTUAL COLLEGE LIMITE,8299,Training-all costs,18.00,0.00,18.00
Children and Young Peoples Services,Head of Early Help Inclusion & Vulnerable Children.,085957,Secure Management,Supplies and Services,324117,Provisions E324,14-Jul-2020,000009138010787,TESCO SUBSCRIPTION,5411,Catering costs - provisions,6.99,0.00,6.99
Children and Young Peoples Services,Head of Early Help Inclusion & Vulnerable Children.,085956,Lumley,Supplies and Services,328041,Clothing uniforms and laundry E328,14-Jul-2020,000009138010791,BERSHKA UK,5691,Clothing uniforms and laundry,25.99,0.00,25.99
Children and Young Peoples Services,Head of Early Help Inclusion & Vulnerable Children.,085965,Barnard,Supplies and Services,328041,Clothing uniforms and laundry E328,14-Jul-2020,000009138010793,JD SPORTS INTERNET,5941,Clothing uniforms and laundry,56.94,0.00,56.94
Resources BK0010,Business Support,052986,CYPS - Locality and Operational Support,Supplies and Services,328041,Clothing uniforms and laundry E328,14-Jul-2020,000009138010799,WWW.THEWORKS.CO.UK,5310,Clothing uniforms and laundry,44.90,0.00,44.90
Resources BK0010,Business Support,052986,CYPS - Locality and Operational Support,Supplies and Services,328041,Clothing uniforms and laundry E328,14-Jul-2020,000009138010801,WWW.THEWORKS.CO.UK,5310,Clothing uniforms and laundry,18.99,0.00,18.99
Children and Young Peoples Services,Head of Childrens Social Care,085331,New Lea Childrens Home,Supplies and Services,304403,Equipment and Materials,14-Jul-2020,000009138010823,AMZNMktplace,5999,Other consumables,22.07,0.00,22.07
Adult and Health Services,Head of Adults,055643,Hawthorn House LD Respite Unit,Supplies and Services,324117,Provisions E324,14-Jul-2020,000009138010933,SAINSBURYS 0776,5411,Catering costs - provisions,5.35,0.00,5.35
Children and Young Peoples Services,Head of Education and Skills,071802,Louisa Cent Nursery,Supplies and Services,304999,Equipment and Materials,14-Jul-2020,000009138010947,HOME BARGAINS,5251,Misc equipment tools and materials,12.34,0.00,12.34
Children and Young Peoples Services,Head of Childrens Social Care,085333,Coxhoe Satelite Home,Supplies and Services,344033,Telephones,14-Jul-2020,000009138010955,giffgaff,4814,Telephones general-all costs,10.00,0.00,10.00
Children and Young Peoples Services,Head of Childrens Social Care,085333,Coxhoe Satelite Home,Supplies and Services,324117,Provisions E324,14-Jul-2020,000009138010961,B&M 681 - DURHAM,5399,Catering costs - provisions,28.18,0.00,28.18
Children and Young Peoples Services,Head of Early Help Inclusion & Vulnerable Children.,071616,Seaham Childrens Centre,Supplies and Services,304403,Equipment and Materials,14-Jul-2020,000009138010979,AMZNMKTPLACE AMAZON.CO,5999,Other consumables,113.76,18.96,94.80
Children and Young Peoples Services,Head of Early Help Inclusion & Vulnerable Children.,071616,Seaham Childrens Centre,Supplies and Services,304403,Equipment and Materials,14-Jul-2020,000009138010979 - 1,AMZNMKTPLACE AMAZON.CO,5999,Other consumables,0.12,,0.12
Children and Young Peoples Services,Head of Early Help Inclusion & Vulnerable Children.,071616,Seaham Childrens Centre,Supplies and Services,304403,Equipment and Materials,14-Jul-2020,000009138010981,AMZNMKTPLACE AMAZON.CO,5999,Other consumables,173.25,29.05,144.20
Children and Young Peoples Services,Head of Early Help Inclusion & Vulnerable Children.,071616,Seaham Childrens Centre,Supplies and Services,304403,Equipment and Materials,14-Jul-2020,000009138010983,AMZNMKTPLACE AMAZON.CO,5999,Other consumables,64.92,10.83,54.09
Children and Young Peoples Services,Head of Early Help Inclusion & Vulnerable Children.,071616,Seaham Childrens Centre,Supplies and Services,328041,Clothing uniforms and laundry E328,14-Jul-2020,000009138010987,WWW.THEWORKS.CO.UK,5310,Clothing uniforms and laundry,210.00,0.00,210.00
Children and Young Peoples Services,Head of Early Help Inclusion & Vulnerable Children.,071616,Seaham Childrens Centre,Supplies and Services,328041,Clothing uniforms and laundry E328,14-Jul-2020,000009138010989,WWW.THEWORKS.CO.UK,5310,Clothing uniforms and laundry,390.50,0.00,390.50
Children and Young Peoples Services,Head of Childrens Social Care,085352,Tow Law CU,Supplies and Services,324117,Provisions E324,14-Jul-2020,000009138011005,ASDA SUPERSTORE 4987,5411,Catering costs - provisions,171.56,0.00,171.56
